Workbook

Sheet прил 1 (2013 доходы)
A3: Прогнозируемые доходы бюджета Черемховского районного муниципального образования на 2013 год
D5: (тыс. рублей)
A6: Наименование | B6: Код бюджетной классификации | D6: Прогноз на 2013 год
B7: главного администратора доходов | C7: доходов районного бюджета
A8: НАЛОГОВЫЕ И НЕНАЛОГОВЫЕ ДОХОДЫ | B8: 000 | C8: 1 00 00000 00 0000 000 | D8: =D9+D14+D23+D27+D30+D35+D40+D47+D52+D71 -> 81236.93
A9: НАЛОГИ НА ПРИБЫЛЬ, ДОХОДЫ | B9: 182 | C9: 1 01 00000 00 0000 000 | D9: =D10+D11+D12+D13 -> 50023.7
A10: Налог на доходы физических лиц с доходов, источником которых является налоговый агент, за исключением доходов, в отношении которых исчисление и уплата налога осуществляются в соответствии со статьями 227,227¹ и 228 Налогового кодекса Российской Федерации | B10: 182 | C10: 1 01 02010 01 0000 110 | D10: 49835.4
A11: Налог на доходы физических лиц с доходов, полученных от осуществления деятельности физическими лицами,зарегистрированными в качестве индивидуальных предпринимателей,нотариусов,занимающихся частной практикой,адвокатов,учредивших адвокатские кабинеты и других лиц, занимающихся частной практикой | B11: 182 | C11: 1 01 02020 01 0000 110 | D11: 53.1
A12: Налог на доходы физических лиц с доходов, полученных физическими лицами, не являющимися налоговыми резидентами | B12: 182 | C12: 1 01 02030 01 0000 110 | D12: 131.7
A13: Налог на доходы физических лиц в виде фиксированных авансовых платежей с доходов, полученных физическими лицами, являющимися иностранными гражданами, осуществляющими трудовую деятельность по найму у физических лиц на основании патента | B13: 182 | C13: 1 01 02040 01 0000 110 | D13: 3.5
A14: НАЛОГИ НА СОВОКУПНЫЙ ДОХОД | B14: 182 | C14: 1 05 00000 00 0000 000 | D14: =D15+D21+D22 -> 9179.3
A15: Налог, взимаемый в связи с применением упрощенной системы налогообложения | B15: 182 | C15: 1 05 01000 00 0000 110 | D15: =D16+D17+D18+D19 -> 3770.4
A16: Налог, взимаемый с налогоплательщиков, выбравших в качестве объекта налогообложения доходы | B16: 182 | C16: 1 05 01010 01 0000 110 | D16: 1487
A17: Налог, взимаемый с налогоплательщиков, выбравших в качестве объекта налогообложения доходы, уменьшенные на величину расходов | B17: 182 | C17: 1 05 01020 01 0000 110 | D17: 1540
A18: Налог, взимаемый с налогоплательщиков, выбравших в качестве объекта налогообложения доходы, уменьшенные на величину расходов (за налоговые периоды, истекшие до 1 января 2011 года) | B18: 182 | C18: 1 05 01022 01 0000 110 | D18: 106.2
A19: Минимальный налог, зачисляемый в бюджеты субьектов РФ | B19: 182 | C19: 1 05 01050 01 0000 110 | D19: 637.2
A20: Налог, взимаемый в связи с применением патентной системы налогообложения | B20: 182 | D20: 0
A21: Единый налог на вмененный доход для отдельных видов деятельности | B21: 182 | C21: 1 05 02000 02 0000 110 | D21: 5310
A22: Единый сельскохозяйственный налог | B22: 182 | C22: 1 05 03000 01 0000 110 | D22: 98.9
A23: ГОСУДАРСТВЕННАЯ ПОШЛИНА | B23: 000 | C23: 1 08 00000 00 0000 000 | D23: =D24+D25+D26 -> 988
A24: Государственная пошлина по делам, рассматриваемым в судах общей юрисдикции, мировыми судьями (за исключением Верховного Суда Российской Федерации) | B24: 182 | C24: 1 08 03010 01 0000 110 | D24: 308
A25: Государственная пошлина за совершение действий, связанных с лицензированием, с проведением аттестации в случаях, если такая аттестация предусмотрена законодательством Российской Федерации, зачисляемая в бюджеты муниципальных районов | B25: 917 | C25: 1 08 07084 01 1000 110 | D25: 680
A26: Государственная пошлина за государственную регистрацию транспортных средств и иные юридически значимые действия, связанные с изменениями и выдачей документов на транспортные средства, выдачей регистрационных знаков, приемом квалификационных экзаменов на получение права на управление транспортными средствами | B26: 000 | C26: 1 08 07141 01 0000 110
A27: ЗАДОЛЖЕННОСТЬ И ПЕРЕРАСЧЕТЫ ПО ОТМЕНЕННЫМ НАЛОГАМ, СБОРАМ И ИНЫМ ОБЯЗАТЕЛЬНЫМ ПЛАТЕЖАМ | B27: 182 | C27: 1 09 00000 00 0000 000 | D27: =D28+D29 -> 1
A28: Налог на имущество предприятий | B28: 182 | C28: 1 09 04010 02 0000 110 | D28: 0.5
A29: Налог с продаж | B29: 182 | C29: 1 09 06010 02 0000 110 | D29: 0.5
A30: ДОХОДЫ ОТ ИСПОЛЬЗОВАНИЯ ИМУЩЕСТВА, НАХОДЯЩЕГОСЯ В ГОСУДАРСТВЕННОЙ И МУНИЦИПАЛЬНОЙ СОБСТВЕННОСТИ | B30: 000 | C30: 1 11 00000 00 0000 000 | D30: =D31+D34 -> 9990
A31: Доходы, получаемые в виде арендной платы за земельные участки,государственная собственность на которые не разграничена и которые расположеныв границах поселений, а также средства от продажи права на заключение договоров аренды указанных земельных участков | B31: 000 | C31: 1 11 05013 10 0000 120 | D31: =D32+D33 -> 5090
A32: Доходы, получаемые в виде арендной платы за земельные участки, государственная собственность на которые не разграничена и которые расположены в границах поселений, а также средства от продажи права на заключение договоров аренды указанных земельных участков | B32: 913 | C32: 1 11 05013 10 0000 120 | D32: 4340
A33: Доходы, получаемые в виде арендной платы за земельные участки,государственная собственность на которые не разграничена и которые расположеныв границах поселений, а также средства от продажи права на заключение договоров аренды указанных земельных участков | B33: 950 | C33: 1 11 05013 10 0000 120 | D33: 750
A34: Доходы от сдачи в аренду имущества, находящегося в оперативном управлении органов управления муниципальных районов и созданных ими учреждений (за исключением имущества муниципальных автономных учреждений) | B34: 913 | C34: 1 11 05035 05 0000 120 | D34: 4900
A35: ПЛАТЕЖИ ПРИ ПОЛЬЗОВАНИИ ПРИРОДНЫМИ РЕСУРСАМИ | B35: 048 | C35: 1 12 00000 00 0000 000 | D35: =D36 -> 179.13
A36: Плата за негативное воздействие на окружающую среду | B36: 048 | C36: 1 12 01000 01 0000 120 | D36: =D37+D38+D39 -> 179.13
A37: Плата за выбросы загрязняющих веществ в атмосферный воздух стационарными объектами | B37: 048 | C37: 1 12 01010 01 0000 120 | D37: 94.9
A38: Плата за выбросы загрязняющих веществ в атмосферный воздух передвижными объектами | B38: 048 | C38: 1 12 01020 01 0000 120 | D38: 17.93
A39: Плата за размещение отходов производства и потребления | B39: 048 | C39: 1 12 01040 01 0000 120 | D39: 66.3
A40: ДОХОДЫ ОТ ОКАЗАНИЯ ПЛАТНЫХ УСЛУГ И КОМПЕНСАЦИИ ЗАТРАТ ГОСУДАРСТВА | B40: 000 | C40: 1 13 00000 00 0000 000 | D40: =D41+D42 -> 7394
A41: Прочие доходы от оказания платных услуг (работ) получателями средств бюджетов муниципальных районов | B41: 907 | C41: 113 01995 05 0000 130 | D41: 7070
A42: Прочие доходы от оказания платных услуг (работ) получателями средств бюджетов муниципальных районов | B42: 904 | C42: 113 01995 05 0000 130 | D42: =D43+D44+D45+D46 -> 324
A43: Прочие доходы от оказания платных услуг (работ) получателями средств бюджетов муниципальных районов (МКУК МКЦ АЧРМО) | B43: 000 | C43: 113 01995 05 0000 130 | D43: 55
A44: Прочие доходы от оказания платных услуг (работ) получателями средств бюджетов муниципальных районов (МКУК РИК МУЗЕЙ) | B44: 000 | C44: 113 01995 05 0000 130 | D44: 21
A45: Прочие доходы от оказания платных услуг (работ) получателями средств бюджетов муниципальных районов (МКУК МБЧР) | B45: 000 | C45: 113 01995 05 0000 130 | D45: 26
A46: Прочие доходы от оказания платных услуг (работ) получателями средств бюджетов муниципальных районов (МКОУ ДОД ДШИ) | B46: 000 | C46: 113 01995 05 0000 130 | D46: 222
A47: ДОХОДЫ ОТ ПРОДАЖИ МАТЕРИАЛЬНЫХ И НЕМАТЕРИАЛЬНЫХ АКТИВОВ | B47: 913 | C47: 1 14 00000 00 0000 000 | D47: =D48+D50 -> 2669.3
A48: Доходы от реализации имущества, находящегося в государственной и муниципальной собственности (за исключением имущества автономных учреждений, а также имущества государственных и муниципальных унитарных предприятий, в том числе казенных) | B48: 913 | C48: 1 14 02000 00 0000 000 | D48: =D49 -> 2600
A49: Доходы от реализации иного имущества, находящегося в собственности муниципальных районов (за исключением имущества муниципальных автономных учреждений, а также имущества муниципальных унитарных предприятий, в том числе казенных), в части реализации основных средств по указанному имуществу | B49: 913 | C49: 1 14 02053 05 0000 410 | D49: 2600
A50: Доходы от продажи земельных участков, находящихся в государственной и муниципальной собственности (за исключением земельных участков автономных учреждений) | B50: 913 | C50: 1 14 06000 00 0000 430 | D50: =D51 -> 69.3
A51: Доходы от продажи земельных участков, государственная собственность на которые не разграничена и которые расположены в границах поселений | B51: 913 | C51: 1 14 06013 10 0000 430 | D51: 69.3
A52: ШТРАФЫ, САНКЦИИ, ВОЗМЕЩЕНИЕ УЩЕРБА | B52: 000 | C52: 1 16 00000 00 0000 000 | D52: =D53+D54+D55+D59+D63+D62 -> 512.5
A53: Денежные взыскания (штрафы) за нарушение законодательства о налогах и сборах | B53: 182 | C53: 1 16 03000 01 0000 140 | D53: 39
A54: Денежные взыскания (штрафы) за административные правонарушения в области государственного регулирования производства и оборота этилового спирта, алкогольной и спиртосодержащей продукции | B54: 000 | C54: 1 16 08000 01 0000 140 | D54: 3.2
A55: Денежные взыскания (штрафы) за нарушение законодательства о недрах, об особо охраняемых природных территориях, об охране и использовании животного мира, об экологической экспертизе, в области охраны окружающей среды, земельного законодательства | B55: 000 | C55: 1 16 25000 01 0000 140 | D55: =D57+D58+D56 -> 37
A56: Денежные взыскания (штрафы) за нарушение законодательства о недрах | B56: 000 | C56: 1 16 25010 01 6000 140 | D56: 1
A57: Денежные взыскания (штрафы) за нарушение законодательства об охране и использовании животного мира | B57: 815 | C57: 1 16 25030 01 6000 140 | D57: 35
A58: Денежные взыскания (штрафы) за нарушение земельного законодательства | B58: 081 | C58: 1 16 25060 01 6000 140 | D58: 1
A59: Денежные взыскания (штрафы) за правонарушения в области дорожного движения | B59: 000 | C59: 1 16 30000 01 0000 140 | D59: =D60+D61 -> 31.7
A60: Денежные взыскания (штрафы) за административные правонарушения в области дорожного движения | B60: 188 | C60: 1 16 30014 01 0000 140 | D60: 2.7
A61: Прочие денежные взыскания (штрафы) за административные правонарушения в области дорожного движения | B61: 188 | C61: 1 16 30030 01 0000 140 | D61: 29
A62: Денежные взыскания (штрафы) за нарушение законодательства РФ об административных правонарушениях, предусмотренные статьей 20.25 Кодекса РФ об административных правонарушений | B62: 188 | C62: 1 16 43000 01 0000 140 | D62: 2.2
A63: Прочие поступления от денежных взысканий (штрафов) и иных сумм в возмещение ущерба, зачисляемые в бюджеты муниципальных районов | B63: 000 | C63: 1 16 90050 05 0000 140 | D63: =D64+D65+D66+D67+D68+D69+D70 -> 399.4
A64: Прочие поступления от денежных взысканий (штрафов) и иных сумм в возмещение ущерба, зачисляемые в бюджеты муниципальных районов | B64: 081 | C64: 1 16 90050 05 0000 140 | D64: 15
A65: Прочие поступления от денежных взысканий (штрафов) и иных сумм в возмещение ущерба, зачисляемые в бюджеты муниципальных районов | B65: 177 | C65: 1 16 90050 05 0000 140 | D65: 38
A66: Прочие поступления от денежных взысканий (штрафов) и иных сумм в возмещение ущерба, зачисляемые в бюджеты муниципальных районов | B66: 188 | C66: 1 16 90050 05 0000 140 | D66: 59
A67: Прочие поступления от денежных взысканий (штрафов) и иных сумм в возмещение ущерба, зачисляемые в бюджеты муниципальных районов | B67: 192 | C67: 1 16 90050 05 0000 140 | D67: 170
A68: Прочие поступления от денежных взысканий (штрафов) и иных сумм в возмещение ущерба, зачисляемые в бюджеты муниципальных районов | B68: 415 | C68: 1 16 90050 05 0000 140 | D68: 60
A69: Прочие поступления от денежных взысканий (штрафов) и иных сумм в возмещение ущерба, зачисляемые в бюджеты муниципальных районов | B69: 809 | C69: 1 16 90050 05 0000 140 | D69: 50
A70: Прочие поступления от денежных взысканий (штрафов) и иных сумм в возмещение ущерба, зачисляемые в бюджеты муниципальных районов | B70: 917 | C70: 1 16 90050 05 0000 140 | D70: 7.4
A71: ПРОЧИЕ НЕНАЛОГОВЫЕ ДОХОДЫ | B71: 000 | C71: 1 17 00000 00 0000 000 | D71: =D72+D73 -> 300
A72: Невыясненные поступления | B72: 000 | C72: 1 17 01000 00 0000 180 | D72: 0
A73: Прочие неналоговые доходы | B73: 000 | C73: 1 17 05000 00 0000 180 | D73: 300
A74: БЕЗВОЗМЕЗДНЫЕ ПОСТУПЛЕНИЯ | B74: 000 | C74: 2 00 00000 00 0000 000 | D74: =D75+D124+D126 -> 393504.9
A75: БЕЗВОЗМЕЗДНЫЕ ПОСТУПЛЕНИЯ ИЗ ДРУГИХ БЮДЖЕТОВ БЮДЖЕТНОЙ СИСТЕМЫ РФ | B75: 000 | C75: 2 02 00000 00 0000 151 | D75: =D76+D79+D95+D111 -> 393504.9
A76: ДОТАЦИИ БЮДЖЕТАМ МУНИЦИПАЛЬНЫХ ОБРАЗОВАНИЙ | B76: 000 | C76: 2 02 01000 00 0000 151 | D76: =D77+D78 -> 124989
A77: Дотации муниципальным районам на выравнивание уровня бюджетной обеспеченности | B77: 910 | C77: 2 02 01001 05 0000 151 | D77: 124989
A78: Дотации муниципальным районам на поддержку мер по обеспечению сбалансированности бюджетов | B78: 910 | C78: 2 02 01003 05 0000 151 | D78: 0
A79: СУБСИДИИ БЮДЖЕТАМ МУНИЦИПАЛЬНЫХ ОБРАЗОВАНИЙ | B79: 000 | C79: 2 02 02000 00 0000 151 | D79: =D80+D81+D82+D83 -> 11377.1
A80: Федеральная программа "Молодым семьям - доступное жилье на 2005-2019 годы" | B80: 917 | C80: 2 02 02051 05 0000 151 | D80: 0
A81: Долгосрочная целевая программа "Энергосбережение и повышение энергетической эффективности на территории Иркутской области на 2011-2015 годы и на период до 2020 года | B81: 910 | C81: 2 02 02150 05 0000 151 | D81: 0
A82: Областная государственная социальная программа "Молодым семьям- доступное жилье" на 2005-2019 годы" | B82: 917 | C82: 2 02 02008 05 0000 151 | D82: 0
A83: Прочие субсидии | B83: 000 | C83: 2 02 02999 05 0000 151 | D83: =D84+D85+D86+D87+D88+D89+D91+D92+D94+D93 -> 11377.1
A84: Субсидии на выплату заработной платы с начислениями на нее педагогическим работникам муниципальных дошкольных образовательных учреждений | B84: 907 | C84: 2 02 02999 05 0000 151 | D84: 2005.1
A85: Субсидия за счет средств долгосрочной целевой программы Иркутской области "Повышение эффективности бюджетных расходов Иркутской области на 2011-2013 годы" | B85: 910 | C85: 2 02 02999 05 0000 151 | D85: 9372
A86: Погашение кредиторской задолженности учреждений, находящихся в ведении органов местного самоуправления муниципальных образований Иркутской области, по страховым взносам на обязательное пенсионное страхование, сложившейся за период с 1 января 2002 года до 31 декабря 2009 года, и по страховым взносам на обязательное пенсионное страхование, обязательное медицинское страхование и обязательное социальное страхование на случай временной нетрудоспособности и в связи с материнством за период 2010-2011 годы, а также пеней и штрафов, начисленных на задолженность 2010-2011 годов | B86: 910 | C86: 2 02 02999 05 0000 151 | D86: 0
A87: Погашение реструктуризированной кредиторской задолженности учреждений, находящихся в ведении органов местного самоуправления муниципальных образований Иркутской области, по страховым взносам на обязательное пенсионное страхование, сложившейся за период с 1 января 2002 года до 31 декабря 2009 года, и по страховым взносам на обязательное пенсионное страхование, обязательное медицинское страхование и обязательное социальное страхование на случай временной нетрудоспособности и в связи с материнством за период 2010-2011 годы, а также пеней и штрафов, начисленных на задолженность 2010-2011 годов | B87: 910 | C87: 2 02 02999 05 0000 151 | D87: 0
A88: Долгосрочная целевая программа "Социальное развитие села Иркутской области на 2011-2014 годы" | B88: 907 | C88: 2 02 02999 05 0000 151
A89: Долгосрочная целевая программа Иркутской области "100 модельных домов культуры Приангарью" на 2011-2014 годы | B89: 917 | C89: 2 02 02999 05 0000 151 | D89: 0
A91: Долгосрочная целевая программа Иркутской области «Организация и обеспечение отдыха и оздоровления детей в Иркутской области на 2012-2014 годы» | B91: 907 | C91: 2 02 02999 05 0000 151 | D91: 0
A92: Долгосрочная целевая программа поддержки и развития учреждений дошкольного образования в Иркутской области на 2009-2014 годы» | B92: 907 | C92: 2 02 02999 05 0000 151 | D92: 0
A93: Долгосрочная целевая программа «Поддержка и развитие малого и среднего предпринимательства в Иркутской области» на 2011-2012 годы (за счет федерального бюджета) | B93: 917 | C93: 2 02 02999 05 0000 151 | D93: 0
A94: Долгосрочная целевая программа «Поддержка и развитие малого и среднего предпринимательства в Иркутской области» на 2011-2012 годы (за счет областного бюджета) | B94: 917 | C94: 2 02 02999 05 0000 151 | D94: 0
A95: СУБВЕНЦИИ БЮДЖЕТАМ МУНИЦИПАЛЬНЫХ ОБРАЗОВАНИЙ | B95: 000 | C95: 2 02 03000 00 0000 151 | D95: =D97+D98+D99+D101+D102+D103+D104+D105+D106+D107+D108+D109 -> 256144.5
A96: Субвенции бюджетам муниципальных районов на осуществление полномочий по подготовке проведения статистических переписей | B96: 917 | C96: 2 02 03002 05 0000 151
A97: Субвенции бюджетам муниципальных районов на составление списков кандидатов в присяжные заседатели федеральных судов общей юрисдикции в Российской Федерации | B97: 917 | C97: 2 02 03007 05 0000 151 | D97: 0
A98: Субвенции бюджетам на ежемесячное денежное вознаграждение за классное руководство | B98: 907 | C98: 2 02 03021 05 0000 151 | D98: 0
A99: Субвенции бюджетам муниципальных образований на предоставление гражданам субсидий на оплату жилого помещения и коммунальных услуг | B99: 918 | C99: 2 02 03022 05 0000 151 | D99: 7534.2
A100: Субвенции местным бюджетам на выполнение переданных полномочий субъектов РФ | B100: 000 | C100: 2 02 03024 05 0000 151 | D100: =D101+D102+D103+D104+D105+D106 -> 10028.8
A101: Хранение, комплектование, учет и использование архивных документов, относящихся к областной государственной собственности | B101: 917 | C101: 2 02 03024 05 0000 151 | D101: 1086
A102: Государственные полномочия в области охраны труда | B102: 917 | C102: 2 02 03024 05 0000 151 | D102: 563.6
A103: Определение персонального состава и обеспечение деятельности районных (городских), районных в городах комиссий по делам несовершеннолетних и защите их прав | B103: 917 | C103: 2 02 03024 05 0000 151 | D103: 1078.1
A104: Лицензирование розничной продажи алкогольной продукции | B104: 917 | C104: 2 02 03024 05 0000 151 | D104: 375.7
A105: Определение персонального состава и обеспечение деятельности административных комиссий | B105: 917 | C105: 2 02 03024 05 0000 151 | D105: 563.6
A106: Предоставление мер социальной поддержки многодетным и малоимущим семьям | B106: 907 | C106: 2 02 03024 05 0000 151 | D106: 6361.8
A107: Субвенции бюджетам муниципальных районов на обеспечение жилыми помещениями детей-сирот, детей, оставшихся без попечения родителей, а также детей, находящихся под опекой (попечительством), не имеющих закрепленного жилого помещения | B107: 913 | C107: 2 02 03026 05 0000 151 | D107: 0
A108: Субвенции бюджетам муниципальных районов на обеспечение жилыми помещениями детей-сирот, детей, оставшихся без попечения родителей, а также детей, находящихся под опекой (попечительством), не имеющих закрепленного жилого помещения (федер.) | B108: 913 | C108: 2 02 03026 05 0000 151 | D108: 0
A109: Прочие субвенции | B109: 000 | C109: 2 02 03999 05 0000 151 | D109: =D110 -> 238581.5
A110: Субвенция на обеспечение государственных гарантий прав граждан на получение общедоступного и бесплатного дошкольного, начального общего, основного общего, среднего (полного) общего образования, а также дополнительного образования в общеобразовательных учреждениях | B110: 907 | C110: 2 02 03999 05 0000 151 | D110: 238581.5
A111: ИНЫЕ МЕЖБЮДЖЕТНЫЕ ТРАНСФЕРТЫ | B111: 000 | C111: 2 02 04000 00 0000 151 | D111: =D112+D117+D118+D122 -> 994.3
A112: Межбюджетные трансферты, передаваемые бюджетам муниципальных районов из бюджетов поселений на осуществление части полномочий по решению вопросов местного значения в соответствии с заключенными соглашениями | B112: 000 | C112: 2 02 04014 05 0000 151 | D112: =D113+D114+D115+D116 -> 0
A113: Межбюджетные трансферты, передаваемые бюджетам муниципальных районов из бюджетов поселений на осуществление части полномочий по решению вопросов местного значения в соответствии с заключенными соглашениями | B113: 910 | C113: 2 02 04014 05 0000 151 | D113: 0
A114: Межбюджетные трансферты, передаваемые бюджетам муниципальных районов из бюджетов поселений на осуществление части полномочий по решению вопросов местного значения в соответствии с заключенными соглашениями (правила землепользования) | B114: 918 | C114: 2 02 04014 05 0000 151 | D114: 0
A115: Межбюджетные трансферты, передаваемые бюджетам муниципальных районов из бюджетов поселений на осуществление части полномочий по решению вопросов местного значения в соответствии с заключенными соглашениями (генплан 5%) | B115: 918 | C115: 2 02 04014 05 0000 151 | D115: 0
A116: Межбюджетные трансферты, передаваемые бюджетам муниципальных районов из бюджетов поселений на осуществление части полномочий по решению вопросов местного значения в соответствии с заключенными соглашениями (генплан ) | B116: 918 | C116: 2 02 04014 05 0000 151 | D116: 0
A117: Межбюджетные трансферты, передаваемые бюджетам муниципальных районов на комплектование книжных фондов библиотек муниципальных образований (областной бюджет) | B117: 910 | C117: 2 02 04025 05 0000 151 | D117: 162.7
A118: Межбюджетные трансферты, передаваемые бюджетам муниципальных районов на комплектование книжных фондов библиотек муниципальных образований (федеральный бюджет) | B118: 910 | C118: 2 02 04025 05 0000 151 | D118: 303.6
A119: Прочие межбюджетные трансферты, передаваемые бюджетам муниципальных районов | B119: 000 | C119: 2 02 04999 05 0000 151
A120: Дотации на возмещ.расходов местных бюджетов в связи с предоставлением льгот по оплате жилого помещения и коммунальных услуг педагогическим работникам, проживающим в сельской местности, рабочих поселках (пгт) и работающим в муниц.образоват.учреждениях | B120: 907 | C120: 2 02 04999 05 0000 151
A121: Межбюджетные трансферты в целях финансовой поддержки муниципальных образований Иркутской области, осуществляющих эффективное управление бюджетными средствами | B121: 910 | C121: 2 02 04999 05 0000 151
A122: ПРОЧИЕ МЕЖБЮДЖЕТНЫЕ ТРАНСФЕРТЫ | B122: 000 | C122: 2 02 04999 00 0000 151 | D122: =D123 -> 528
A123: Исполнение судебных актов, вступивших в силу до 1 января 2013 года, по обеспечению жилыми помещениями детей-сирот и детей, оставшихся без попечения родителей, лиц из числа детей-сирот и детей, оставшихся без попечения родителей, не имеющих закрепленного жилого помещения | B123: 913 | C123: 2 02 04999 05 0000 151 | D123: 528
A124: ПРОЧИЕ БЕЗВОЗМЕЗДНЫЕ ПОСТУПЛЕНИЯ | B124: 000 | C124: 2 07 00000 00 0000 180 | D124: =D125 -> 0
A125: Прочие безвозмездные поступления в бюджеты муниципальных районов | B125: 000 | C125: 2 07 05000 05 0000 180 | D125: 0
A126: ВОЗВРАТ ОТСТАКОВ СУБСИДИЙ И СУБВЕНЦИЙ | B126: 000 | C126: 2 19 00000 00 0000 000 | D126: =D127 -> 0
A127: Возврат остатков субсидий и субвенций из бюджетов муниципальных районов | B127: 910 | C127: 2 19 05000 05 0000 180 | D127: 0
A128: ИТОГО ДОХОДОВ | B128: 000 | C128: 8 50 00000 00 0000 000 | D128: =D74+D8 -> 474741.83
A130: Начальник финансового управления | C130: Ю.Н. Гайдук

Sheet прил 2 (2014-2015 доходы)
A5: Прогнозируемые доходы бюджета Черемховского районного муниципального образования на плановый период 2014 и 2015 годов
E6: (тыс. рублей)
A7: Наименование | B7: Код бюджетной классификации | D7: Сумма
B8: главного администратора доходов | C8: доходов районного бюджета | D8: 2014 | E8: 2015
A9: НАЛОГОВЫЕ И НЕНАЛОГОВЫЕ ДОХОДЫ | B9: 000 | C9: 1 00 00000 00 0000 000 | D9: =D10+D15+D25+D29+D32+D37+D42+D49+D54+D73 -> 83091.985 | E9: 86325.15
A10: НАЛОГИ НА ПРИБЫЛЬ, ДОХОДЫ | B10: 182 | C10: 1 01 00000 00 0000 000 | D10: =D11+D12+D13+D14 -> 52624.9 | E10: 55203.5
A11: Налог на доходы физических лиц с доходов, источником которых является налоговый агент, за исключением доходов, в отношении которых исчисление и уплата налога осуществляются в соответствии со статьями 227,227¹ и 228 Налогового кодекса Российской Федерации | B11: 182 | C11: 1 01 02010 01 0000 110 | D11: 52426.8 | E11: 54995.7
A12: Налог на доходы физических лиц с доходов, полученных от осуществления деятельности физическими лицами,зарегистрированными в качестве индивидуальных предпринимателей,нотариусов,занимающихся частной практикой,адвокатов,учредивших адвокатские кабинеты и других лиц, занимающихся частной практикой | B12: 182 | C12: 1 01 02020 01 0000 110 | D12: 55.9 | E12: 58.6
A13: Налог на доходы физических лиц с доходов, полученных физическими лицами, не являющимися налоговыми резидентами | B13: 182 | C13: 1 01 02030 01 0000 110 | D13: 138.5 | E13: 145.3
A14: Налог на доходы физических лиц в виде фиксированных авансовых платежей с доходов, полученных физическими лицами, являющимися иностранными гражданами, осуществляющими трудовую деятельность по найму у физических лиц на основании патента | B14: 182 | C14: 1 01 02040 01 0000 110 | D14: 3.7 | E14: 3.9
A15: НАЛОГИ НА СОВОКУПНЫЙ ДОХОД | B15: 182 | C15: 1 05 00000 00 0000 000 | D15: =D16+D23+D24 -> 9656 | E15: 10130
A16: Налог, взимаемый в связи с применением упрощенной системы налогообложения | B16: 182 | C16: 1 05 01000 00 0000 110 | D16: =D17+D18+D19+D20+D21 -> 3966 | E16: 4161
A17: Налог, взимаемый с налогоплательщиков, выбравших в качестве объекта налогообложения доходы | B17: 182 | C17: 1 05 01010 01 0000 110 | D17: 1564.3 | E17: 1641
A18: Налог, взимаемый с налогоплательщиков, выбравших в качестве объекта налогообложения доходы, уменьшенные на величину расходов | B18: 182 | C18: 1 05 01020 01 0000 110 | D18: 1620 | E18: 1700
A19: Налог, взимаемый с налогоплательщиков, выбравших в качестве объекта налогообложения доходы, уменьшенные на величину расходов (за налоговые периоды, истекшие до 1 января 2011 года) | B19: 182 | C19: 1 05 01022 01 0000 110 | D19: 111.7 | E19: 117
A20: Налог, взимаемый в виде стоимости патента в связи с применением упрощенной системы налогооблажения | B20: 182 | C20: 1 05 01041 02 0000 110 | D20: 0 | E20: 0
A21: Минимальный налог, зачисляемый в бюджеты субьектов РФ | B21: 182 | C21: 1 05 01050 01 0000 110 | D21: 670 | E21: 703
A22: Налог, взимаемый в связи с применением патентной системы налогообложения | B22: 182
A23: Единый налог на вмененный доход для отдельных видов деятельности | B23: 182 | C23: 1 05 02000 02 0000 110 | D23: 5586 | E23: 5860
A24: Единый сельскохозяйственный налог | B24: 182 | C24: 1 05 03000 01 0000 110 | D24: 104 | E24: 109
A25: ГОСУДАРСТВЕННАЯ ПОШЛИНА | B25: 000 | C25: 1 08 00000 00 0000 000 | D25: =D26+D27+D28 -> 1044 | E25: 1080
A26: Государственная пошлина по делам, рассматриваемым в судах общей юрисдикции, мировыми судьями (за исключением Верховного Суда Российской Федерации) | B26: 182 | C26: 1 08 03010 01 0000 110 | D26: 324 | E26: 340
A27: Государственная пошлина за совершение действий, связанных с лицензированием, с проведением аттестации в случаях, если такая аттестация предусмотрена законодательством Российской Федерации, зачисляемая в бюджеты муниципальных районов | B27: 917 | C27: 1 08 07084 01 1000 110 | D27: 720 | E27: 740
A28: Государственная пошлина за государственную регистрацию транспортных средств и иные юридически значимые действия, связанные с изменениями и выдачей документов на транспортные средства, выдачей регистрационных знаков, приемом квалификационных экзаменов на получение права на управление транспортными средствами | B28: 000 | C28: 1 08 07141 01 0000 110
A29: ЗАДОЛЖЕННОСТЬ И ПЕРЕРАСЧЕТЫ ПО ОТМЕНЕННЫМ НАЛОГАМ, СБОРАМ И ИНЫМ ОБЯЗАТЕЛЬНЫМ ПЛАТЕЖАМ | B29: 182 | C29: 1 09 00000 00 0000 000 | D29: =D30+D31 -> 1 | E29: 1
A30: Налог на имущество предприятий | B30: 182 | C30: 1 09 04010 02 0000 110 | D30: 0.5 | E30: 0.5
A31: Налог с продаж | B31: 182 | C31: 1 09 06010 02 0000 110 | D31: 0.5 | E31: 0.5
A32: ДОХОДЫ ОТ ИСПОЛЬЗОВАНИЯ ИМУЩЕСТВА, НАХОДЯЩЕГОСЯ В ГОСУДАРСТВЕННОЙ И МУНИЦИПАЛЬНОЙ СОБСТВЕННОСТИ | B32: 000 | C32: 1 11 00000 00 0000 000 | D32: =D33+D36 -> 10464.5 | E32: 10451.5
A33: Доходы, получаемые в виде арендной платы за земельные участки,государственная собственность на которые не разграничена и которые расположеныв границах поселений, а также средства от продажи права на заключение договоров аренды указанных земельных участков | B33: 000 | C33: 1 11 05013 10 0000 120 | D33: =D34+D35 -> 5464.5 | E33: 5351.5
A34: Доходы, получаемые в виде арендной платы за земельные участки, государственная собственность на которые не разграничена и которые расположены в границах поселений, а также средства от продажи права на заключение договоров аренды указанных земельных участков | B34: 913 | C34: 1 11 05013 10 0000 120 | D34: 4714.5 | E34: 4601.5
A35: Доходы, получаемые в виде арендной платы за земельные участки,государственная собственность на которые не разграничена и которые расположеныв границах поселений, а также средства от продажи права на заключение договоров аренды указанных земельных участков | B35: 950 | C35: 1 11 05013 10 0000 120 | D35: 750 | E35: 750
A36: Доходы от сдачи в аренду имущества, находящегося в оперативном управлении органов управления муниципальных районов и созданных ими учреждений (за исключением имущества муниципальных автономных учреждений) | B36: 913 | C36: 1 11 05035 05 0000 120 | D36: 5000 | E36: 5100
A37: ПЛАТЕЖИ ПРИ ПОЛЬЗОВАНИИ ПРИРОДНЫМИ РЕСУРСАМИ | B37: 048 | C37: 1 12 00000 00 0000 000 | D37: =D38 -> 186.285 | E37: 193.75
A38: Плата за негативное воздействие на окружающую среду | B38: 048 | C38: 1 12 01000 01 0000 120 | D38: =D39+D40+D41 -> 186.285 | E38: 193.75
A39: Плата за выбросы загрязняющих веществ в атмосферный воздух стационарными объектами | B39: 048 | C39: 1 12 01010 01 0000 120 | D39: 98.69 | E39: 102.645
A40: Плата за выбросы загрязняющих веществ в атмосферный воздух передвижными объектами | B40: 048 | C40: 1 12 01020 01 0000 120 | D40: 18.645 | E40: 19.395
A41: Плата за размещение отходов производства и потребления | B41: 048 | C41: 1 12 01040 01 0000 120 | D41: 68.95 | E41: 71.71
A42: ДОХОДЫ ОТ ОКАЗАНИЯ ПЛАТНЫХ УСЛУГ И КОМПЕНСАЦИИ ЗАТРАТ ГОСУДАРСТВА | B42: 000 | C42: 1 13 00000 00 0000 000 | D42: =D43+D44 -> 7680 | E42: 7808
A43: Прочие доходы от оказания платных услуг (работ) получателями средств бюджетов муниципальных районов | B43: 907 | C43: 113 01995 05 0000 130 | D43: 7345 | E43: 7450
A44: Прочие доходы от оказания платных услуг (работ) получателями средств бюджетов муниципальных районов | B44: 904 | C44: 113 01995 05 0000 130 | D44: =D45+D46+D47+D48 -> 335 | E44: 358
A45: Прочие доходы от оказания платных услуг (работ) получателями средств бюджетов муниципальных районов (МКУК МКЦ АЧРМО) | B45: 000 | C45: 113 01995 05 0000 130 | D45: 60 | E45: 65
A46: Прочие доходы от оказания платных услуг (работ) получателями средств бюджетов муниципальных районов (МКУК РИК МУЗЕЙ) | B46: 000 | C46: 113 01995 05 0000 130 | D46: 22 | E46: 23
A47: Прочие доходы от оказания платных услуг (работ) получателями средств бюджетов муниципальных районов (МКУК МБЧР) | B47: 000 | C47: 113 01995 05 0000 130 | D47: 28 | E47: 43
A48: Прочие доходы от оказания платных услуг (работ) получателями средств бюджетов муниципальных районов (МКОУ ДОД ДШИ) | B48: 000 | C48: 113 01995 05 0000 130 | D48: 225 | E48: 227
A49: ДОХОДЫ ОТ ПРОДАЖИ МАТЕРИАЛЬНЫХ И НЕМАТЕРИАЛЬНЫХ АКТИВОВ | B49: 913 | C49: 1 14 00000 00 0000 000 | D49: =D50+D52 -> 601 | E49: 601.5
A50: Доходы от реализации имущества, находящегося в государственной и муниципальной собственности (за исключением имущества автономных учреждений, а также имущества государственных и муниципальных унитарных предприятий, в том числе казенных) | B50: 913 | C50: 1 14 02000 00 0000 000 | D50: =D51 -> 500 | E50: 500
A51: Доходы от реализации иного имущества, находящегося в собственности муниципальных районов (за исключением имущества муниципальных автономных учреждений, а также имущества муниципальных унитарных предприятий, в том числе казенных), в части реализации основных средств по указанному имуществу | B51: 913 | C51: 1 14 02053 05 0000 410 | D51: 500 | E51: 500
A52: Доходы от продажи земельных участков, находящихся в государственной и муниципальной собственности (за исключением земельных участков автономных учреждений) | B52: 913 | C52: 1 14 06000 00 0000 430 | D52: =D53 -> 101 | E52: 101.5
A53: Доходы от продажи земельных участков, государственная собственность на которые не разграничена и которые расположены в границах поселений | B53: 913 | C53: 1 14 06013 10 0000 430 | D53: 101 | E53: 101.5
A54: ШТРАФЫ, САНКЦИИ, ВОЗМЕЩЕНИЕ УЩЕРБА | B54: 000 | C54: 1 16 00000 00 0000 000 | D54: =D55+D56+D57+D61+D65+D64 -> 534.3 | E54: 555.9
A55: Денежные взыскания (штрафы) за нарушение законодательства о налогах и сборах | B55: 182 | C55: 1 16 03000 01 0000 140 | D55: 41 | E55: 43
A56: Денежные взыскания (штрафы) за административные правонарушения в области государственного регулирования производства и оборота этилового спирта, алкогольной и спиртосодержащей продукции | B56: 182 | C56: 1 16 08000 01 0000 140 | D56: 3.4 | E56: 3.6
A57: Денежные взыскания (штрафы) за нарушение законодательства о недрах, об особо охраняемых природных территориях, об охране и использовании животного мира, об экологической экспертизе, в области охраны окружающей среды, земельного законодательства | B57: 000 | C57: 1 16 25000 01 0000 140 | D57: =D59+D60+D58 -> 38 | E57: 38
A58: Денежные взыскания (штрафы) за нарушение законодательства о недрах | B58: 000 | C58: 1 16 25010 01 6000 140 | D58: 1 | E58: 1
A59: Денежные взыскания (штрафы) за нарушение законодательства об охране и использовании животного мира | B59: 815 | C59: 1 16 25030 01 6000 140 | D59: 35 | E59: 35
A60: Денежные взыскания (штрафы) за нарушение земельного законодательства | B60: 081 | C60: 1 16 25060 01 6000 140 | D60: 2 | E60: 2
A61: Денежные взыскания (штрафы) за правонарушения в области дорожного движения | B61: 188 | C61: 1 16 30000 01 0000 140 | D61: =D62+D63 -> 33.8 | E61: 35.9
A62: Денежные взыскания (штрафы) за административные правонарушения в области дорожного движения | B62: 188 | C62: 1 16 30014 01 0000 140 | D62: 2.8 | E62: 2.9
A63: Прочие денежные взыскания (штрафы) за административные правонарушения в области дорожного движения | B63: 188 | C63: 1 16 30030 01 0000 140 | D63: 31 | E63: 33
A64: Денежные взыскания (штрафы) за нарушение законодательства РФ об административных правонарушениях, предусмотренные статьей 20.25 Кодекса РФ об административных правонарушений | B64: 188 | C64: 1 16 43000 01 0000 140 | D64: 2.3 | E64: 2.4
A65: Прочие поступления от денежных взысканий (штрафов) и иных сумм в возмещение ущерба, зачисляемые в бюджеты муниципальных районов | B65: 000 | C65: 1 16 90050 05 0000 140 | D65: =D66+D67+D68+D69+D70+D71+D72 -> 415.8 | E65: 433
A66: Прочие поступления от денежных взысканий (штрафов) и иных сумм в возмещение ущерба, зачисляемые в бюджеты муниципальных районов | B66: 081 | C66: 1 16 90050 05 0000 140 | D66: 15 | E66: 15
A67: Прочие поступления от денежных взысканий (штрафов) и иных сумм в возмещение ущерба, зачисляемые в бюджеты муниципальных районов | B67: 177 | C67: 1 16 90050 05 0000 140 | D67: 40 | E67: 42
A68: Прочие поступления от денежных взысканий (штрафов) и иных сумм в возмещение ущерба, зачисляемые в бюджеты муниципальных районов | B68: 188 | C68: 1 16 90050 05 0000 140 | D68: 62 | E68: 65
A69: Прочие поступления от денежных взысканий (штрафов) и иных сумм в возмещение ущерба, зачисляемые в бюджеты муниципальных районов | B69: 192 | C69: 1 16 90050 05 0000 140 | D69: 178 | E69: 187
A70: Прочие поступления от денежных взысканий (штрафов) и иных сумм в возмещение ущерба, зачисляемые в бюджеты муниципальных районов | B70: 415 | C70: 1 16 90050 05 0000 140 | D70: 63 | E70: 66
A71: Прочие поступления от денежных взысканий (штрафов) и иных сумм в возмещение ущерба, зачисляемые в бюджеты муниципальных районов | B71: 809 | C71: 1 16 90050 05 0000 140 | D71: 50 | E71: 50
A72: Прочие поступления от денежных взысканий (штрафов) и иных сумм в возмещение ущерба, зачисляемые в бюджеты муниципальных районов | B72: 917 | C72: 1 16 90050 05 0000 140 | D72: 7.8 | E72: 8
A73: ПРОЧИЕ НЕНАЛОГОВЫЕ ДОХОДЫ | B73: 000 | C73: 1 17 00000 00 0000 000 | D73: =D74+D75 -> 300 | E73: 300
A74: Невыясненные поступления | B74: 000 | C74: 1 17 01000 00 0000 180 | D74: 0 | E74: 0
A75: Прочие неналоговые доходы | B75: 000 | C75: 1 17 05000 00 0000 180 | D75: 300 | E75: 300
A76: БЕЗВОЗМЕЗДНЫЕ ПОСТУПЛЕНИЯ | B76: 000 | C76: 2 00 00000 00 0000 000 | D76: =D77+D126+D128 -> 375679.1 | E76: =E77+E126+E128 -> 380999.6
A77: БЕЗВОЗМЕЗДНЫЕ ПОСТУПЛЕНИЯ ИЗ ДРУГИХ БЮДЖЕТОВ БЮДЖЕТНОЙ СИСТЕМЫ РФ | B77: 000 | C77: 2 02 00000 00 0000 151 | D77: =D78+D81+D97+D113 -> 375679.1 | E77: =E78+E81+E97+E113 -> 380999.6
A78: ДОТАЦИИ БЮДЖЕТАМ МУНИЦИПАЛЬНЫХ ОБРАЗОВАНИЙ | B78: 000 | C78: 2 02 01000 00 0000 151 | D78: =D79+D80 -> 116683 | E78: 121629
A79: Дотации муниципальным районам на выравнивание уровня бюджетной обеспеченности | B79: 910 | C79: 2 02 01001 05 0000 151 | D79: 116683 | E79: 121629
A80: Дотации муниципальным районам на поддержку мер по обеспечению сбалансированности бюджетов | B80: 910 | C80: 2 02 01003 05 0000 151 | D80: 0 | E80: 0
A81: СУБСИДИИ БЮДЖЕТАМ МУНИЦИПАЛЬНЫХ ОБРАЗОВАНИЙ | B81: 000 | C81: 2 02 02000 00 0000 151 | D81: =D82+D83+D84+D85 -> 2005.1 | E81: 2005.1
A82: Федеральная программа "Молодым семьям - доступное жилье на 2005-2019 годы" | B82: 917 | C82: 2 02 02051 05 0000 151 | D82: 0 | E82: 0
A83: Долгосрочная целевая программа "Энергосбережение и повышение энергетической эффективности на территории Иркутской области на 2011-2015 годы и на период до 2020 года | B83: 910 | C83: 2 02 02150 05 0000 151 | D83: 0 | E83: 0
A84: Областная государственная социальная программа "Молодым семьям- доступное жилье" на 2005-2019 годы" | B84: 917 | C84: 2 02 02008 05 0000 151 | D84: 0 | E84: 0
A85: Прочие субсидии | B85: 000 | C85: 2 02 02999 05 0000 151 | D85: =D86+D87+D88+D89+D90+D91+D93+D94+D96+D95 -> 2005.1 | E85: =E86+E87+E88+E89+E90+E91+E93+E94+E96+E95 -> 2005.1
A86: Субсидии на выплату заработной платы с начислениями на нее педагогическим работникам муниципальных дошкольных образовательных учреждений | B86: 907 | C86: 2 02 02999 05 0000 151 | D86: 2005.1 | E86: 2005.1
A87: Субсидия за счет средств долгосрочной целевой программы Иркутской области "Повышение эффективности бюджетных расходов Иркутской области на 2011-2013 годы" | B87: 910 | C87: 2 02 02999 05 0000 151 | D87: 0 | E87: 0
A88: Погашение кредиторской задолженности учреждений, находящихся в ведении органов местного самоуправления муниципальных образований Иркутской области, по страховым взносам на обязательное пенсионное страхование, сложившейся за период с 1 января 2002 года до 31 декабря 2009 года, и по страховым взносам на обязательное пенсионное страхование, обязательное медицинское страхование и обязательное социальное страхование на случай временной нетрудоспособности и в связи с материнством за период 2010-2011 годы, а также пеней и штрафов, начисленных на задолженность 2010-2011 годов | B88: 910 | C88: 2 02 02999 05 0000 151 | D88: 0 | E88: 0
A89: Погашение реструктуризированной кредиторской задолженности учреждений, находящихся в ведении органов местного самоуправления муниципальных образований Иркутской области, по страховым взносам на обязательное пенсионное страхование, сложившейся за период с 1 января 2002 года до 31 декабря 2009 года, и по страховым взносам на обязательное пенсионное страхование, обязательное медицинское страхование и обязательное социальное страхование на случай временной нетрудоспособности и в связи с материнством за период 2010-2011 годы, а также пеней и штрафов, начисленных на задолженность 2010-2011 годов | B89: 910 | C89: 2 02 02999 05 0000 151 | D89: 0 | E89: 0
A90: Долгосрочная целевая программа "Социальное развитие села Иркутской области на 2011-2014 годы" | B90: 907 | C90: 2 02 02999 05 0000 151
A91: Долгосрочная целевая программа Иркутской области "100 модельных домов культуры Приангарью" на 2011-2014 годы | B91: 917 | C91: 2 02 02999 05 0000 151 | D91: 0 | E91: 0
A93: Долгосрочная целевая программа Иркутской области «Организация и обеспечение отдыха и оздоровления детей в Иркутской области на 2012-2014 годы» | B93: 907 | C93: 2 02 02999 05 0000 151 | D93: 0 | E93: 0
A94: Долгосрочная целевая программа поддержки и развития учреждений дошкольного образования в Иркутской области на 2009-2014 годы» | B94: 907 | C94: 2 02 02999 05 0000 151 | D94: 0 | E94: 0
A95: Долгосрочная целевая программа «Поддержка и развитие малого и среднего предпринимательства в Иркутской области» на 2011-2012 годы (за счет федерального бюджета) | B95: 917 | C95: 2 02 02999 05 0000 151 | D95: 0 | E95: 0
A96: Долгосрочная целевая программа «Поддержка и развитие малого и среднего предпринимательства в Иркутской области» на 2011-2012 годы (за счет областного бюджета) | B96: 917 | C96: 2 02 02999 05 0000 151 | D96: 0 | E96: 0
A97: СУБВЕНЦИИ БЮДЖЕТАМ МУНИЦИПАЛЬНЫХ ОБРАЗОВАНИЙ | B97: 000 | C97: 2 02 03000 00 0000 151 | D97: =D99+D100+D101+D103+D104+D105+D106+D107+D108+D109+D110+D111 -> 256524.7 | E97: =E99+E100+E101+E103+E104+E105+E106+E107+E108+E109+E110+E111 -> 256899.2
A98: Субвенции бюджетам муниципальных районов на осуществление полномочий по подготовке проведения статистических переписей | B98: 917 | C98: 2 02 03002 05 0000 151
A99: Субвенции бюджетам муниципальных районов на составление списков кандидатов в присяжные заседатели федеральных судов общей юрисдикции в Российской Федерации | B99: 917 | C99: 2 02 03007 05 0000 151 | D99: 0 | E99: 0
A100: Субвенции бюджетам на ежемесячное денежное вознаграждение за классное руководство | B100: 907 | C100: 2 02 03021 05 0000 151 | D100: 0 | E100: 0
A101: Субвенции бюджетам муниципальных образований на предоставление гражданам субсидий на оплату жилого помещения и коммунальных услуг | B101: 918 | C101: 2 02 03022 05 0000 151 | D101: 7885.8 | E101: 8234.4
A102: Субвенции местным бюджетам на выполнение переданных полномочий субъектов РФ | B102: 000 | C102: 2 02 03024 05 0000 151 | D102: =D103+D104+D105+D106+D107+D108 -> 10057.4 | E102: =E103+E104+E105+E106+E107+E108 -> 10083.3
A103: Хранение, комплектование, учет и использование архивных документов, относящихся к областной государственной собственности | B103: 917 | C103: 2 02 03024 05 0000 151 | D103: 1086 | E103: 1086
A104: Государственные полномочия в области охраны труда | B104: 917 | C104: 2 02 03024 05 0000 151 | D104: 563.6 | E104: 563.6
A105: Определение персонального состава и обеспечение деятельности районных (городских), районных в городах комиссий по делам несовершеннолетних и защите их прав | B105: 917 | C105: 2 02 03024 05 0000 151 | D105: 1078.1 | E105: 1078.1
A106: Лицензирование розничной продажи алкогольной продукции | B106: 917 | C106: 2 02 03024 05 0000 151 | D106: 404.3 | E106: 430.2
A107: Определение персонального состава и обеспечение деятельности административных комиссий | B107: 917 | C107: 2 02 03024 05 0000 151 | D107: 563.6 | E107: 563.6
A108: Предоставление мер социальной поддержки многодетным и малоимущим семьям | B108: 907 | C108: 2 02 03024 05 0000 151 | D108: 6361.8 | E108: 6361.8
A109: Субвенции бюджетам муниципальных районов на обеспечение жилыми помещениями детей-сирот, детей, оставшихся без попечения родителей, а также детей, находящихся под опекой (попечительством), не имеющих закрепленного жилого помещения | B109: 913 | C109: 2 02 03026 05 0000 151 | D109: 0 | E109: 0
A110: Субвенции бюджетам муниципальных районов на обеспечение жилыми помещениями детей-сирот, детей, оставшихся без попечения родителей, а также детей, находящихся под опекой (попечительством), не имеющих закрепленного жилого помещения (федер.) | B110: 913 | C110: 2 02 03026 05 0000 151 | D110: 0 | E110: 0
A111: Прочие субвенции | B111: 000 | C111: 2 02 03999 05 0000 151 | D111: =D112 -> 238581.5 | E111: 238581.5
A112: Субвенция на обеспечение государственных гарантий прав граждан на получение общедоступного и бесплатного дошкольного, начального общего, основного общего, среднего (полного) общего образования, а также дополнительного образования в общеобразовательных учреждениях | B112: 907 | C112: 2 02 03999 05 0000 151 | D112: 238581.5 | E112: 238581.5
A113: ИНЫЕ МЕЖБЮДЖЕТНЫЕ ТРАНСФЕРТЫ | B113: 000 | C113: 2 02 04000 00 0000 151 | D113: =D114+D119+D120+D124 -> 466.3 | E113: =E114+E119+E120+E124 -> 466.3
A114: Межбюджетные трансферты, передаваемые бюджетам муниципальных районов из бюджетов поселений на осуществление части полномочий по решению вопросов местного значения в соответствии с заключенными соглашениями | B114: 000 | C114: 2 02 04014 05 0000 151 | D114: =D115+D116+D117+D118 -> 0 | E114: 0
A115: Межбюджетные трансферты, передаваемые бюджетам муниципальных районов из бюджетов поселений на осуществление части полномочий по решению вопросов местного значения в соответствии с заключенными соглашениями | B115: 910 | C115: 2 02 04014 05 0000 151 | D115: 0 | E115: 0
A116: Межбюджетные трансферты, передаваемые бюджетам муниципальных районов из бюджетов поселений на осуществление части полномочий по решению вопросов местного значения в соответствии с заключенными соглашениями (правила землепользования) | B116: 918 | C116: 2 02 04014 05 0000 151 | D116: 0 | E116: 0
A117: Межбюджетные трансферты, передаваемые бюджетам муниципальных районов из бюджетов поселений на осуществление части полномочий по решению вопросов местного значения в соответствии с заключенными соглашениями (генплан 5%) | B117: 918 | C117: 2 02 04014 05 0000 151 | D117: 0 | E117: 0
A118: Межбюджетные трансферты, передаваемые бюджетам муниципальных районов из бюджетов поселений на осуществление части полномочий по решению вопросов местного значения в соответствии с заключенными соглашениями (генплан ) | B118: 918 | C118: 2 02 04014 05 0000 151 | D118: 0 | E118: 0
A119: Межбюджетные трансферты, передаваемые бюджетам муниципальных районов на комплектование книжных фондов библиотек муниципальных образований (областной бюджет) | B119: 910 | C119: 2 02 04025 05 0000 151 | D119: 162.7 | E119: 162.7
A120: Межбюджетные трансферты, передаваемые бюджетам муниципальных районов на комплектование книжных фондов библиотек муниципальных образований (федеральный бюджет) | B120: 910 | C120: 2 02 04025 05 0000 151 | D120: 303.6 | E120: 303.6
A121: Прочие межбюджетные трансферты, передаваемые бюджетам муниципальных районов | B121: 000 | C121: 2 02 04999 05 0000 151
A122: Дотации на возмещ.расходов местных бюджетов в связи с предоставлением льгот по оплате жилого помещения и коммунальных услуг педагогическим работникам, проживающим в сельской местности, рабочих поселках (пгт) и работающим в муниц.образоват.учреждениях | B122: 907 | C122: 2 02 04999 05 0000 151
A123: Межбюджетные трансферты в целях финансовой поддержки муниципальных образований Иркутской области, осуществляющих эффективное управление бюджетными средствами | B123: 910 | C123: 2 02 04999 05 0000 151
A124: ПРОЧИЕ МЕЖБЮДЖЕТНЫЕ ТРАНСФЕРТЫ | B124: 000 | C124: 2 02 04999 00 0000 151 | D124: =D125 -> 0 | E124: 0
A125: Резервные фонды исполнительных органов государственной власти субъектов Российской Федерации | B125: 917 | C125: 2 02 04999 05 0000 151 | D125: 0 | E125: 0
A126: ПРОЧИЕ БЕЗВОЗМЕЗДНЫЕ ПОСТУПЛЕНИЯ | B126: 000 | C126: 2 07 00000 00 0000 180 | D126: =D127 -> 0 | E126: 0
A127: Прочие безвозмездные поступления в бюджеты муниципальных районов | B127: 000 | C127: 2 07 05000 05 0000 180 | D127: 0 | E127: 0
A128: ВОЗВРАТ ОТСТАКОВ СУБСИДИЙ И СУБВЕНЦИЙ | B128: 000 | C128: 2 19 00000 00 0000 000 | D128: =D129 -> 0 | E128: 0
A129: Возврат остатков субсидий и субвенций из бюджетов муниципальных районов | B129: 910 | C129: 2 19 05000 05 0000 180 | D129: 0 | E129: 0
A130: ИТОГО ДОХОДОВ | B130: 000 | C130: 8 50 00000 00 0000 000 | D130: =D76+D9 -> 458771.085 | E130: 467324.75
A132: Начальник финансового управления | C132: Ю.Н. Гайдук

Sheet прил3 (админ)
A6: Перечень главных администраторов доходов бюджета Черемховского районного муниципального образования - органов местного самоуправления Черемховского районного муниципального образования
A8: Код бюджетной классификации РФ | C8: Наименование главного администратора доходов районного бюджета
A9: главного администратора доходов | B9: доходов районного бюджета
A10: 904 | C10: Отдел по культуре и библиотечному обслуживанию администрации Черемховского районного муниципального образования
A11: 904 | B11: 1 13 01995 05 0000 130 | C11: Прочие доходы от оказания платных услуг получателями средств бюджетов муниципальных районов и компенсации затрат бюджетов муниципальных районов
A12: 904 | B12: 1 17 01050 05 0000 180 | C12: Невыясненные поступления, зачисляемые в бюджеты муниципальных районов
A13: 904 | B13: 1 17 05050 05 0000 180 | C13: Прочие неналоговые доходы бюджетов муниципальных районов
A14: 904 | B14: 2 02 01999 05 0000 151 | C14: Прочие дотации бюджетам муниципальных районов
A15: 904 | B15: 2 02 02999 05 0000 151 | C15: Прочие субсидии бюджетам муниципальных районов
A16: 904 | B16: 2 02 03999 05 0000 151 | C16: Прочие субвенции бюджетам муниципальных районов
A17: 904 | B17: 2 02 04999 05 0000 151 | C17: Прочие межбюджетные трансферты, передаваемые бюджетам муниципальных районов
A18: 904 | B18: 2 07 05000 05 0000 180 | C18: Прочие безвозмездные поступления в бюджеты муниципальных районов
A19: 907 | C19: Отдел образования администрации Черемховского районного муниципального образования
A20: 907 | B20: 1 13 01995 05 0000 130 | C20: Прочие доходы от оказания платных услуг получателями средств бюджетов муниципальных районов и компенсации затрат бюджетов муниципальных районов
A21: 907 | B21: 1 17 01050 05 0000 180 | C21: Невыясненные поступления, зачисляемые в бюджеты муниципальных районов
A22: 907 | B22: 1 17 05050 05 0000 180 | C22: Прочие неналоговые доходы бюджетов муниципальных районов
A23: 907 | B23: 2 02 01999 05 0000 151 | C23: Прочие дотации бюджетам муниципальных районов
A24: 907 | B24: 2 02 02022 05 0000 151 | C24: Субсидии бюджетам муниципальных образований на внедрение инновационных образовательных программ
A25: 907 | B25: 2 02 02999 05 0000 151 | C25: Прочие субсидии бюджетам муниципальных районов
A26: 907 | B26: 2 02 03021 05 0000 151 | C26: Субвенции бюджетам муниципальных районов на ежемесячное денежное вознаграждение за классное руководство
A27: 907 | B27: 2 02 03024 05 0000 151 | C27: Субвенции бюджетам муниципальных районов на выполнение передаваемых полномочий субъектов РФ
A28: 907 | B28: 2 02 03999 05 0000 151 | C28: Прочие субвенции бюджетам муниципальных районов
A29: 907 | B29: 2 02 04999 05 0000 151 | C29: Прочие межбюджетные трансферты, передаваемые бюджетам муниципальных районов
A30: 907 | B30: 2 07 05000 05 0000 180 | C30: Прочие безвозмездные поступления в бюджеты муниципальных районов
A31: 910 | C31: Финансовое управление Администрации Черемховского районного муниципального образования
A32: 910 | B32: 1 17 01050 05 0000 180 | C32: Невыясненные поступления, зачисляемые в бюджеты муниципальных районов
A33: 910 | B33: 1 17 05050 05 0000 180 | C33: Прочие неналоговые доходы бюджетов муниципальных районов
A34: 910 | B34: 2 02 01001 05 0000 151 | C34: Дотации бюджетам муниципальных районов на выравнивание уровня бюджетной обеспеченности
A35: 910 | B35: 2 02 01003 05 0000 151 | C35: Дотации бюджетам муниципальных районов на поддержку мер по обеспечению сбалансированности бюджетов
A36: 910 | B36: 2 02 01999 05 0000 151 | C36: Прочие дотации бюджетам муниципальных районов
A37: 910 | B37: 2 02 02008 05 0000 151 | C37: Субсидии бюджетам муниципальных районов на обеспечение жильем молодых семей
A38: 910 | B38: 2 02 02999 05 0000 151 | C38: Прочие субсидии бюджетам муниципальных районов
A39: 910 | B39: 2 02 03999 05 0000 151 | C39: Прочие субвенции бюджетам муниципальных районов
A40: 910 | B40: 2 02 04014 05 0000 151 | C40: Межбюджетные трансферты, передаваемые бюджетам муниципальных районов из бюджетов поселений на осуществление части полномочий по решению вопросов местного значения в соответствии с заключенными соглашениями
A41: 910 | B41: 2 02 04025 05 0000 151 | C41: Межбюджетные трансферты, передаваемые бюджетам муниципальных районов на комплектование книжных фондов библиотек муниципальных образований
A42: 910 | B42: 2 02 04999 05 0000 151 | C42: Прочие межбюджетные трансферты, передаваемые бюджетам муниципальных районов
A43: 910 | B43: 2 07 05000 05 0000 180 | C43: Прочие безвозмездные поступления в бюджеты муниципальных районов
A44: 910 | B44: 2 08 05000 05 0000 180 | C44: Перечисления из бюджетов муниципальных районов (в бюджеты муниципальных районов) для осуществления возврата (зачета) излишне уплаченных или излишне взысканных сумм налогов, сборов и иных платежей, а также сумм процентов за несвоевременное осуществление такого возврата и процентов, начисленных на излишне взысканные суммы
A45: 910 | B45: 2 19 05000 05 0000 151 | C45: Возврат остатков субсидий и субвенций из бюджетов муниципальных районов
A46: 913 | C46: Комитет по управлению муниципальным имуществом администрации Черемховского районного муниципального образования
A47: 913 | B47: 1 11 05013 10 0000 120 | C47: Доходы, получаемые в виде арендной платы за земельные участки, государственная собственность на которые не разграничена и которые расположены в границах поселений, а также средства от продажи права на заключение договоров аренды указанных земельных участков
A48: 913 | B48: 1 11 05035 05 0000 120 | C48: Доходы от сдачи в аренду имущества, находящегося в оперативном управлении органов управления муниципальных районов и созданных ими учреждений (за исключением имущества муниципальных автономных учреждений)
A49: 913 | B49: 1 14 02052 05 0000 410 | C49: Доходы от реализации имущества, находящегося в оперативном управлении учреждений, находящихся в ведении органов управления муниципальных районов (за исключением имущества муниципальных автономных учреждений), в части реализации основных средств по указанному имуществу
A50: 913 | B50: 1 14 02052 05 0000 440 | C50: Доходы от реализации имущества, находящегося в оперативном управлении учреждений, находящихся в ведении органов управления муниципальных районов (за исключением имущества муниципальных автономных учреждений), в части реализации материальных запасов по указанному имуществу
A51: 913 | B51: 1 14 02053 05 0000 410 | C51: Доходы от реализации иного имущества, находящегося в собственности муниципальных районов (за исключением имущества муниципальных автономных учреждений, а также имущества муниципальных унитарных предприятий, в том числе казенных), в части реализации основных средств по указанному имуществу
A52: 913 | B52: 1 14 02053 05 0000 440 | C52: Доходы от реализации иного имущества, находящегося в собственности муниципальных районов (за исключением имущества муниципальных автономных учреждений, а также имущества муниципальных унитарных предприятий, в том числе казенных), в части реализации материальных запасов по указанному имуществу
A53: 913 | B53: 1 14 06014 10 0000 430 | C53: Доходы от продажи земельных участков, государственная собственность на которые не разграничена и которые расположены в границах поселений
A54: 913 | B54: 1 14 06025 05 0000 430 | C54: Доходы от продажи земельных участков, находящихся в собственности муниципальных районов (за исключением земельных участков муниципальных автономных учреждений)
A55: 913 | B55: 1 17 01050 05 0000 180 | C55: Невыясненные поступления, зачисляемые в бюджеты муниципальных районов
A56: 913 | B56: 1 17 05050 05 0000 180 | C56: Прочие неналоговые доходы бюджетов муниципальных районов
A57: 913 | B57: 2 02 03026 05 0000 151 | C57: Субвенции бюджетам муниципальных районов на обеспечение жилыми помещениями детей-сирот, детей, оставшихся без попечения родителей, а также детей, находящихся под опекой (попечительством), не имеющих закрепленного жилого помещения
A58: 913 | B58: 2 02 04999 05 0000 151 | C58: Прочие межбюджетные трансферты, передаваемые бюджетам муниципальных районов
A59: 917 | C59: Администрация Черемховского районного муниципального образования
A60: 917 | B60: 1 08 07084 01 1000 110 | C60: Государственная пошлина за совершение действий, связанных с лицензированием, с проведением аттестации в случаях, если такая аттестация предусмотрена законодательством Российской Федерации, зачисляемая в бюджеты муниципальных районов
A61: 917 | B61: 1 16 90050 05 0000 140 | C61: Прочие поступления от денежных взысканий (штрафов) и иных сумм в возмещение ущерба, зачисляемые в бюджеты муниципальных районов
A62: 917 | B62: 1 17 01050 05 0000 180 | C62: Невыясненные поступления, зачисляемые в бюджеты муниципальных районов
A63: 917 | B63: 1 17 05050 05 0000 180 | C63: Прочие неналоговые доходы бюджетов муниципальных районов
A64: 917 | B64: 2 02 01999 05 0000 151 | C64: Прочие дотации бюджетам муниципальных районов
A65: 917 | B65: 2 02 02008 05 0000 151 | C65: Субсидии бюджетам муниципальных районов на обеспечение жильем молодых семей
A66: 917 | B66: 2 02 02105 05 0000 151 | C66: Субсидии бюджетам муниципальных районов на проведение противоаварийных мероприятий в зданиях государственных и муниципальных общеобразовательных учреждений
A67: 917 | B67: 2 02 02999 05 0000 151 | C67: Прочие субсидии бюджетам муниципальных районов
A68: 917 | B68: 2 02 03002 05 0000 151 | C68: Субвенции бюджетам муниципальных районов на осуществление полномочий по подготовке проведения статистических переписей
A69: 917 | B69: 2 02 03007 05 0000 151 | C69: Субвенции бюджетам муниципальных районов на составление списков кандидатов в присяжные заседатели федеральных судов общей юрисдикции в Российской Федерации
A70: 917 | B70: 2 02 03024 05 0000 151 | C70: Субвенции бюджетам муниципальных районов на выполнение передаваемых полномочий субъектов РФ
A71: 917 | B71: 2 02 03999 05 0000 151 | C71: Прочие субвенции бюджетам муниципальных районов
A72: 917 | B72: 2 02 04014 05 0000 151 | C72: Межбюджетные трансферты, передаваемые бюджетам муниципальных районов из бюджетов поселений на осуществление части полномочий по решению вопросов местного значения в соответствии с заключенными соглашениями
A73: 917 | B73: 2 02 04999 05 0000 151 | C73: Прочие межбюджетные трансферты, передаваемые бюджетам муниципальных районов
A74: 917 | B74: 2 07 05000 05 0000 180 | C74: Прочие безвозмездные поступления в бюджеты муниципальных районов
A75: 918 | C75: Управление жилищно-коммунального хозяйства, строительства, транспорта, связи и экологии администрации Черемховского районного муниципального образования
A76: 918 | B76: 1 16 90050 05 0000 140 | C76: Прочие поступления от денежных взысканий (штрафов) и иных сумм в возмещение ущерба, зачисляемые в бюджеты муниципальных районов
A77: 918 | B77: 1 17 01050 05 0000 180 | C77: Невыясненные поступления, зачисляемые в бюджеты муниципальных районов
A78: 918 | B78: 1 17 05050 05 0000 180 | C78: Прочие неналоговые доходы бюджетов муниципальных районов
A79: 918 | B79: 2 02 03022 05 0000 151 | C79: Субвенции бюджетам муниципальных образований на предоставление гражданам субсидий на оплату жилого помещения и коммунальных услуг
A80: 918 | B80: 2 02 04014 05 0000 151 | C80: Межбюджетные трансферты, передаваемые бюджетам муниципальных районов из бюджетов поселений на осуществление части полномочий по решению вопросов местного значения в соответствии с заключенными соглашениями
A81: 918 | B81: 2 07 05000 05 0000 180 | C81: Прочие безвозмездные поступления в бюджеты муниципальных районов
A83: Начальник финансового управления | D83: Ю.Н. Гайдук

Sheet прил4 (админ ОГВ)
A7: Перечень главных администраторов доходов бюджета Черемховского районного муниципального образования - территориальных органов (подразделений) федеральных органов государственной власти и органов государственной власти Иркутской области
A10: Код бюджетной классификации РФ | C10: Наименование главного администратора доходов районного бюджета
A11: главного администратора доходов | B11: доходов районного бюджета
A12: Органы государственной власти Иркутской области
A13: 809 | C13: Министерство сельского хозяйства Иркутской области
A14: 809 | B14: 1 16 90050 05 0000 140 | C14: Прочие поступления от денежных взысканий (штрафов) и иных сумм в возмещение ущерба, зачисляемые в бюджеты муниципальных районов
A15: 815 | C15: Министерство природных ресурсов и экологии Иркутской области
A16: 815 | B16: 1 16 25010 01 0000 140 | C16: Денежные взыскания (штрафы) за нарушение законодательства о недрах
A17: 815 | B17: 1 16 25030 01 0000 140 | C17: Штрафы за нарушение законодательства о животном мире
A18: 815 | B18: 1 16 90050 05 0000 140 | C18: Прочие поступления от денежных взысканий (штрафов) и иных сумм в возмещение ущерба, зачисляемые в бюджеты муниципальных районов
A19: Территориальные органы (подразделения) федеральных органов государственной власти
A20: 141 | C20: Управление Федеральной службы по надзору в сфере защиты прав потребителей и благополучия человека по Иркутской области
A21: 141 | B21: 1 16 28000 01 0000 140 | C21: Денежные взыскания (штрафы) за нарушение законодательства в области обеспечения санитарно-эпидемиологического благополучия человека и законодательства в сфере защиты прав потребителей
A22: 177 | C22: Главное управление Министерства Российской Федерации по делам гражданской обороны, чрезвычайным ситуациям и ликвидации последствий стихийных бедствий по Иркутской области
A23: 177 | B23: 1 16 90050 05 0000 140 | C23: Прочие поступления от денежных взысканий (штрафов) и иных сумм в возмещение ущерба, зачисляемые в бюджеты муниципальных районов
A24: 182 | C24: Управление Федеральной налоговой службы по Иркутской области
A25: 182 | B25: 1 01 01000 00 0000 110 | C25: Налог на прибыль организаций
A26: 182 | B26: 1 01 02000 01 0000 110 | C26: Налог на доходы физических лиц
A27: 182 | B27: 1 05 01000 00 0000 110 | C27: Налог, взимаемый в связи с применением упрощенной системы налогообложения
A28: 182 | B28: 1 05 03000 01 0000 110 | C28: Единый сельскохозяйственный налог
A29: 182 | B29: 1 08 03010 01 0000 110 | C29: Государственная пошлина по делам, рассматриваемым в судах общей юрисдикции, мировыми судьями (за исключением Верховного Суда Российской Федерации)
A30: 182 | B30: 1 09 00000 00 0000 000 | C30: Задолженность и перерасчеты по отмененным налогам, сборам и иным обязательным платежам
A31: 182 | B31: 1 16 03000 01 0000 140 | C31: Денежные взыскания (штрафы) за нарушение законодательства о налогах и сборах
A32: 182 | B32: 1 16 08000 01 0000 140 | C32: Денежные взыскания (штрафы) за административные правонарушения в области государственного регулирования производства и оборота этилового спирта, алкогольной и спиртосодержащей продукции
A33: 188 | C33: Главное управление Министерства внутренних дел Российской Федерации по Иркутской области Восточно-Сибирское линейное управление внутренних дел на транспорте Министерства внутренних дел Российской Федерации
A34: 188 | B34: 1 16 30014 01 0000 140 | C34: Денежные взыскания (штрафы) за административные правонарушения в области дорожного движения
A35: 188 | B35: 1 16 30030 01 0000 140 | C35: Прочие денежные взыскания (штрафы) за административные правонарушения в области дорожного движения
A36: 188 | B36: 1 16 43000 01 0000 140 | C36: Денежные взыскания (штрафы) за нарушение законодательства РФ об административных правонарушениях, предусмотренные статьей 20.25 Кодекса РФ об административных правонарушений
A37: 188 | B37: 1 16 90050 05 0000 140 | C37: Прочие поступления от денежных взысканий (штрафов) и иных сумм в возмещение ущерба, зачисляемые в бюджеты муниципальных районов
A38: 192 | C38: Управление Федеральной миграционной службы по Иркутской области
A39: 192 | B39: 1 16 90050 05 0000 140 | C39: Прочие поступления от денежных взысканий (штрафов) и иных сумм в возмещение ущерба, зачисляемые в бюджеты муниципальных районов
A40: 048 | C40: Управление Федеральной службы по надзору в сфере природопользования по Иркутской области
A41: 048 | B41: 1 12 01000 01 0000 120 | C41: Плата за негативное воздействие на окружающую среду
A42: 048 | B42: 1 12 01010 01 0000 120 | C42: Плата за выбросы загрязняющих веществ в атмосферный воздух стационарными объектами
A43: 048 | B43: 1 12 01020 01 0000 120 | C43: Плата за выбросы загрязняющих веществ в атмосферный воздух передвижными объектами
A44: 048 | B44: 1 12 01040 01 0000 120 | C44: Плата за размещение отходов производства и потребления
A45: Иные доходы бюджета Черемховского районного муниципального образования, администрирование которых может осуществляться территориальными органами (подразделениями) федеральных органов государственной власти и органами государственной власти Иркутской области
B46: 1 16 90050 05 0000 140 | C46: Прочие поступления от денежных взысканий (штрафов) и иных сумм в возмещение ущерба, зачисляемые в бюджеты муниципальных районов
A49: Начальник финансового управления | D49: Ю.Н. Гайдук

Sheet прил 5 адм источн
A8: Перечень главных администраторов источников финансирования дефицита бюджета Черемховского районного муниципального образования
A11: Код бюджетной классификации Российской Федерации | C11: Наименование главного администратора источников финансирования дефицита бюджета Черемховского районного муниципального образования
A12: главного администратора источников | B12: источников финансирования дефицита бюджета Черемховского районного муниципального образования
A13: 910 | C13: Финансовое управление администрации Черемховского районного муниципального образования
A14: 910 | B14: 01 02 00 00 05 0000710 | C14: Кредиты кредитных организаций в валюте Российской Федерации
A15: 910 | B15: 01 03 00 0005 0000 000 | C15: Бюджетные кредиты от других бюджетов бюджетной системы Российской Федерации в валюте Российской Федерации
A16: 910 | B16: 01 05 02 00 05 0000 510 | C16: Увеличение прочих остатков средств бюджетов муниципальных районов
A18: Начальник финансового управления | C18: Ю.Н. Гайдук

Sheet прил6
A7: Распределение бюджетных ассигнований по разделам, подразделам, целевым статьям и видам расходов классификации расходов бюджетов на 2013 год
A10: Наименование показателя | B10: Код | F10: Сумма, тыс. руб.
B11: раздела | C11: подраздела | D11: целевой статьи | E11: вида расходов
A12: 1 | B12: 2 | C12: 3 | D12: 4 | E12: 5 | F12: 6
A13: ОБЩЕГОСУДАРСТВЕННЫЕ ВОПРОСЫ | B13: 1 | C13: 0 | D13: 0 | E13: 0 | F13: 65588
A14: Функционирование высшего должностного лица субъекта Российской Федерации и муниципального образования | B14: 1 | C14: 2 | D14: 0 | E14: 0 | F14: 1751.7
A15: Руководство и управление в сфере установленных функций органов государственной власти субъектов Российской Федерации и органов местного самоуправления | B15: 1 | C15: 2 | D15: 20000 | E15: 0 | F15: 1751.7
A16: Глава муниципального образования | B16: 1 | C16: 2 | D16: 20300 | E16: 0 | F16: 1751.7
A17: Выполнение функций органами местного самоуправления | B17: 1 | C17: 2 | D17: 20300 | E17: 500 | F17: 1751.7
A18: Функционирование законодательных (представительных) органов государственной власти и представительных органов муниципальных образований | B18: 1 | C18: 3 | D18: 0 | E18: 0 | F18: 1180.4
A19: Руководство и управление в сфере установленных функций органов государственной власти субъектов Российской Федерации и органов местного самоуправления | B19: 1 | C19: 3 | D19: 20000 | E19: 0 | F19: 1180.4
A20: Центральный аппарат | B20: 1 | C20: 3 | D20: 20400 | E20: 0 | F20: 363.6
A21: Выполнение функций органами местного самоуправления | B21: 1 | C21: 3 | D21: 20400 | E21: 500 | F21: 363.6
A22: Председатель представительного органа муниципального образования | B22: 1 | C22: 3 | D22: 21100 | E22: 0 | F22: 816.8
A23: Выполнение функций органами местного самоуправления | B23: 1 | C23: 3 | D23: 21100 | E23: 500 | F23: 816.8
A24: Функционирование Правительства Российской Федерации, высших исполнительных органов государственной власти субъектов Российской Федерации, местных администраций | B24: 1 | C24: 4 | D24: 0 | E24: 0 | F24: 25658.3
A25: Руководство и управление в сфере установленных функций органов государственной власти субъектов Российской Федерации и органов местного самоуправления | B25: 1 | C25: 4 | D25: 20000 | E25: 0 | F25: 25658.3
A26: Центральный аппарат | B26: 1 | C26: 4 | D26: 20400 | E26: 0 | F26: 25658.3
A27: Выполнение функций органами местного самоуправления | B27: 1 | C27: 4 | D27: 20400 | E27: 500 | F27: 25658.3
A28: Обеспечение деятельности финансовых, налоговых и таможенных органов и органов финансового (финансово-бюджетного) надзора | B28: 1 | C28: 6 | D28: 0 | E28: 0 | F28: 9438.4
A29: Руководство и управление в сфере установленных функций органов государственной власти субъектов Российской Федерации и органов местного самоуправления | B29: 1 | C29: 6 | D29: 20000 | E29: 0 | F29: 9238.4
A30: Центральный аппарат | B30: 1 | C30: 6 | D30: 20400 | E30: 0 | F30: 8251.4
A31: Выполнение функций органами местного самоуправления | B31: 1 | C31: 6 | D31: 20400 | E31: 500 | F31: 8251.4
A32: Руководитель контрольно-счетной палаты муниципального образования и его заместители | B32: 1 | C32: 6 | D32: 22500 | E32: 0 | F32: 987
A33: Выполнение функций органами местного самоуправления | B33: 1 | C33: 6 | D33: 22500 | E33: 500 | F33: 987
A34: Целевые программы муниципальных образований | B34: 1 | C34: 6 | D34: 7950000 | E34: 0 | F34: 200
A35: Долгосрочная целевая программа Черемховского районного муниципального образования "Повышение эффективности бюджетных расходов Черемховского районного муниципального образования на 2012-2013 годы" | B35: 1 | C35: 6 | D35: 7950200 | E35: 0 | F35: 200
A36: Выполнение функций органами местного самоуправления | B36: 1 | C36: 6 | D36: 7950200 | E36: 500 | F36: 200
A37: Обеспечение проведения выборов и референдумов | B37: 1 | C37: 7 | D37: 0 | E37: 0 | F37: 0
A38: Проведение выборов и референдумов | B38: 1 | C38: 7 | D38: 200000 | E38: 0 | F38: 0
A39: Проведение выборов и референдумов | B39: 1 | C39: 7 | D39: 200000 | E39: 0 | F39: 0
A40: Проведение выборов в представительные органы муниципального образования | B40: 1 | C40: 7 | D40: 200002 | E40: 0 | F40: 0
A41: Выполнение функций органами местного самоуправления | B41: 1 | C41: 7 | D41: 200002 | E41: 500 | F41: 0
A42: Резервные фонды | B42: 1 | C42: 11 | D42: 0 | E42: 0 | F42: 300
A43: Резервные фонды | B43: 1 | C43: 11 | D43: 700000 | E43: 0 | F43: 300
A44: Резервные фонды местных администраций | B44: 1 | C44: 11 | D44: 700500 | E44: 0 | F44: 300
A45: Выполнение функций органами местного самоуправления | B45: 1 | C45: 11 | D45: 700500 | E45: 500 | F45: 300
A46: Другие общегосударственные вопросы | B46: 1 | C46: 13 | D46: 0 | E46: 0 | F46: 27259.2
A47: Руководство и управление в сфере установленных функций органов государственной власти субъектов Российской Федерации и органов местного самоуправления | B47: 1 | C47: 13 | D47: 20000 | E47: 0 | F47: 19933.4
A48: Центральный аппарат | B48: 1 | C48: 13 | D48: 20400 | E48: 0 | F48: 2820
A49: Выполнение функций органами местного самоуправления | B49: 1 | C49: 13 | D49: 20400 | E49: 500 | F49: 2820
A50: Осуществление областных государственных полномочий по хранению, комплектованию, учету и использованию архивных документов, относящихся к государственной собственности Иркутской области | B50: 1 | C50: 13 | D50: 24000 | E50: 0 | F50: 1086
A51: Выполнение функций органами местного самоуправления | B51: 1 | C51: 13 | D51: 24000 | E51: 500 | F51: 1086
A52: Осуществление областных государственных полномочий по определению персонального состава и обеспечению деятельности административных комиссий | B52: 1 | C52: 13 | D52: 24300 | E52: 0 | F52: 563.6
A53: Выполнение функций органами местного самоуправления | B53: 1 | C53: 13 | D53: 24300 | E53: 500 | F53: 563.6
A54: Осуществление отдельных государственных полномочий в области производства и оборота этилового спирта, алкогольной и спиртосодержащей продукции | B54: 1 | C54: 13 | D54: 24400 | E54: 0 | F54: 375.7
A55: Выполнение функций органами местного самоуправления | B55: 1 | C55: 13 | D55: 24400 | E55: 500 | F55: 375.7
A56: Осуществление отдельных областных государственных полномочий в области охраны труда | B56: 1 | C56: 13 | D56: 24500 | E56: 0 | F56: 563.6
A57: Выполнение функций органами местного самоуправления | B57: 1 | C57: 13 | D57: 24500 | E57: 500 | F57: 563.6
A58: Обеспечение деятельности подведомственных учреждений | B58: 1 | C58: 13 | D58: 29900 | E58: 0 | F58: 14524.5
A59: Выполнение функций казенными учреждениями | B59: 1 | C59: 13 | D59: 29900 | E59: 001 | F59: 13624.5
A60: Субсидии бюджетным учреждениям на финансовое обеспечение муниципального задания на оказание муниципальных услуг (выполнение работ) | B60: 1 | C60: 13 | D60: 29900 | E60: 611 | F60: 900
A61: Реализация государственных функций, связанных с общегосударственным управлением | B61: 1 | C61: 13 | D61: 920000 | E61: 0 | F61: 170.8
A62: Выполнение других обязательств государства | B62: 1 | C62: 13 | D62: 920300 | E62: 0 | F62: 170.8
A63: Выполнение функций органами местного самоуправления | B63: 1 | C63: 13 | D63: 920300 | E63: 500 | F63: 170.8
A64: Учреждения по обеспечению хозяйственного обслуживания | B64: 1 | C64: 13 | D64: 930000 | E64: 0 | F64: 6500
A65: Субсидии бюджетным учреждениям на финансовое обеспечение муниципального задания на оказание муниципальных услуг (выполнение работ) | B65: 1 | C65: 13 | D65: 930000 | E65: 611 | F65: 6500
A66: Целевые программы муниципальных образований | B66: 1 | C66: 13 | D66: 7950000 | E66: 0 | F66: 655
A67: Долгосрочная целевая программа "Улучшение условий и охраны труда в Черемховском районе на 2011-2013гг." | B67: 1 | C67: 13 | D67: 7951400 | E67: 0 | F67: 15
A68: Выполнение функций органами местного самоуправления | B68: 1 | C68: 13 | D68: 7951400 | E68: 500 | F68: 15
A69: Долгосрочная целевая программа "Инвентаризация муниципальных объектов недвижимости Черемховского районного муниципального образования на 2012-2014 годы" | B69: 1 | C69: 13 | D69: 7951900 | E69: 0 | F69: 500
A70: Выполнение функций органами местного самоуправления | B70: 1 | C70: 13 | D70: 7951900 | E70: 500 | F70: 500
A71: Комплексная программа "Профилактика правонарушений в Черемховском районном муниципальном образовании на 2013-2016 годы" | B71: 1 | C71: 13 | D71: 7952600 | E71: 0 | F71: 40
A72: Выполнение функций органами местного самоуправления | B72: 1 | C72: 13 | D72: 7952600 | E72: 500 | F72: 40
A73: Долгосрочная целевая программа "Поддержка молодых педагогов на территории Черемховского районного муниципального образования" на 2012-2013 годы | B73: 1 | C73: 13 | D73: 7952700 | E73: 0 | F73: 100
A74: Выполнение функций органами местного самоуправления | B74: 1 | C74: 13 | D74: 7952700 | E74: 500 | F74: 100
A75: НАЦИОНАЛЬНАЯ ЭКОНОМИКА | B75: 4 | C75: 0 | D75: 0 | E75: 0 | F75: 801.6
A76: Дорожное хозяйство(дорожные фонды) | B76: 4 | C76: 9 | D76: 0 | E76: 0 | F76: 201.6
A77: Целевые программы муниципальных образований | B77: 4 | C77: 9 | D77: 7950000 | E77: 0 | F77: 201.6
A78: Долгосрочная целевая программа "Развитие автомобильных дорог Черемховского районного муниципального образования на 2013-2015 годы" | B78: 4 | C78: 9 | D78: 7952300 | E78: 0 | F78: 201.6
A79: Выполнение функций органами местного самоуправления | B79: 4 | C79: 9 | D79: 7952300 | E79: 500 | F79: 201.6
A80: Другие вопросы в области национальной экономики | B80: 4 | C80: 12 | D80: 0 | E80: 0 | F80: 600
A81: Целевые программы муниципальных образований | B81: 4 | C81: 12 | D81: 7950000 | E81: 0 | F81: 600
A82: Долгосрочная целевая программа "Инвентаризация муниципальных объектов недвижимости Черемховского районного муниципального образования на 2012-2014 годы" | B82: 4 | C82: 12 | D82: 7951900 | E82: 0 | F82: 500
A83: Выполнение функций органами местного самоуправления | B83: 4 | C83: 12 | D83: 7951900 | E83: 500 | F83: 500
A84: Долгосрочная целевая программа "Поддержка и развитие малого и среднего предпринимательства в Черемховском районе" на 2013-2014 годы | B84: 4 | C84: 12 | D84: 7952200 | E84: 0 | F84: 100
A85: Выполнение функций органами местного самоуправления | B85: 4 | C85: 12 | D85: 7952200 | E85: 500 | F85: 100
A86: ЖИЛИЩНО-КОММУНАЛЬНОЕ ХОЗЯЙСТВО | B86: 5 | C86: 0 | D86: 0 | E86: 0 | F86: 5800.9
A87: Жилищное хозяйство | B87: 5 | C87: 1 | D87: 0 | E87: 0 | F87: 500
A88: Поддержка жилищного хозяйства | B88: 5 | C88: 1 | D88: 3500000 | E88: 0 | F88: 500
A89: Мероприятия в области жилищного хозяйства | B89: 5 | C89: 1 | D89: 3500300 | E89: 0 | F89: 500
A90: Выполнение функций органами местного самоуправления | B90: 5 | C90: 1 | D90: 3500300 | E90: 500 | F90: 500
A91: Другие вопросы в области жилищно-коммунального хозяйства | B91: 5 | C91: 5 | D91: 0 | E91: 0 | F91: 5300.9
A92: Руководство и управление в сфере установленных функций органов государственной власти субъектов Российской Федерации и органов местного самоуправления | B92: 5 | C92: 5 | D92: 20000 | E92: 0 | F92: 5300.9
A93: Центральный аппарат | B93: 5 | C93: 5 | D93: 20400 | E93: 0 | F93: 5300.9
A94: Выполнение функций органами местного самоуправления | B94: 5 | C94: 5 | D94: 20400 | E94: 500 | F94: 5300.9
A95: ОБРАЗОВАНИЕ | B95: 7 | C95: 0 | D95: 0 | E95: 0 | F95: 363836.5
A96: Дошкольное образование | B96: 7 | C96: 1 | D96: 0 | E96: 0 | F96: 66965.7
A97: Детские дошкольные учреждения | B97: 7 | C97: 1 | D97: 4200000 | E97: 0 | F97: 61865.7
A98: Обеспечение деятельности подведомственных учреждений | B98: 7 | C98: 1 | D98: 4209900 | E98: 0 | F98: 61865.7
A99: Выполнение функций казенными учреждениями | B99: 7 | C99: 1 | D99: 4209900 | E99: 001 | F99: 61865.7
A100: Выплата заработной платы с начислениями на нее педагогическим работникам муниципальных дошкольных образовательных учреждений и муниципальных учреждений дополнительного образования | B100: 7 | C100: 1 | D100: 5890000 | E100: 0 | F100: 1465
A101: Выполнение функций казенными учреждениями | B101: 7 | C101: 1 | D101: 5890000 | E101: 001 | F101: 1465
A102: Целевые программы муниципальных образований | B102: 7 | C102: 1 | D102: 7950000 | E102: 0 | F102: 3635
A103: Долгосрочная целевая программа Черемховского районного муниципального образования "Повышение эффективности бюджетных расходов Черемховского районного муниципального образования на 2012-2013 годы" | B103: 7 | C103: 1 | D103: 7950200 | E103: 0 | F103: 2011
A104: Выполнение функций казенными учреждениями | B104: 7 | C104: 1 | D104: 7950200 | E104: 001 | F104: 2011
A105: Долгосрочная целевая программа "Безопасность образовательных учреждений на 2010-2014 гг." | B105: 7 | C105: 1 | D105: 7951000 | E105: 0 | F105: 572
A106: Мероприятия по обеспечению пожарной безопасности | B106: 7 | C106: 1 | D106: 7951000 | E106: 450 | F106: 572
A107: Долгосрочная целевая программа энергосбережения и повышения энергетической эффективности Черемховского районного муниципального образования на 2010-2015 годы | B107: 7 | C107: 1 | D107: 7951100 | E107: 0 | F107: 0
A108: Мероприятия по повышению энергетической эффективности | B108: 7 | C108: 1 | D108: 7951100 | E108: 451 | F108: 0
A109: Долгосрочная целевая программа "Развитие дошкольного образования на 2011-2014 гг." | B109: 7 | C109: 1 | D109: 7951700 | E109: 0 | F109: 702
A110: Мероприятия в сфере образования | B110: 7 | C110: 1 | D110: 7951700 | E110: 022 | F110: 702
A111: Долгосрочная целевая программа "Совершенствование дошкольного образования Черемховского района на 2011-2014 гг." | B111: 7 | C111: 1 | D111: 7951800 | E111: 0 | F111: 350
A112: Мероприятия в сфере образования | B112: 7 | C112: 1 | D112: 7951800 | E112: 022 | F112: 350
A113: Общее образование | B113: 7 | C113: 2 | D113: 0 | E113: 0 | F113: 288954.6
A114: Руководство и управление в сфере установленных функций органов государственной власти субъектов Российской Федерации и органов местного самоуправления | B114: 7 | C114: 2 | D114: 20000 | E114: 0 | F114: 238581.5
A115: Обеспечение государственных гарантий прав граждан на получение общедоступного и бесплатного дошкольного, начального общего, основного общего, среднего (полного) общего образования, а также дополнительного образования в общеобразовательных учреждениях | B115: 7 | C115: 2 | D115: 25000 | E115: 0 | F115: 238581.5
A116: Выполнение функций казенными учреждениями | B116: 7 | C116: 2 | D116: 25000 | E116: 001 | F116: 238581.5
A117: Школы - детские сады, школы начальные, неполные средние и средние | B117: 7 | C117: 2 | D117: 4210000 | E117: 0 | F117: 16326.8
A118: Обеспечение деятельности подведомственных учреждений | B118: 7 | C118: 2 | D118: 4219900 | E118: 0 | F118: 16326.8
A119: Выполнение функций казенными учреждениями | B119: 7 | C119: 2 | D119: 4219900 | E119: 001 | F119: 16326.8
A120: Учреждения по внешкольной работе с детьми | B120: 7 | C120: 2 | D120: 4230000 | E120: 0 | F120: 25057.4
A121: Обеспечение деятельности подведомственных учреждений | B121: 7 | C121: 2 | D121: 4239900 | E121: 0 | F121: 25057.4
A122: Выполнение функций казенными учреждениями | B122: 7 | C122: 2 | D122: 4239900 | E122: 001 | F122: 25057.4
A123: Выплата заработной платы с начислениями на нее педагогическим работникам муниципальных дошкольных образовательных учреждений и муниципальных учреждений дополнительного образования | B123: 7 | C123: 2 | D123: 5890000 | E123: 0 | F123: 540.1
A124: Выполнение функций казенными учреждениями | B124: 7 | C124: 2 | D124: 5890000 | E124: 001 | F124: 540.1
A125: Целевые программы муниципальных образований | B125: 7 | C125: 2 | D125: 7950000 | E125: 0 | F125: 8448.8
A126: Долгосрочная целевая программа Черемховского районного муниципального образования "Повышение эффективности бюджетных расходов Черемховского районного муниципального образования на 2012-2013 годы" | B126: 7 | C126: 2 | D126: 7950200 | E126: 0 | F126: 5178
A127: Выполнение функций казенными учреждениями | B127: 7 | C127: 2 | D127: 7950200 | E127: 001 | F127: 5178
A128: Долгосрочная целевая программа "Безопасность образовательных учреждений на 2010-2014 гг." | B128: 7 | C128: 2 | D128: 7951000 | E128: 0 | F128: 1128
A129: Мероприятия по обеспечению пожарной безопасности | B129: 7 | C129: 2 | D129: 7951000 | E129: 450 | F129: 1128
A130: Долгосрочная целевая программа энергосбережения и повышения энергетической эффективности Черемховского районного муниципального образования на 2010-2015 годы | B130: 7 | C130: 2 | D130: 7951100 | E130: 0 | F130: 600
A131: Мероприятия по повышению энергетической эффективности | B131: 7 | C131: 2 | D131: 7951100 | E131: 451 | F131: 600
A132: Долгосрочная целевая программа "Ветхие школы Черемховского района" на 2011-2013 гг. | B132: 7 | C132: 2 | D132: 7951500 | E132: 0 | F132: 450
A133: Мероприятия в сфере образования | B133: 7 | C133: 2 | D133: 7951500 | E133: 022 | F133: 450
A134: Долгосрочная целевая программа "Совершенствование организации питания в образовательных учреждениях Черемховского района на 2011-2013гг." | B134: 7 | C134: 2 | D134: 7951600 | E134: 0 | F134: 1000
A135: Мероприятия в сфере образования | B135: 7 | C135: 2 | D135: 7951600 | E135: 022 | F135: 1000
A136: Долгосрочная целевая программа "Развитие культуры в Черемховском районном муниципальном образовании на период 2012-2016 гг." | B136: 7 | C136: 2 | D136: 7952000 | E136: 0 | F136: 92.8
A137: Мероприятия по поддержке и развитию культуры, искусства, кинематографии | B137: 7 | C137: 2 | D137: 7952000 | E137: 023 | F137: 92.8
A138: Профессиональная подготовка, переподготовка и повышение квалификации | B138: 7 | C138: 5 | D138: 0 | E138: 0 | F138: 134.1
A139: Мероприятия по переподготовке и повышению квалификации | B139: 7 | C139: 5 | D139: 4340000 | E139: 0 | F139: 134.1
A140: Выполнение функций казенными учреждениями | B140: 7 | C140: 5 | D140: 4340000 | E140: 001 | F140: 108.1
A141: Выполнение функций органами местного самоуправления | B141: 7 | C141: 5 | D141: 4340000 | E141: 500 | F141: 26
A142: Молодежная политика и оздоровление детей | B142: 7 | C142: 7 | D142: 0 | E142: 0 | F142: 222
A143: Организационно-воспитательная работа с молодежью | B143: 7 | C143: 7 | D143: 4310000 | E143: 0 | F143: 46
A144: Проведение мероприятий для детей и молодежи | B144: 7 | C144: 7 | D144: 4310100 | E144: 0 | F144: 46
A145: Проведение мероприятия для детей и молодежи | B145: 7 | C145: 7 | D145: 4310100 | E145: 447 | F145: 46
A146: Мероприятия по проведению оздоровительной кампании детей | B146: 7 | C146: 7 | D146: 4320000 | E146: 0 | F146: 126
A147: Оплата стоимости набора продуктов питания для детей в организованных органами местного самоуправления оздоровительных лагерях с дневным пребыванием детей за счет средств областного бюджета | B147: 7 | C147: 7 | D147: 4320300 | E147: 0 | F147: 126
A148: Оплата стоимости набора продуктов питания для детей в организованных органами местного самоуправления оздоровительных лагерях с дневным пребыванием детей за счет средств местного бюджета | B148: 7 | C148: 7 | D148: 4320302 | E148: 0 | F148: 126
A149: Выполнение функций казенными учреждениями | B149: 7 | C149: 7 | D149: 4320302 | E149: 001 | F149: 126
A150: Целевые программы муниципальных образований | B150: 7 | C150: 7 | D150: 7950000 | E150: 0 | F150: 50
A151: Долгосрочная целевая программа "Комплексные меры профилактики злоупотребления наркотическими средствами и психотропными веществами в Черемховском районном муниципальном образовании на 2011-2013 гг." | B151: 7 | C151: 7 | D151: 7951300 | E151: 0 | F151: 10
A152: Выполнение функций органами местного самоуправления | B152: 7 | C152: 7 | D152: 7951300 | E152: 500 | F152: 10
A153: Долгосрочная целевая программа "Молодежная политика в Черемховском районном муниципальном образовании" на 2013-2015 гг. | B153: 7 | C153: 7 | D153: 7952500 | E153: 0 | F153: 40
A154: Проведение мероприятия для детей и молодежи | B154: 7 | C154: 7 | D154: 7952500 | E154: 447 | F154: 40
A155: Другие вопросы в области образования | B155: 7 | C155: 9 | D155: 0 | E155: 0 | F155: 7560.1
A156: Руководство и управление в сфере установленных функций органов государственной власти субъектов Российской Федерации и органов местного самоуправления | B156: 7 | C156: 9 | D156: 20000 | E156: 0 | F156: 2560.1
A157: Центральный аппарат | B157: 7 | C157: 9 | D157: 20400 | E157: 0 | F157: 2560.1
A158: Выполнение функций органами местного самоуправления | B158: 7 | C158: 9 | D158: 20400 | E158: 500 | F158: 2560.1
A159: Учебно-методические кабинеты, централизованные бухгалтерии, группы хозяйственного обслуживания, учебные фильмотеки, межшкольные учебно-производственные комбинаты, логопедические пункты | B159: 7 | C159: 9 | D159: 4520000 | E159: 0 | F159: 5000
A160: Субсидии бюджетным учреждениям на финансовое обеспечение муниципального задания на оказание муниципальных услуг (выполнение работ) | B160: 7 | C160: 9 | D160: 4520000 | E160: 611 | F160: 5000
A161: КУЛЬТУРА И КИНЕМАТОГРАФИЯ | B161: 8 | C161: 0 | D161: 0 | E161: 0 | F161: 15466.2
A162: Культура | B162: 8 | C162: 1 | D162: 0 | E162: 0 | F162: 14302
A163: Учреждения культуры и мероприятия в сфере культуры и кинематографии | B163: 8 | C163: 1 | D163: 4400000 | E163: 0 | F163: 5096.3
A164: Комплектование книжных фондов библиотек муниципальных образований и государственных библиотек городов Москвы и Санкт-Петербурга | B164: 8 | C164: 1 | D164: 4400200 | E164: 0 | F164: 466.3
A165: Комплектование книжных фондов библиотек муниципальных образований и государственных библиотек городов Москвы и Санкт-Петербурга за счет средств федерального бюджета | B165: 8 | C165: 1 | D165: 4400201 | E165: 0 | F165: 303.6
A166: Выполнение функций казенными учреждениями | B166: 8 | C166: 1 | D166: 4400201 | E166: 001 | F166: 303.6
A167: Комплектование книжных фондов библиотек муниципальных образований и государственных библиотек городов Москвы и Санкт-Петербурга за счет областного бюджета | B167: 8 | C167: 1 | D167: 4400202 | E167: 0 | F167: 162.7
A168: Выполнение функций казенными учреждениями | B168: 8 | C168: 1 | D168: 4400202 | E168: 001 | F168: 162.7
A169: Обеспечение деятельности подведомственных учреждений | B169: 8 | C169: 1 | D169: 4409900 | E169: 0 | F169: 4630
A170: Выполнение функций казенными учреждениями | B170: 8 | C170: 1 | D170: 4409900 | E170: 001 | F170: 4630
A171: Музеи и постоянные выставки | B171: 8 | C171: 1 | D171: 4410000 | E171: 0 | F171: 1081.1
A172: Обеспечение деятельности подведомственных учреждений | B172: 8 | C172: 1 | D172: 4419900 | E172: 0 | F172: 1081.1
A173: Выполнение функций казенными учреждениями | B173: 8 | C173: 1 | D173: 4419900 | E173: 001 | F173: 1081.1
A174: Библиотеки | B174: 8 | C174: 1 | D174: 4420000 | E174: 0 | F174: 6603.6
A175: Обеспечение деятельности подведомственных учреждений | B175: 8 | C175: 1 | D175: 4429900 | E175: 0 | F175: 6603.6
A176: Выполнение функций казенными учреждениями | B176: 8 | C176: 1 | D176: 4429900 | E176: 001 | F176: 6603.6
A177: Целевые программы муниципальных образований | B177: 8 | C177: 1 | D177: 7950000 | E177: 0 | F177: 1521
A178: Долгосрочная целевая программа Черемховского районного муниципального образования "Повышение эффективности бюджетных расходов Черемховского районного муниципального образования на 2012-2013 годы" | B178: 8 | C178: 1 | D178: 7950200 | E178: 0 | F178: 308
A179: Выполнение функций казенными учреждениями | B179: 8 | C179: 1 | D179: 7950200 | E179: 001 | F179: 308
A180: Долгосрочная целевая программа энергосбережения и повышения энергетической эффективности Черемховского районного муниципального образования на 2010-2015 годы | B180: 8 | C180: 1 | D180: 7951100 | E180: 0 | F180: 282
A181: Мероприятия по повышению энергетической эффективности | B181: 8 | C181: 1 | D181: 7951100 | E181: 451 | F181: 282
A182: Долгосрочная целевая программа "Развитие культуры в Черемховском районном муниципальном образовании на период 2012-2016 гг." | B182: 8 | C182: 1 | D182: 7952000 | E182: 0 | F182: 931
A183: Мероприятия по поддержке и развитию культуры, искусства, кинематографии | B183: 8 | C183: 1 | D183: 7952000 | E183: 023 | F183: 931
A184: Другие вопросы в области культуры, кинематографии | B184: 8 | C184: 4 | D184: 0 | E184: 0 | F184: 1164.2
A185: Руководство и управление в сфере установленных функций органов государственной власти субъектов Российской Федерации и органов местного самоуправления | B185: 8 | C185: 4 | D185: 20000 | E185: 0 | F185: 1164.2
A186: Центральный аппарат | B186: 8 | C186: 4 | D186: 20400 | E186: 0 | F186: 1164.2
A187: Выполнение функций органами местного самоуправления | B187: 8 | C187: 4 | D187: 20400 | E187: 500 | F187: 1164.2
A188: Социальная политика | B188: 10 | C188: 0 | D188: 0 | E188: 0 | F188: 19692.4
A189: Пенсионное обеспечение | B189: 10 | C189: 1 | D189: 0 | E189: 0 | F189: 2980
A190: Доплаты к пенсиям, дополнительное пенсионное обеспечение | B190: 10 | C190: 1 | D190: 4910000 | E190: 0 | F190: 2980
A191: Доплаты к пенсиям государственных служащих субъектов Российской Федерации и муниципальных служащих | B191: 10 | C191: 1 | D191: 4910100 | E191: 0 | F191: 2980
A192: Социальные выплаты | B192: 10 | C192: 1 | D192: 4910100 | E192: 005 | F192: 2980
A193: Социальное обеспечение населения | B193: 10 | C193: 3 | D193: 0 | E193: 0 | F193: 15006.3
A194: Руководство и управление в сфере установленных функций органов государственной власти субъектов Российской Федерации и органов местного самоуправления | B194: 10 | C194: 3 | D194: 20000 | E194: 0 | F194: 13896
A195: Осуществление отдельных областных государственных полномочий по предоставлению мер социальной поддержки многодетным и малоимущим семьям | B195: 10 | C195: 3 | D195: 24600 | E195: 0 | F195: 6361.8
A196: Социальные выплаты | B196: 10 | C196: 3 | D196: 24600 | E196: 005 | F196: 6361.8
A197: Осуществление областных государственных полномочий по предоставлению гражданам субсидий на оплату жилых помещений и коммунальных услуг | B197: 10 | C197: 3 | D197: 24700 | E197: 0 | F197: 7534.2
A198: Содержание и обеспечение деятельности муниципальных служащих, осуществляющих областные государственные полномочия по предоставлению гражданам субсидий на оплату жилых помещений и коммунальных услуг | B198: 10 | C198: 3 | D198: 24701 | E198: 0 | F198: 771.9
A199: Выполнение функций органами местного самоуправления | B199: 10 | C199: 3 | D199: 24701 | E199: 500 | F199: 771.9
A200: Предоставление гражданам субсидий на оплату жилых помещений и коммунальных услуг | B200: 10 | C200: 3 | D200: 24702 | E200: 0 | F200: 6762.3
A201: Социальные выплаты | B201: 10 | C201: 3 | D201: 24702 | E201: 005 | F201: 6762.3
A202: Реализация государственных функций в области социальной политики | B202: 10 | C202: 3 | D202: 5140000 | E202: 0 | F202: 854.1
A203: Мероприятия в области социальной политики | B203: 10 | C203: 3 | D203: 5140100 | E203: 0 | F203: 854.1
A204: Социальные выплаты | B204: 10 | C204: 3 | D204: 5140100 | E204: 005 | F204: 854.1
A205: Целевые программы муниципальных образований | B205: 10 | C205: 3 | D205: 7950000 | E205: 0 | F205: 256.2
A206: Районная социальная программа "Молодым семьям-доступное жилье" на 2012-2019 гг. | B206: 10 | C206: 3 | D206: 7952100 | E206: 0 | F206: 256.2
A207: Социальные выплаты | B207: 10 | C207: 3 | D207: 7952100 | E207: 005 | F207: 256.2
A208: Охрана семьи и детства | B208: 10 | C208: 4 | D208: 0 | E208: 0 | F208: 528
... 39 more rows

Sheet прил7
A7: Распределение бюджетных ассигнований по разделам, подразделам, целевым статьям и видам расходов классификации расходов бюджетов на плановый период 2014 и 2015 годов
A9: Наименование показателя | B9: Код | F9: Сумма, тыс.руб.
B10: раздела | C10: подраздела | D10: целевой статьи | E10: вида расходов | F10: 2014 | G10: 2015
A11: 1 | B11: 2 | C11: 3 | D11: 4 | E11: 5 | F11: 6 | G11: 7
A12: ОБЩЕГОСУДАРСТВЕННЫЕ ВОПРОСЫ | B12: 1 | C12: 0 | D12: 0 | E12: 0 | F12: 57198.4 | G12: 56134.3
A13: Функционирование высшего должностного лица субъекта Российской Федерации и муниципального образования | B13: 1 | C13: 2 | D13: 0 | E13: 0 | F13: 1403 | G13: 1472.1
A14: Руководство и управление в сфере установленных функций органов государственной власти субъектов Российской Федерации и органов местного самоуправления | B14: 1 | C14: 2 | D14: 20000 | E14: 0 | F14: 1403 | G14: 1472.1
A15: Глава муниципального образования | B15: 1 | C15: 2 | D15: 20300 | E15: 0 | F15: 1403 | G15: 1472.1
A16: Выполнение функций органами местного самоуправления | B16: 1 | C16: 2 | D16: 20300 | E16: 500 | F16: 1403 | G16: 1472.1
A17: Функционирование законодательных (представительных) органов государственной власти и представительных органов муниципальных образований | B17: 1 | C17: 3 | D17: 0 | E17: 0 | F17: 940.5 | G17: 986.3
A18: Руководство и управление в сфере установленных функций органов государственной власти субъектов Российской Федерации и органов местного самоуправления | B18: 1 | C18: 3 | D18: 20000 | E18: 0 | F18: 940.5 | G18: 986.3
A19: Центральный аппарат | B19: 1 | C19: 3 | D19: 20400 | E19: 0 | F19: 289 | G19: 302
A20: Выполнение функций органами местного самоуправления | B20: 1 | C20: 3 | D20: 20400 | E20: 500 | F20: 289 | G20: 302
A21: Председатель представительного органа муниципального образования | B21: 1 | C21: 3 | D21: 21100 | E21: 0 | F21: 651.5 | G21: 684.3
A22: Выполнение функций органами местного самоуправления | B22: 1 | C22: 3 | D22: 21100 | E22: 500 | F22: 651.5 | G22: 684.3
A23: Функционирование Правительства Российской Федерации, высших исполнительных органов государственной власти субъектов Российской Федерации, местных администраций | B23: 1 | C23: 4 | D23: 0 | E23: 0 | F23: 20515.6 | G23: 21389.4
A24: Руководство и управление в сфере установленных функций органов государственной власти субъектов Российской Федерации и органов местного самоуправления | B24: 1 | C24: 4 | D24: 20000 | E24: 0 | F24: 20515.6 | G24: 21389.4
A25: Центральный аппарат | B25: 1 | C25: 4 | D25: 20400 | E25: 0 | F25: 20515.6 | G25: 21389.4
A26: Выполнение функций органами местного самоуправления | B26: 1 | C26: 4 | D26: 20400 | E26: 500 | F26: 20515.6 | G26: 21389.4
A27: Обеспечение деятельности финансовых, налоговых и таможенных органов и органов финансового (финансово-бюджетного) надзора | B27: 1 | C27: 6 | D27: 0 | E27: 0 | F27: 7459.3 | G27: 7789.5
A28: Руководство и управление в сфере установленных функций органов государственной власти субъектов Российской Федерации и органов местного самоуправления | B28: 1 | C28: 6 | D28: 20000 | E28: 0 | F28: 7459.3 | G28: 7789.5
A29: Центральный аппарат | B29: 1 | C29: 6 | D29: 20400 | E29: 0 | F29: 6674.1 | G29: 6964.3
A30: Выполнение функций органами местного самоуправления | B30: 1 | C30: 6 | D30: 20400 | E30: 500 | F30: 6674.1 | G30: 6964.3
A31: Руководитель контрольно-счетной палаты муниципального образования и его заместители | B31: 1 | C31: 6 | D31: 22500 | E31: 0 | F31: 785.2 | G31: 825.2
A32: Выполнение функций органами местного самоуправления | B32: 1 | C32: 6 | D32: 22500 | E32: 500 | F32: 785.2 | G32: 825.2
A33: Целевые программы муниципальных образований | B33: 1 | C33: 6 | D33: 7950000 | E33: 0 | F33: 0 | G33: 0
A34: Долгосрочная целевая программа Черемховского районного муниципального образования "Повышение эффективности бюджетных расходов Черемховского районного муниципального образования на 2012-2013 годы" | B34: 1 | C34: 6 | D34: 7950200 | E34: 0 | F34: 0 | G34: 0
A35: Выполнение функций органами местного самоуправления | B35: 1 | C35: 6 | D35: 7950200 | E35: 500 | F35: 0 | G35: 0
A36: Обеспечение проведения выборов и референдумов | B36: 1 | C36: 7 | D36: 0 | E36: 0 | F36: 2500 | G36: 0
A37: Проведение выборов и референдумов | B37: 1 | C37: 7 | D37: 200000 | E37: 0 | F37: 2500 | G37: 0
A38: Проведение выборов и референдумов | B38: 1 | C38: 7 | D38: 200000 | E38: 0 | F38: 2500 | G38: 0
A39: Проведение выборов в представительные органы муниципального образования | B39: 1 | C39: 7 | D39: 200002 | E39: 0 | F39: 2500 | G39: 0
A40: Выполнение функций органами местного самоуправления | B40: 1 | C40: 7 | D40: 200002 | E40: 500 | F40: 2500 | G40: 0
A41: Резервные фонды | B41: 1 | C41: 11 | D41: 0 | E41: 0 | F41: 300 | G41: 300
A42: Резервные фонды | B42: 1 | C42: 11 | D42: 700000 | E42: 0 | F42: 300 | G42: 300
A43: Резервные фонды местных администраций | B43: 1 | C43: 11 | D43: 700500 | E43: 0 | F43: 300 | G43: 300
A44: Выполнение функций органами местного самоуправления | B44: 1 | C44: 11 | D44: 700500 | E44: 500 | F44: 300 | G44: 300
A45: Другие общегосударственные вопросы | B45: 1 | C45: 13 | D45: 0 | E45: 0 | F45: 24080 | G45: 24197
A46: Руководство и управление в сфере установленных функций органов государственной власти субъектов Российской Федерации и органов местного самоуправления | B46: 1 | C46: 13 | D46: 20000 | E46: 0 | F46: 16869.2 | G46: 17486.2
A47: Центральный аппарат | B47: 1 | C47: 13 | D47: 20400 | E47: 0 | F47: 2262.4 | G47: 2351.7
A48: Выполнение функций органами местного самоуправления | B48: 1 | C48: 13 | D48: 20400 | E48: 500 | F48: 2262.4 | G48: 2351.7
A49: Осуществление областных государственных полномочий по хранению, комплектованию, учету и использованию архивных документов, относящихся к государственной собственности Иркутской области | B49: 1 | C49: 13 | D49: 24000 | E49: 0 | F49: 1086 | G49: 1086
A50: Выполнение функций органами местного самоуправления | B50: 1 | C50: 13 | D50: 24000 | E50: 500 | F50: 1086 | G50: 1086
A51: Осуществление областных государственных полномочий по определению персонального состава и обеспечению деятельности административных комиссий | B51: 1 | C51: 13 | D51: 24300 | E51: 0 | F51: 563.6 | G51: 563.6
A52: Выполнение функций органами местного самоуправления | B52: 1 | C52: 13 | D52: 24300 | E52: 500 | F52: 563.6 | G52: 563.6
A53: Осуществление отдельных государственных полномочий в области производства и оборота этилового спирта, алкогольной и спиртосодержащей продукции | B53: 1 | C53: 13 | D53: 24400 | E53: 0 | F53: 404.3 | G53: 430.2
A54: Выполнение функций органами местного самоуправления | B54: 1 | C54: 13 | D54: 24400 | E54: 500 | F54: 404.3 | G54: 430.2
A55: Осуществление отдельных областных государственных полномочий в области охраны труда | B55: 1 | C55: 13 | D55: 24500 | E55: 0 | F55: 563.6 | G55: 563.6
A56: Выполнение функций органами местного самоуправления | B56: 1 | C56: 13 | D56: 24500 | E56: 500 | F56: 563.6 | G56: 563.6
A57: Обеспечение деятельности подведомственных учреждений | B57: 1 | C57: 13 | D57: 29900 | E57: 0 | F57: 11989.3 | G57: 12491.1
A58: Выполнение функций казенными учреждениями | B58: 1 | C58: 13 | D58: 29900 | E58: 001 | F58: 11089.3 | G58: 11591.1
A59: Субсидии бюджетным учреждениям на финансовое обеспечение муниципального задания на оказание муниципальных услуг (выполнение работ) | B59: 1 | C59: 13 | D59: 29900 | E59: 611 | F59: 900 | G59: 900
A60: Реализация государственных функций, связанных с общегосударственным управлением | B60: 1 | C60: 13 | D60: 920000 | E60: 0 | F60: 170.8 | G60: 170.8
A61: Выполнение других обязательств государства | B61: 1 | C61: 13 | D61: 920300 | E61: 0 | F61: 170.8 | G61: 170.8
A62: Выполнение функций органами местного самоуправления | B62: 1 | C62: 13 | D62: 920300 | E62: 500 | F62: 170.8 | G62: 170.8
A63: Учреждения по обеспечению хозяйственного обслуживания | B63: 1 | C63: 13 | D63: 930000 | E63: 0 | F63: 6500 | G63: 6500
A64: Субсидии бюджетным учреждениям на финансовое обеспечение муниципального задания на оказание муниципальных услуг (выполнение работ) | B64: 1 | C64: 13 | D64: 930000 | E64: 611 | F64: 6500 | G64: 6500
A65: Целевые программы муниципальных образований | B65: 1 | C65: 13 | D65: 7950000 | E65: 0 | F65: 540 | G65: 40
A66: Долгосрочная целевая программа "Улучшение условий и охраны труда в Черемховском районе на 2011-2013гг." | B66: 1 | C66: 13 | D66: 7951400 | E66: 0 | F66: 0 | G66: 0
A67: Выполнение функций органами местного самоуправления | B67: 1 | C67: 13 | D67: 7951400 | E67: 500 | F67: 0 | G67: 0
A68: Долгосрочная целевая программа "Инвентаризация муниципальных объектов недвижимости Черемховского районного муниципального образования на 2012-2014 годы" | B68: 1 | C68: 13 | D68: 7951900 | E68: 0 | F68: 500 | G68: 0
A69: Выполнение функций органами местного самоуправления | B69: 1 | C69: 13 | D69: 7951900 | E69: 500 | F69: 500 | G69: 0
A70: Комплексная программа "Профилактика правонарушений в Черемховском районном муниципальном образовании на 2013-2016 годы" | B70: 1 | C70: 13 | D70: 7952600 | E70: 0 | F70: 40 | G70: 40
A71: Выполнение функций органами местного самоуправления | B71: 1 | C71: 13 | D71: 7952600 | E71: 500 | F71: 40 | G71: 40
A72: Долгосрочная целевая программа "Поддержка молодых педагогов на территории Черемховского районного муниципального образования" на 2012-2013 годы | B72: 1 | C72: 13 | D72: 7952700 | E72: 0 | F72: 0 | G72: 0
A73: Выполнение функций органами местного самоуправления | B73: 1 | C73: 13 | D73: 7952700 | E73: 500 | F73: 0 | G73: 0
A74: НАЦИОНАЛЬНАЯ ЭКОНОМИКА | B74: 4 | C74: 0 | D74: 0 | E74: 0 | F74: 3698.1 | G74: 2406.5
A75: Дорожное хозяйство(дорожные фонды) | B75: 4 | C75: 9 | D75: 0 | E75: 0 | F75: 3048.1 | G75: 2406.5
A76: Целевые программы муниципальных образований | B76: 4 | C76: 9 | D76: 7950000 | E76: 0 | F76: 3048.1 | G76: 2406.5
A77: Долгосрочная целевая программа "Развитие автомобильных дорог Черемховского районного муниципального образования на 2013-2015 годы" | B77: 4 | C77: 9 | D77: 7952300 | E77: 0 | F77: 3048.1 | G77: 2406.5
A78: Выполнение функций органами местного самоуправления | B78: 4 | C78: 9 | D78: 7952300 | E78: 500 | F78: 3048.1 | G78: 2406.5
A79: Другие вопросы в области национальной экономики | B79: 4 | C79: 12 | D79: 0 | E79: 0 | F79: 650 | G79: 0
A80: Целевые программы муниципальных образований | B80: 4 | C80: 12 | D80: 7950000 | E80: 0 | F80: 650 | G80: 0
A81: Долгосрочная целевая программа "Инвентаризация муниципальных объектов недвижимости Черемховского районного муниципального образования на 2012-2014 годы" | B81: 4 | C81: 12 | D81: 7951900 | E81: 0 | F81: 500 | G81: 0
A82: Выполнение функций органами местного самоуправления | B82: 4 | C82: 12 | D82: 7951900 | E82: 500 | F82: 500 | G82: 0
A83: Долгосрочная целевая программа "Поддержка и развитие малого и среднего предпринимательства в Черемховском районе" на 2013-2014 годы | B83: 4 | C83: 12 | D83: 7952200 | E83: 0 | F83: 150 | G83: 0
A84: Выполнение функций органами местного самоуправления | B84: 4 | C84: 12 | D84: 7952200 | E84: 500 | F84: 150 | G84: 0
A85: ЖИЛИЩНО-КОММУНАЛЬНОЕ ХОЗЯЙСТВО | B85: 5 | C85: 0 | D85: 0 | E85: 0 | F85: 4258 | G85: 4464.7
A86: Жилищное хозяйство | B86: 5 | C86: 1 | D86: 0 | E86: 0 | F86: 0 | G86: 0
A87: Поддержка жилищного хозяйства | B87: 5 | C87: 1 | D87: 3500000 | E87: 0 | F87: 0 | G87: 0
A88: Мероприятия в области жилищного хозяйства | B88: 5 | C88: 1 | D88: 3500300 | E88: 0 | F88: 0 | G88: 0
A89: Выполнение функций органами местного самоуправления | B89: 5 | C89: 1 | D89: 3500300 | E89: 500 | F89: 0 | G89: 0
A90: Другие вопросы в области жилищно-коммунального хозяйства | B90: 5 | C90: 5 | D90: 0 | E90: 0 | F90: 4258 | G90: 4464.7
A91: Руководство и управление в сфере установленных функций органов государственной власти субъектов Российской Федерации и органов местного самоуправления | B91: 5 | C91: 5 | D91: 20000 | E91: 0 | F91: 4258 | G91: 4464.7
A92: Центральный аппарат | B92: 5 | C92: 5 | D92: 20400 | E92: 0 | F92: 4258 | G92: 4464.7
A93: Выполнение функций органами местного самоуправления | B93: 5 | C93: 5 | D93: 20400 | E93: 500 | F93: 4258 | G93: 4464.7
A94: ОБРАЗОВАНИЕ | B94: 7 | C94: 0 | D94: 0 | E94: 0 | F94: 348970.3 | G94: 346703.1
A95: Дошкольное образование | B95: 7 | C95: 1 | D95: 0 | E95: 0 | F95: 64603.4 | G95: 62906.1
A96: Детские дошкольные учреждения | B96: 7 | C96: 1 | D96: 4200000 | E96: 0 | F96: 61308.4 | G96: 61441.1
A97: Обеспечение деятельности подведомственных учреждений | B97: 7 | C97: 1 | D97: 4209900 | E97: 0 | F97: 61308.4 | G97: 61441.1
A98: Выполнение функций казенными учреждениями | B98: 7 | C98: 1 | D98: 4209900 | E98: 001 | F98: 61308.4 | G98: 61441.1
A99: Выплата заработной платы с начислениями на нее педагогическим работникам муниципальных дошкольных образовательных учреждений и муниципальных учреждений дополнительного образования | B99: 7 | C99: 1 | D99: 5890000 | E99: 0 | F99: 1465 | G99: 1465
A100: Выполнение функций казенными учреждениями | B100: 7 | C100: 1 | D100: 5890000 | E100: 001 | F100: 1465 | G100: 1465
A101: Целевые программы муниципальных образований | B101: 7 | C101: 1 | D101: 7950000 | E101: 0 | F101: 1830 | G101: 0
A102: Долгосрочная целевая программа Черемховского районного муниципального образования "Повышение эффективности бюджетных расходов Черемховского районного муниципального образования на 2012-2013 годы" | B102: 7 | C102: 1 | D102: 7950200 | E102: 0 | F102: 0 | G102: 0
A103: Выполнение функций казенными учреждениями | B103: 7 | C103: 1 | D103: 7950200 | E103: 001 | F103: 0 | G103: 0
A104: Долгосрочная целевая программа "Безопасность образовательных учреждений на 2010-2014 гг." | B104: 7 | C104: 1 | D104: 7951000 | E104: 0 | F104: 830 | G104: 0
A105: Мероприятия по обеспечению пожарной безопасности | B105: 7 | C105: 1 | D105: 7951000 | E105: 450 | F105: 830 | G105: 0
A106: Долгосрочная целевая программа энергосбережения и повышения энергетической эффективности Черемховского районного муниципального образования на 2010-2015 годы | B106: 7 | C106: 1 | D106: 7951100 | E106: 0 | F106: 600 | G106: 0
A107: Мероприятия по повышению энергетической эффективности | B107: 7 | C107: 1 | D107: 7951100 | E107: 451 | F107: 600 | G107: 0
A108: Долгосрочная целевая программа "Развитие дошкольного образования на 2011-2014 гг." | B108: 7 | C108: 1 | D108: 7951700 | E108: 0 | F108: 0 | G108: 0
A109: Мероприятия в сфере образования | B109: 7 | C109: 1 | D109: 7951700 | E109: 022 | F109: 0 | G109: 0
A110: Долгосрочная целевая программа "Совершенствование дошкольного образования Черемховского района на 2011-2014 гг." | B110: 7 | C110: 1 | D110: 7951800 | E110: 0 | F110: 400 | G110: 0
A111: Мероприятия в сфере образования | B111: 7 | C111: 1 | D111: 7951800 | E111: 022 | F111: 400 | G111: 0
A112: Общее образование | B112: 7 | C112: 2 | D112: 0 | E112: 0 | F112: 276921.3 | G112: 276261.6
A113: Руководство и управление в сфере установленных функций органов государственной власти субъектов Российской Федерации и органов местного самоуправления | B113: 7 | C113: 2 | D113: 20000 | E113: 0 | F113: 238581.5 | G113: 238581.5
A114: Обеспечение государственных гарантий прав граждан на получение общедоступного и бесплатного дошкольного, начального общего, основного общего, среднего (полного) общего образования, а также дополнительного образования в общеобразовательных учреждениях | B114: 7 | C114: 2 | D114: 25000 | E114: 0 | F114: 238581.5 | G114: 238581.5
A115: Выполнение функций казенными учреждениями | B115: 7 | C115: 2 | D115: 25000 | E115: 001 | F115: 238581.5 | G115: 238581.5
A116: Школы - детские сады, школы начальные, неполные средние и средние | B116: 7 | C116: 2 | D116: 4210000 | E116: 0 | F116: 15782.6 | G116: 15808.4
A117: Обеспечение деятельности подведомственных учреждений | B117: 7 | C117: 2 | D117: 4219900 | E117: 0 | F117: 15782.6 | G117: 15808.4
A118: Выполнение функций казенными учреждениями | B118: 7 | C118: 2 | D118: 4219900 | E118: 001 | F118: 15782.6 | G118: 15808.4
A119: Учреждения по внешкольной работе с детьми | B119: 7 | C119: 2 | D119: 4230000 | E119: 0 | F119: 20340.1 | G119: 21257.8
A120: Обеспечение деятельности подведомственных учреждений | B120: 7 | C120: 2 | D120: 4239900 | E120: 0 | F120: 20340.1 | G120: 21257.8
A121: Выполнение функций казенными учреждениями | B121: 7 | C121: 2 | D121: 4239900 | E121: 001 | F121: 20340.1 | G121: 21257.8
A122: Выплата заработной платы с начислениями на нее педагогическим работникам муниципальных дошкольных образовательных учреждений и муниципальных учреждений дополнительного образования | B122: 7 | C122: 2 | D122: 5890000 | E122: 0 | F122: 540.1 | G122: 540.1
A123: Выполнение функций казенными учреждениями | B123: 7 | C123: 2 | D123: 5890000 | E123: 001 | F123: 540.1 | G123: 540.1
A124: Целевые программы муниципальных образований | B124: 7 | C124: 2 | D124: 7950000 | E124: 0 | F124: 1677 | G124: 73.8
A125: Долгосрочная целевая программа Черемховского районного муниципального образования "Повышение эффективности бюджетных расходов Черемховского районного муниципального образования на 2012-2013 годы" | B125: 7 | C125: 2 | D125: 7950200 | E125: 0 | F125: 0 | G125: 0
A126: Выполнение функций казенными учреждениями | B126: 7 | C126: 2 | D126: 7950200 | E126: 001 | F126: 0 | G126: 0
A127: Долгосрочная целевая программа "Безопасность образовательных учреждений на 2010-2014 гг." | B127: 7 | C127: 2 | D127: 7951000 | E127: 0 | F127: 970 | G127: 0
A128: Мероприятия по обеспечению пожарной безопасности | B128: 7 | C128: 2 | D128: 7951000 | E128: 450 | F128: 970 | G128: 0
A129: Долгосрочная целевая программа энергосбережения и повышения энергетической эффективности Черемховского районного муниципального образования на 2010-2015 годы | B129: 7 | C129: 2 | D129: 7951100 | E129: 0 | F129: 0 | G129: 0
A130: Мероприятия по повышению энергетической эффективности | B130: 7 | C130: 2 | D130: 7951100 | E130: 451 | F130: 0 | G130: 0
A131: Долгосрочная целевая программа "Ветхие школы Черемховского района" на 2011-2013 гг. | B131: 7 | C131: 2 | D131: 7951500 | E131: 0 | F131: 0 | G131: 0
A132: Мероприятия в сфере образования | B132: 7 | C132: 2 | D132: 7951500 | E132: 022 | F132: 0 | G132: 0
A133: Долгосрочная целевая программа "Совершенствование организации питания в образовательных учреждениях Черемховского района на 2011-2013гг." | B133: 7 | C133: 2 | D133: 7951600 | E133: 0 | F133: 600 | G133: 0
A134: Мероприятия в сфере образования | B134: 7 | C134: 2 | D134: 7951600 | E134: 022 | F134: 600 | G134: 0
A135: Долгосрочная целевая программа "Развитие культуры в Черемховском районном муниципальном образовании на период 2012-2016 гг." | B135: 7 | C135: 2 | D135: 7952000 | E135: 0 | F135: 107 | G135: 73.8
A136: Мероприятия по поддержке и развитию культуры, искусства, кинематографии | B136: 7 | C136: 2 | D136: 7952000 | E136: 023 | F136: 107 | G136: 73.8
A137: Профессиональная подготовка, переподготовка и повышение квалификации | B137: 7 | C137: 5 | D137: 0 | E137: 0 | F137: 127 | G137: 127
A138: Мероприятия по переподготовке и повышению квалификации | B138: 7 | C138: 5 | D138: 4340000 | E138: 0 | F138: 127 | G138: 127
A139: Выполнение функций казенными учреждениями | B139: 7 | C139: 5 | D139: 4340000 | E139: 001 | F139: 127 | G139: 127
A140: Выполнение функций органами местного самоуправления | B140: 7 | C140: 5 | D140: 4340000 | E140: 500 | F140: 0 | G140: 0
A141: Молодежная политика и оздоровление детей | B141: 7 | C141: 7 | D141: 0 | E141: 0 | F141: 212 | G141: 212
A142: Организационно-воспитательная работа с молодежью | B142: 7 | C142: 7 | D142: 4310000 | E142: 0 | F142: 46 | G142: 46
A143: Проведение мероприятий для детей и молодежи | B143: 7 | C143: 7 | D143: 4310100 | E143: 0 | F143: 46 | G143: 46
A144: Проведение мероприятия для детей и молодежи | B144: 7 | C144: 7 | D144: 4310100 | E144: 447 | F144: 46 | G144: 46
A145: Мероприятия по проведению оздоровительной кампании детей | B145: 7 | C145: 7 | D145: 4320000 | E145: 0 | F145: 126 | G145: 126
A146: Оплата стоимости набора продуктов питания для детей в организованных органами местного самоуправления оздоровительных лагерях с дневным пребыванием детей за счет средств областного бюджета | B146: 7 | C146: 7 | D146: 4320300 | E146: 0 | F146: 126 | G146: 126
A147: Оплата стоимости набора продуктов питания для детей в организованных органами местного самоуправления оздоровительных лагерях с дневным пребыванием детей за счет средств местного бюджета | B147: 7 | C147: 7 | D147: 4320302 | E147: 0 | F147: 126 | G147: 126
A148: Выполнение функций казенными учреждениями | B148: 7 | C148: 7 | D148: 4320302 | E148: 001 | F148: 126 | G148: 126
A149: Целевые программы муниципальных образований | B149: 7 | C149: 7 | D149: 7950000 | E149: 0 | F149: 40 | G149: 40
A150: Долгосрочная целевая программа "Комплексные меры профилактики злоупотребления наркотическими средствами и психотропными веществами в Черемховском районном муниципальном образовании на 2011-2013 гг." | B150: 7 | C150: 7 | D150: 7951300 | E150: 0 | F150: 0 | G150: 0
A151: Выполнение функций органами местного самоуправления | B151: 7 | C151: 7 | D151: 7951300 | E151: 500 | F151: 0 | G151: 0
A152: Долгосрочная целевая программа "Молодежная политика в Черемховском районном муниципальном образовании" на 2013-2015 гг. | B152: 7 | C152: 7 | D152: 7952500 | E152: 0 | F152: 40 | G152: 40
A153: Проведение мероприятия для детей и молодежи | B153: 7 | C153: 7 | D153: 7952500 | E153: 447 | F153: 40 | G153: 40
A154: Другие вопросы в области образования | B154: 7 | C154: 9 | D154: 0 | E154: 0 | F154: 7106.6 | G154: 7196.4
A155: Руководство и управление в сфере установленных функций органов государственной власти субъектов Российской Федерации и органов местного самоуправления | B155: 7 | C155: 9 | D155: 20000 | E155: 0 | F155: 2106.6 | G155: 2196.4
A156: Центральный аппарат | B156: 7 | C156: 9 | D156: 20400 | E156: 0 | F156: 2106.6 | G156: 2196.4
A157: Выполнение функций органами местного самоуправления | B157: 7 | C157: 9 | D157: 20400 | E157: 500 | F157: 2106.6 | G157: 2196.4
A158: Учебно-методические кабинеты, централизованные бухгалтерии, группы хозяйственного обслуживания, учебные фильмотеки, межшкольные учебно-производственные комбинаты, логопедические пункты | B158: 7 | C158: 9 | D158: 4520000 | E158: 0 | F158: 5000 | G158: 5000
A159: Субсидии бюджетным учреждениям на финансовое обеспечение муниципального задания на оказание муниципальных услуг (выполнение работ) | B159: 7 | C159: 9 | D159: 4520000 | E159: 611 | F159: 5000 | G159: 5000
A160: КУЛЬТУРА И КИНЕМАТОГРАФИЯ | B160: 8 | C160: 0 | D160: 0 | E160: 0 | F160: 12119.4 | G160: 12743.1
A161: Культура | B161: 8 | C161: 1 | D161: 0 | E161: 0 | F161: 11183.5 | G161: 11762
A162: Учреждения культуры и мероприятия в сфере культуры и кинематографии | B162: 8 | C162: 1 | D162: 4400000 | E162: 0 | F162: 3856.1 | G162: 4010.2
A163: Комплектование книжных фондов библиотек муниципальных образований и государственных библиотек городов Москвы и Санкт-Петербурга | B163: 8 | C163: 1 | D163: 4400200 | E163: 0 | F163: 466.3 | G163: 466.3
A164: Комплектование книжных фондов библиотек муниципальных образований и государственных библиотек городов Москвы и Санкт-Петербурга за счет средств федерального бюджета | B164: 8 | C164: 1 | D164: 4400201 | E164: 0 | F164: 303.6 | G164: 303.6
A165: Выполнение функций казенными учреждениями | B165: 8 | C165: 1 | D165: 4400201 | E165: 001 | F165: 303.6 | G165: 303.6
A166: Комплектование книжных фондов библиотек муниципальных образований и государственных библиотек городов Москвы и Санкт-Петербурга за счет областного бюджета | B166: 8 | C166: 1 | D166: 4400202 | E166: 0 | F166: 162.7 | G166: 162.7
A167: Выполнение функций казенными учреждениями | B167: 8 | C167: 1 | D167: 4400202 | E167: 001 | F167: 162.7 | G167: 162.7
A168: Обеспечение деятельности подведомственных учреждений | B168: 8 | C168: 1 | D168: 4409900 | E168: 0 | F168: 3389.8 | G168: 3543.9
A169: Выполнение функций казенными учреждениями | B169: 8 | C169: 1 | D169: 4409900 | E169: 001 | F169: 3389.8 | G169: 3543.9
A170: Музеи и постоянные выставки | B170: 8 | C170: 1 | D170: 4410000 | E170: 0 | F170: 899.1 | G170: 935.8
A171: Обеспечение деятельности подведомственных учреждений | B171: 8 | C171: 1 | D171: 4419900 | E171: 0 | F171: 899.1 | G171: 935.8
A172: Выполнение функций казенными учреждениями | B172: 8 | C172: 1 | D172: 4419900 | E172: 001 | F172: 899.1 | G172: 935.8
A173: Библиотеки | B173: 8 | C173: 1 | D173: 4420000 | E173: 0 | F173: 5424.3 | G173: 5676.8
A174: Обеспечение деятельности подведомственных учреждений | B174: 8 | C174: 1 | D174: 4429900 | E174: 0 | F174: 5424.3 | G174: 5676.8
A175: Выполнение функций казенными учреждениями | B175: 8 | C175: 1 | D175: 4429900 | E175: 001 | F175: 5424.3 | G175: 5676.8
A176: Целевые программы муниципальных образований | B176: 8 | C176: 1 | D176: 7950000 | E176: 0 | F176: 1004 | G176: 1139.2
A177: Долгосрочная целевая программа Черемховского районного муниципального образования "Повышение эффективности бюджетных расходов Черемховского районного муниципального образования на 2012-2013 годы" | B177: 8 | C177: 1 | D177: 7950200 | E177: 0 | F177: 0 | G177: 0
A178: Выполнение функций казенными учреждениями | B178: 8 | C178: 1 | D178: 7950200 | E178: 001 | F178: 0 | G178: 0
A179: Долгосрочная целевая программа энергосбережения и повышения энергетической эффективности Черемховского районного муниципального образования на 2010-2015 годы | B179: 8 | C179: 1 | D179: 7951100 | E179: 0 | F179: 100 | G179: 200
A180: Мероприятия по повышению энергетической эффективности | B180: 8 | C180: 1 | D180: 7951100 | E180: 451 | F180: 100 | G180: 200
A181: Долгосрочная целевая программа "Развитие культуры в Черемховском районном муниципальном образовании на период 2012-2016 гг." | B181: 8 | C181: 1 | D181: 7952000 | E181: 0 | F181: 904 | G181: 939.2
A182: Мероприятия по поддержке и развитию культуры, искусства, кинематографии | B182: 8 | C182: 1 | D182: 7952000 | E182: 023 | F182: 904 | G182: 939.2
A183: Другие вопросы в области культуры, кинематографии | B183: 8 | C183: 4 | D183: 0 | E183: 0 | F183: 935.9 | G183: 981.1
A184: Руководство и управление в сфере установленных функций органов государственной власти субъектов Российской Федерации и органов местного самоуправления | B184: 8 | C184: 4 | D184: 20000 | E184: 0 | F184: 935.9 | G184: 981.1
A185: Центральный аппарат | B185: 8 | C185: 4 | D185: 20400 | E185: 0 | F185: 935.9 | G185: 981.1
A186: Выполнение функций органами местного самоуправления | B186: 8 | C186: 4 | D186: 20400 | E186: 500 | F186: 935.9 | G186: 981.1
A187: Социальная политика | B187: 10 | C187: 0 | D187: 0 | E187: 0 | F187: 19563.2 | G187: 19960.4
A188: Пенсионное обеспечение | B188: 10 | C188: 1 | D188: 0 | E188: 0 | F188: 2980 | G188: 2980
A189: Доплаты к пенсиям, дополнительное пенсионное обеспечение | B189: 10 | C189: 1 | D189: 4910000 | E189: 0 | F189: 2980 | G189: 2980
A190: Доплаты к пенсиям государственных служащих субъектов Российской Федерации и муниципальных служащих | B190: 10 | C190: 1 | D190: 4910100 | E190: 0 | F190: 2980 | G190: 2980
A191: Социальные выплаты | B191: 10 | C191: 1 | D191: 4910100 | E191: 005 | F191: 2980 | G191: 2980
A192: Социальное обеспечение населения | B192: 10 | C192: 3 | D192: 0 | E192: 0 | F192: 15405.1 | G192: 15802.3
A193: Руководство и управление в сфере установленных функций органов государственной власти субъектов Российской Федерации и органов местного самоуправления | B193: 10 | C193: 3 | D193: 20000 | E193: 0 | F193: 14247.6 | G193: 14596.2
A194: Осуществление отдельных областных государственных полномочий по предоставлению мер социальной поддержки многодетным и малоимущим семьям | B194: 10 | C194: 3 | D194: 24600 | E194: 0 | F194: 6361.8 | G194: 6361.8
A195: Социальные выплаты | B195: 10 | C195: 3 | D195: 24600 | E195: 005 | F195: 6361.8 | G195: 6361.8
A196: Осуществление областных государственных полномочий по предоставлению гражданам субсидий на оплату жилых помещений и коммунальных услуг | B196: 10 | C196: 3 | D196: 24700 | E196: 0 | F196: 7885.8 | G196: 8234.4
A197: Содержание и обеспечение деятельности муниципальных служащих, осуществляющих областные государственные полномочия по предоставлению гражданам субсидий на оплату жилых помещений и коммунальных услуг | B197: 10 | C197: 3 | D197: 24701 | E197: 0 | F197: 771.9 | G197: 771.9
A198: Выполнение функций органами местного самоуправления | B198: 10 | C198: 3 | D198: 24701 | E198: 500 | F198: 771.9 | G198: 771.9
A199: Предоставление гражданам субсидий на оплату жилых помещений и коммунальных услуг | B199: 10 | C199: 3 | D199: 24702 | E199: 0 | F199: 7113.9 | G199: 7462.5
A200: Социальные выплаты | B200: 10 | C200: 3 | D200: 24702 | E200: 005 | F200: 7113.9 | G200: 7462.5
A201: Реализация государственных функций в области социальной политики | B201: 10 | C201: 3 | D201: 5140000 | E201: 0 | F201: 882.1 | G201: 910
A202: Мероприятия в области социальной политики | B202: 10 | C202: 3 | D202: 5140100 | E202: 0 | F202: 882.1 | G202: 910
A203: Социальные выплаты | B203: 10 | C203: 3 | D203: 5140100 | E203: 005 | F203: 882.1 | G203: 910
A204: Целевые программы муниципальных образований | B204: 10 | C204: 3 | D204: 7950000 | E204: 0 | F204: 275.4 | G204: 296.1
A205: Районная социальная программа "Молодым семьям-доступное жилье" на 2012-2019 гг. | B205: 10 | C205: 3 | D205: 7952100 | E205: 0 | F205: 275.4 | G205: 296.1
A206: Социальные выплаты | B206: 10 | C206: 3 | D206: 7952100 | E206: 005 | F206: 275.4 | G206: 296.1
A207: Охрана семьи и детства | B207: 10 | C207: 4 | D207: 0 | E207: 0 | F207: 0 | G207: 0
... 39 more rows

Sheet прил8
A7: Распределение бюджетных ассигнований по разделам и подразделам классификации расходов бюджетов Черемховского районного муниципального образования на 2013 год
A9: Наименование статьи | B9: раздел | C9: подраздел | D9: Сумма, тыс. руб.
A10: 1 | B10: 2 | C10: 3 | D10: 4
A11: ОБЩЕГОСУДАРСТВЕННЫЕ ВОПРОСЫ | B11: 01 | D11: =SUM(D12:D17) -> 65588
A12: Функционирование высшего должностного лица субъекта Российской Федерации и органа местного самоуправления | B12: 01 | C12: 02 | D12: =прил6!F14 -> 1751.7
A13: Функционирование законодательных (представительных) органов государственной власти и местного самоуправления | B13: 01 | C13: 03 | D13: =прил6!F18 -> 1180.4
A14: Функционирование Правительства Российской Федерации, высших органов исполнительной власти субъектов Российской Федерации, местных администраций | B14: 01 | C14: 04 | D14: =прил6!F24 -> 25658.3
A15: Обеспечение деятельности финансовых, налоговых и таможенных органов и органов надзора | B15: 01 | C15: 06 | D15: =прил6!F28 -> 9438.4
A16: Резервные фонды | B16: 01 | C16: 11 | D16: =прил6!F42 -> 300
A17: Другие общегосударственные вопросы | B17: 01 | C17: 13 | D17: =прил6!F46 -> 27259.2
A18: НАЦИОНАЛЬНАЯ ЭКОНОМИКА | B18: 04 | D18: =D20+D19 -> 801.6
A19: Дорожное хозяйство(дорожные фонды) | B19: 04 | C19: 09 | D19: =прил6!F76 -> 201.6
A20: Другие вопросы в области национальной экономики | B20: 04 | C20: 12 | D20: =прил6!F80 -> 600
A21: ЖИЛИЩНО-КОММУНАЛЬНОЕ ХОЗЯЙСТВО | B21: 05 | D21: =D23+D22 -> 5800.9
A22: Жилищное хозяйство | B22: 05 | C22: 01 | D22: =прил6!F87 -> 500
A23: Другие вопросы в области жилищно-коммунального хозяйства | B23: 05 | C23: 05 | D23: =прил6!F91 -> 5300.9
A24: ОБРАЗОВАНИЕ | B24: 07 | D24: =D25+D26+D28+D29+D27 -> 363836.5
A25: Дошкольное образование | B25: 07 | C25: 01 | D25: =прил6!F96 -> 66965.7
A26: Общее образование | B26: 07 | C26: 02 | D26: =прил6!F113 -> 288954.6
A27: Профессиональная подготовка, переподготовка и повышение квалификации | B27: 07 | C27: 05 | D27: =прил6!F138 -> 134.1
A28: Молодежная политика и оздоровление детей | B28: 07 | C28: 07 | D28: =прил6!F142 -> 222
A29: Другие вопросы в области образования | B29: 07 | C29: 09 | D29: =прил6!F155 -> 7560.1
A30: КУЛЬТУРА И КИНЕМАТОГРАФИЯ | B30: 08 | D30: =D31+D32 -> 15466.2
A31: Культура | B31: 08 | C31: 01 | D31: =прил6!F162 -> 14302
A32: Другие вопросы в области культуры, кинематографии | B32: 08 | C32: 04 | D32: =прил6!F184 -> 1164.2
A33: СОЦИАЛЬНАЯ ПОЛИТИКА | B33: 10 | D33: =D34+D35+D37+D36 -> 19692.4
A34: Пенсионное обеспечение | B34: 10 | C34: 01 | D34: =прил6!F189 -> 2980
A35: Социальное обеспечение населения | B35: 10 | C35: 03 | D35: =прил6!F193 -> 15006.3
A36: Охрана семьи и детства | B36: 10 | C36: 04 | D36: =прил6!F208 -> 528
A37: Другие вопросы в области социальной политики | B37: 10 | C37: 06 | D37: =прил6!F211 -> 1178.1
A38: ФИЗИЧЕСКАЯ КУЛЬТУРА И СПОРТ | B38: 11 | D38: =D39 -> 182.4
A39: Физическая культура | B39: 11 | C39: 01 | D39: =прил6!F219 -> 182.4
A40: СРЕДСТВА МАССОВОЙ ИНФОРМАЦИИ | B40: 12 | D40: =D41 -> 2000
A41: Периодическая печать и издательства | B41: 12 | C41: 02 | D41: =прил6!F227 -> 2000
A42: ОБСЛУЖИВАНИЕ ГОСУДАРСТВЕННОГО И МУНИЦИПАЛЬНОГО ДОЛГА | B42: 13 | D42: =D43 -> 60
A43: Обслуживание внутреннего государственного и муниципального долга | B43: 13 | C43: 01 | D43: =прил6!F232 -> 60
A44: МЕЖБЮДЖЕТНЫЕ ТРАНСФЕРТЫ ОБЩЕГО ХАРАКТЕРА БЮДЖЕТАМ СУБЪЕКТОВ РОССИЙСКОЙ ФЕДЕРАЦИИ И МУНИЦИПАЛЬНЫХ ОБРАЗОВАНИЙ | B44: 14 | D44: =D45+D46 -> 5375
A45: Дотации на выравнивание бюджетной обеспеченности субъектов Российской Федерации и муниципальных образований | B45: 14 | C45: 01 | D45: =прил6!F237 -> 3500
A46: Прочие межбюджетные трансферты общего характера бюджетам субъектов Российской Федерации и муниципальных образований | B46: 14 | C46: 03 | D46: =прил6!F242 -> 1875
A47: ИТОГО | D47: =D11+D18+D21+D24+D30+D33+D38+D40+D42+D44 -> 478803
A50: Начальник Финансового управления | D50: Ю.Н. Гайдук

Sheet прил9
A7: Распределение бюджетных ассигнований по разделам и подразделам классификации расходов бюджетов Черемховского районного муниципального образования на плановый период 2014 и 2015 годов
A9: Наименование статьи | B9: раздел | C9: подраздел | D9: Сумма, тыс. руб.
D10: 2014 | E10: 2015
A11: 1 | B11: 2 | C11: 3 | D11: 4 | E11: 5
A12: ОБЩЕГОСУДАРСТВЕННЫЕ ВОПРОСЫ | B12: 01 | D12: =SUM(D13:D19) -> 57198.4 | E12: =SUM(E13:E19) -> 56134.3
A13: Функционирование высшего должностного лица субъекта Российской Федерации и органа местного самоуправления | B13: 01 | C13: 02 | D13: =прил7!F13 -> 1403 | E13: =прил7!G13 -> 1472.1
A14: Функционирование законодательных (представительных) органов государственной власти и местного самоуправления | B14: 01 | C14: 03 | D14: =прил7!F17 -> 940.5 | E14: =прил7!G17 -> 986.3
A15: Функционирование Правительства Российской Федерации, высших органов исполнительной власти субъектов Российской Федерации, местных администраций | B15: 01 | C15: 04 | D15: =прил7!F23 -> 20515.6 | E15: =прил7!G23 -> 21389.4
A16: Обеспечение деятельности финансовых, налоговых и таможенных органов и органов надзора | B16: 01 | C16: 06 | D16: =прил7!F27 -> 7459.3 | E16: =прил7!G27 -> 7789.5
A17: Обеспечение проведения выборов и референдумов | B17: 01 | C17: 07 | D17: =прил7!F36 -> 2500 | E17: =прил7!G36 -> 0
A18: Резервные фонды | B18: 01 | C18: 11 | D18: =прил7!F41 -> 300 | E18: =прил7!G41 -> 300
A19: Другие общегосударственные вопросы | B19: 01 | C19: 13 | D19: =прил7!F45 -> 24080 | E19: =прил7!G45 -> 24197
A20: НАЦИОНАЛЬНАЯ ЭКОНОМИКА | B20: 04 | D20: =D22+D21 -> 3698.1 | E20: =E22+E21 -> 2406.5
A21: Дорожное хозяйство(дорожные фонды) | B21: 04 | C21: 09 | D21: =прил7!F75 -> 3048.1 | E21: =прил7!G75 -> 2406.5
A22: Другие вопросы в области национальной экономики | B22: 04 | C22: 12 | D22: =прил7!F79 -> 650 | E22: =прил7!G79 -> 0
A23: ЖИЛИЩНО-КОММУНАЛЬНОЕ ХОЗЯЙСТВО | B23: 05 | D23: =D24 -> 4258 | E23: =E24 -> 4464.7
A24: Другие вопросы в области жилищно-коммунального хозяйства | B24: 05 | C24: 05 | D24: =прил7!F90 -> 4258 | E24: =прил7!G90 -> 4464.7
A25: ОБРАЗОВАНИЕ | B25: 07 | D25: =D26+D27+D29+D30+D28 -> 348970.3 | E25: =E26+E27+E29+E30+E28 -> 346703.1
A26: Дошкольное образование | B26: 07 | C26: 01 | D26: =прил7!F95 -> 64603.4 | E26: =прил7!G95 -> 62906.1
A27: Общее образование | B27: 07 | C27: 02 | D27: =прил7!F112 -> 276921.3 | E27: =прил7!G112 -> 276261.6
A28: Профессиональная подготовка, переподготовка и повышение квалификации | B28: 07 | C28: 05 | D28: =прил7!F137 -> 127 | E28: =прил7!G137 -> 127
A29: Молодежная политика и оздоровление детей | B29: 07 | C29: 07 | D29: =прил7!F141 -> 212 | E29: =прил7!G141 -> 212
A30: Другие вопросы в области образования | B30: 07 | C30: 09 | D30: =прил7!F154 -> 7106.6 | E30: =прил7!G154 -> 7196.4
A31: КУЛЬТУРА И КИНЕМАТОГРАФИЯ | B31: 08 | D31: =D32+D33 -> 12119.4 | E31: =E32+E33 -> 12743.1
A32: Культура | B32: 08 | C32: 01 | D32: =прил7!F161 -> 11183.5 | E32: =прил7!G161 -> 11762
A33: Другие вопросы в области культуры, кинематографии | B33: 08 | C33: 04 | D33: =прил7!F183 -> 935.9 | E33: =прил7!G183 -> 981.1
A34: СОЦИАЛЬНАЯ ПОЛИТИКА | B34: 10 | D34: =D35+D36+D37 -> 19563.2 | E34: =E35+E36+E37 -> 19960.4
A35: Пенсионное обеспечение | B35: 10 | C35: 01 | D35: =прил7!F188 -> 2980 | E35: =прил7!G188 -> 2980
A36: Социальное обеспечение населения | B36: 10 | C36: 03 | D36: =прил7!F192 -> 15405.1 | E36: =прил7!G192 -> 15802.3
A37: Другие вопросы в области социальной политики | B37: 10 | C37: 06 | D37: =прил7!F210 -> 1178.1 | E37: =прил7!G210 -> 1178.1
A38: ФИЗИЧЕСКАЯ КУЛЬТУРА И СПОРТ | B38: 11 | D38: =D39 -> 82.4 | E38: =E39 -> 82.4
A39: Физическая культура | B39: 11 | C39: 01 | D39: =прил7!F218 -> 82.4 | E39: =прил7!G218 -> 82.4
A40: СРЕДСТВА МАССОВОЙ ИНФОРМАЦИИ | B40: 12 | D40: =D41 -> 2000 | E40: =E41 -> 2000
A41: Периодическая печать и издательства | B41: 12 | C41: 02 | D41: =прил7!F226 -> 2000 | E41: =прил7!G226 -> 2000
A42: ОБСЛУЖИВАНИЕ ГОСУДАРСТВЕННОГО И МУНИЦИПАЛЬНОГО ДОЛГА | B42: 13 | D42: =D43 -> 61.2 | E42: =E43 -> 63.5
A43: Обслуживание внутреннего государственного и муниципального долга | B43: 13 | C43: 01 | D43: =прил7!F231 -> 61.2 | E43: =прил7!G231 -> 63.5
A44: МЕЖБЮДЖЕТНЫЕ ТРАНСФЕРТЫ ОБЩЕГО ХАРАКТЕРА БЮДЖЕТАМ СУБЪЕКТОВ РОССИЙСКОЙ ФЕДЕРАЦИИ И МУНИЦИПАЛЬНЫХ ОБРАЗОВАНИЙ | B44: 14 | D44: =D45 -> 3400 | E44: =E45 -> 3500
A45: Дотации на выравнивание бюджетной обеспеченности субъектов Российской Федерации и муниципальных образований | B45: 14 | C45: 01 | D45: =прил7!F236 -> 3400 | E45: =прил7!G236 -> 3500
A46: ИТОГО | D46: =D12+D20+D23+D25+D31+D34+D38+D40+D42+D44 -> 451351 | E46: =E12+E20+E23+E25+E31+E34+E38+E40+E42+E44 -> 448058
A49: Начальник Финансового управления | D49: Ю.Н. Гайдук

Sheet прил10
A8: Распределение бюджетных ассигнований по разделам, подразделам, целевым статьям и видам расходов классификации расходов бюджетов в ведомственной структуре расходов бюджета Черемховского районного муниципального образования на 2013 год
A10: Наименование показателя | B10: Код | G10: Сумма, тыс. руб.
B11: ГРБС | C11: раздела | D11: подраздела | E11: целевой статьи | F11: вида расходов
A12: 1 | B12: 2 | C12: 3 | D12: 4 | E12: 5 | F12: 6 | G12: 7
A13: Отдел по культуре и библиотечному обслуживанию АЧРМО | B13: 904 | C13: 0 | D13: 0 | E13: 0 | F13: 0 | G13: 19887.1
A14: ОБРАЗОВАНИЕ | B14: 904 | C14: 7 | D14: 0 | E14: 0 | F14: 0 | G14: 4920.9
A15: Общее образование | B15: 904 | C15: 7 | D15: 2 | E15: 0 | F15: 0 | G15: 4912.8
A16: Учреждения по внешкольной работе с детьми | B16: 904 | C16: 7 | D16: 2 | E16: 4230000 | F16: 0 | G16: 4645
A17: Обеспечение деятельности подведомственных учреждений | B17: 904 | C17: 7 | D17: 2 | E17: 4239900 | F17: 0 | G17: 4645
A18: Выполнение функций казенными учреждениями | B18: 904 | C18: 7 | D18: 2 | E18: 4239900 | F18: 001 | G18: 4645
A19: Целевые программы муниципальных образований | B19: 904 | C19: 7 | D19: 2 | E19: 7950000 | F19: 0 | G19: 267.8
A20: Долгосрочная целевая программа Черемховского районного муниципального образования "Повышение эффективности бюджетных расходов Черемховского районного муниципального образования на 2012-2013 годы" | B20: 904 | C20: 7 | D20: 2 | E20: 7950200 | F20: 0 | G20: 175
A21: Выполнение функций казенными учреждениями | B21: 904 | C21: 7 | D21: 2 | E21: 7950200 | F21: 001 | G21: 175
A22: Долгосрочная целевая программа "Развитие культуры в Черемховском районном муниципальном образовании на период 2012-2016 гг." | B22: 904 | C22: 7 | D22: 2 | E22: 7952000 | F22: 0 | G22: 92.8
A23: Мероприятия по поддержке и развитию культуры, искусства, кинематографии | B23: 904 | C23: 7 | D23: 2 | E23: 7952000 | F23: 023 | G23: 92.8
A24: Профессиональная подготовка, переподготовка и повышение квалификации | B24: 904 | C24: 7 | D24: 5 | E24: 0 | F24: 0 | G24: 8.1
A25: Мероприятия по переподготовке и повышению квалификации | B25: 904 | C25: 7 | D25: 5 | E25: 4340000 | F25: 0 | G25: 8.1
A26: Выполнение функций казенными учреждениями | B26: 904 | C26: 7 | D26: 5 | E26: 4340000 | F26: 001 | G26: 8.1
A27: КУЛЬТУРА И КИНЕМАТОГРАФИЯ | B27: 904 | C27: 8 | D27: 0 | E27: 0 | F27: 0 | G27: 14966.2
A28: Культура | B28: 904 | C28: 8 | D28: 1 | E28: 0 | F28: 0 | G28: 13802
A29: Учреждения культуры и мероприятия в сфере культуры и кинематографии | B29: 904 | C29: 8 | D29: 1 | E29: 4400000 | F29: 0 | G29: 4596.3
A30: Комплектование книжных фондов библиотек муниципальных образований и государственных библиотек городов Москвы и Санкт-Петербурга | B30: 904 | C30: 8 | D30: 1 | E30: 4400200 | F30: 0 | G30: 466.3
A31: Комплектование книжных фондов библиотек муниципальных образований и государственных библиотек городов Москвы и Санкт-Петербурга за счет средств федерального бюджета | B31: 904 | C31: 8 | D31: 1 | E31: 4400201 | F31: 0 | G31: 303.6
A32: Выполнение функций казенными учреждениями | B32: 904 | C32: 8 | D32: 1 | E32: 4400201 | F32: 001 | G32: 303.6
A33: Комплектование книжных фондов библиотек муниципальных образований и государственных библиотек городов Москвы и Санкт-Петербурга за счет областного бюджета | B33: 904 | C33: 8 | D33: 1 | E33: 4400202 | F33: 0 | G33: 162.7
A34: Выполнение функций казенными учреждениями | B34: 904 | C34: 8 | D34: 1 | E34: 4400202 | F34: 001 | G34: 162.7
A35: Обеспечение деятельности подведомственных учреждений | B35: 904 | C35: 8 | D35: 1 | E35: 4409900 | F35: 0 | G35: 4130
A36: Выполнение функций казенными учреждениями | B36: 904 | C36: 8 | D36: 1 | E36: 4409900 | F36: 001 | G36: 4130
A37: Музеи и постоянные выставки | B37: 904 | C37: 8 | D37: 1 | E37: 4410000 | F37: 0 | G37: 1081.1
A38: Обеспечение деятельности подведомственных учреждений | B38: 904 | C38: 8 | D38: 1 | E38: 4419900 | F38: 0 | G38: 1081.1
A39: Выполнение функций казенными учреждениями | B39: 904 | C39: 8 | D39: 1 | E39: 4419900 | F39: 001 | G39: 1081.1
A40: Библиотеки | B40: 904 | C40: 8 | D40: 1 | E40: 4420000 | F40: 0 | G40: 6603.6
A41: Обеспечение деятельности подведомственных учреждений | B41: 904 | C41: 8 | D41: 1 | E41: 4429900 | F41: 0 | G41: 6603.6
A42: Выполнение функций казенными учреждениями | B42: 904 | C42: 8 | D42: 1 | E42: 4429900 | F42: 001 | G42: 6603.6
A43: Целевые программы муниципальных образований | B43: 904 | C43: 8 | D43: 1 | E43: 7950000 | F43: 0 | G43: 1521
A44: Долгосрочная целевая программа Черемховского районного муниципального образования "Повышение эффективности бюджетных расходов Черемховского районного муниципального образования на 2012-2013 годы" | B44: 904 | C44: 8 | D44: 1 | E44: 7950200 | F44: 0 | G44: 308
A45: Выполнение функций казенными учреждениями | B45: 904 | C45: 8 | D45: 1 | E45: 7950200 | F45: 001 | G45: 308
A46: Долгосрочная целевая программа энергосбережения и повышения энергетической эффективности Черемховского районного муниципального образования на 2010-2015 годы | B46: 904 | C46: 8 | D46: 1 | E46: 7951100 | F46: 0 | G46: 282
A47: Мероприятия по повышению энергетической эффективности | B47: 904 | C47: 8 | D47: 1 | E47: 7951100 | F47: 451 | G47: 282
A48: Долгосрочная целевая программа "Развитие культуры в Черемховском районном муниципальном образовании на период 2012-2016 гг." | B48: 904 | C48: 8 | D48: 1 | E48: 7952000 | F48: 0 | G48: 931
A49: Мероприятия по поддержке и развитию культуры, искусства, кинематографии | B49: 904 | C49: 8 | D49: 1 | E49: 7952000 | F49: 023 | G49: 931
A50: Другие вопросы в области культуры, кинематографии | B50: 904 | C50: 8 | D50: 4 | E50: 0 | F50: 0 | G50: 1164.2
A51: Руководство и управление в сфере установленных функций органов государственной власти субъектов Российской Федерации и органов местного самоуправления | B51: 904 | C51: 8 | D51: 4 | E51: 20000 | F51: 0 | G51: 1164.2
A52: Центральный аппарат | B52: 904 | C52: 8 | D52: 4 | E52: 20400 | F52: 0 | G52: 1164.2
A53: Выполнение функций органами местного самоуправления | B53: 904 | C53: 8 | D53: 4 | E53: 20400 | F53: 500 | G53: 1164.2
A54: Отдел образования АЧРМО | B54: 907 | C54: 0 | D54: 0 | E54: 0 | F54: 0 | G54: 365155.5
A55: ОБРАЗОВАНИЕ | B55: 907 | C55: 7 | D55: 0 | E55: 0 | F55: 0 | G55: 358793.7
A56: Дошкольное образование | B56: 907 | C56: 7 | D56: 1 | E56: 0 | F56: 0 | G56: 66965.8
A57: Детские дошкольные учреждения | B57: 907 | C57: 7 | D57: 1 | E57: 4200000 | F57: 0 | G57: 61865.8
A58: Обеспечение деятельности подведомственных учреждений | B58: 907 | C58: 7 | D58: 1 | E58: 4209900 | F58: 0 | G58: 61865.8
A59: Выполнение функций казенными учреждениями | B59: 907 | C59: 7 | D59: 1 | E59: 4209900 | F59: 001 | G59: 61865.8
A60: Выплата заработной платы с начислениями на нее педагогическим работникам муниципальных дошкольных образовательных учреждений и муниципальных учреждений дополнительного образования | B60: 907 | C60: 7 | D60: 1 | E60: 5890000 | F60: 0 | G60: 1465
A61: Выполнение функций казенными учреждениями | B61: 907 | C61: 7 | D61: 1 | E61: 5890000 | F61: 001 | G61: 1465
A62: Целевые программы муниципальных образований | B62: 907 | C62: 7 | D62: 1 | E62: 7950000 | F62: 0 | G62: 3635
A63: Долгосрочная целевая программа Черемховского районного муниципального образования "Повышение эффективности бюджетных расходов Черемховского районного муниципального образования на 2012-2013 годы" | B63: 907 | C63: 7 | D63: 1 | E63: 7950200 | F63: 0 | G63: 2011
A64: Выполнение функций казенными учреждениями | B64: 907 | C64: 7 | D64: 1 | E64: 7950200 | F64: 001 | G64: 2011
A65: Долгосрочная целевая программа "Безопасность образовательных учреждений на 2010-2014 гг." | B65: 907 | C65: 7 | D65: 1 | E65: 7951000 | F65: 0 | G65: 572
A66: Мероприятия по обеспечению пожарной безопасности | B66: 907 | C66: 7 | D66: 1 | E66: 7951000 | F66: 450 | G66: 572
A67: Долгосрочная целевая программа энергосбережения и повышения энергетической эффективности Черемховского районного муниципального образования на 2010-2015 годы | B67: 907 | C67: 7 | D67: 1 | E67: 7951100 | F67: 0 | G67: 0
A68: Мероприятия по повышению энергетической эффективности | B68: 907 | C68: 7 | D68: 1 | E68: 7951100 | F68: 451 | G68: 0
A69: Долгосрочная целевая программа "Развитие дошкольного образования на 2011-2014 гг." | B69: 907 | C69: 7 | D69: 1 | E69: 7951700 | F69: 0 | G69: 702
A70: Мероприятия в сфере образования | B70: 907 | C70: 7 | D70: 1 | E70: 7951700 | F70: 022 | G70: 702
A71: Долгосрочная целевая программа "Совершенствование дошкольного образования Черемховского района на 2011-2014 гг." | B71: 907 | C71: 7 | D71: 1 | E71: 7951800 | F71: 0 | G71: 350
A72: Мероприятия в сфере образования | B72: 907 | C72: 7 | D72: 1 | E72: 7951800 | F72: 022 | G72: 350
A73: Общее образование | B73: 907 | C73: 7 | D73: 2 | E73: 0 | F73: 0 | G73: 284041.8
A74: Руководство и управление в сфере установленных функций органов государственной власти субъектов Российской Федерации и органов местного самоуправления | B74: 907 | C74: 7 | D74: 2 | E74: 20000 | F74: 0 | G74: 238581.5
A75: Обеспечение государственных гарантий прав граждан на получение общедоступного и бесплатного дошкольного, начального общего, основного общего, среднего (полного) общего образования, а также дополнительного образования в общеобразовательных учреждениях | B75: 907 | C75: 7 | D75: 2 | E75: 25000 | F75: 0 | G75: 238581.5
A76: Выполнение функций казенными учреждениями | B76: 907 | C76: 7 | D76: 2 | E76: 25000 | F76: 001 | G76: 238581.5
A77: Школы - детские сады, школы начальные, неполные средние и средние | B77: 907 | C77: 7 | D77: 2 | E77: 4210000 | F77: 0 | G77: 16326.8
A78: Обеспечение деятельности подведомственных учреждений | B78: 907 | C78: 7 | D78: 2 | E78: 4219900 | F78: 0 | G78: 16326.8
A79: Выполнение функций казенными учреждениями | B79: 907 | C79: 7 | D79: 2 | E79: 4219900 | F79: 001 | G79: 16326.8
A80: Учреждения по внешкольной работе с детьми | B80: 907 | C80: 7 | D80: 2 | E80: 4230000 | F80: 0 | G80: 20412.4
A81: Обеспечение деятельности подведомственных учреждений | B81: 907 | C81: 7 | D81: 2 | E81: 4239900 | F81: 0 | G81: 20412.4
A82: Выполнение функций казенными учреждениями | B82: 907 | C82: 7 | D82: 2 | E82: 4239900 | F82: 001 | G82: 20412.4
A83: Выплата заработной платы с начислениями на нее педагогическим работникам муниципальных дошкольных образовательных учреждений и муниципальных учреждений дополнительного образования | B83: 907 | C83: 7 | D83: 2 | E83: 5890000 | F83: 0 | G83: 540.1
A84: Выполнение функций казенными учреждениями | B84: 907 | C84: 7 | D84: 2 | E84: 5890000 | F84: 001 | G84: 540.1
A85: Целевые программы муниципальных образований | B85: 907 | C85: 7 | D85: 2 | E85: 7950000 | F85: 0 | G85: 8181
A86: Долгосрочная целевая программа Черемховского районного муниципального образования "Повышение эффективности бюджетных расходов Черемховского районного муниципального образования на 2012-2013 годы" | B86: 907 | C86: 7 | D86: 2 | E86: 7950200 | F86: 0 | G86: 5003
A87: Выполнение функций казенными учреждениями | B87: 907 | C87: 7 | D87: 2 | E87: 7950200 | F87: 001 | G87: 5003
A88: Долгосрочная целевая программа "Безопасность образовательных учреждений на 2010-2014 гг." | B88: 907 | C88: 7 | D88: 2 | E88: 7951000 | F88: 0 | G88: 1128
A89: Мероприятия по обеспечению пожарной безопасности | B89: 907 | C89: 7 | D89: 2 | E89: 7951000 | F89: 450 | G89: 1128
A90: Долгосрочная целевая программа энергосбережения и повышения энергетической эффективности Черемховского районного муниципального образования на 2010-2015 годы | B90: 907 | C90: 7 | D90: 2 | E90: 7951100 | F90: 0 | G90: 600
A91: Мероприятия по повышению энергетической эффективности | B91: 907 | C91: 7 | D91: 2 | E91: 7951100 | F91: 451 | G91: 600
A92: Долгосрочная целевая программа "Ветхие школы Черемховского района" на 2011-2013 гг. | B92: 907 | C92: 7 | D92: 2 | E92: 7951500 | F92: 0 | G92: 450
A93: Мероприятия в сфере образования | B93: 907 | C93: 7 | D93: 2 | E93: 7951500 | F93: 022 | G93: 450
A94: Долгосрочная целевая программа "Совершенствование организации питания в образовательных учреждениях Черемховского района на 2011-2013гг." | B94: 907 | C94: 7 | D94: 2 | E94: 7951600 | F94: 0 | G94: 1000
A95: Мероприятия в сфере образования | B95: 907 | C95: 7 | D95: 2 | E95: 7951600 | F95: 022 | G95: 1000
A96: Профессиональная подготовка, переподготовка и повышение квалификации | B96: 907 | C96: 7 | D96: 5 | E96: 0 | F96: 0 | G96: 100
A97: Мероприятия по переподготовке и повышению квалификации | B97: 907 | C97: 7 | D97: 5 | E97: 4340000 | F97: 0 | G97: 100
A98: Выполнение функций казенными учреждениями | B98: 907 | C98: 7 | D98: 5 | E98: 4340000 | F98: 001 | G98: 100
A99: Молодежная политика и оздоровление детей | B99: 907 | C99: 7 | D99: 7 | E99: 0 | F99: 0 | G99: 126
A100: Мероприятия по проведению оздоровительной кампании детей | B100: 907 | C100: 7 | D100: 7 | E100: 4320000 | F100: 0 | G100: 126
A101: Оплата стоимости набора продуктов питания для детей в организованных органами местного самоуправления оздоровительных лагерях с дневным пребыванием детей за счет средств областного бюджета | B101: 907 | C101: 7 | D101: 7 | E101: 4320300 | F101: 0 | G101: 126
A102: Оплата стоимости набора продуктов питания для детей в организованных органами местного самоуправления оздоровительных лагерях с дневным пребыванием детей за счет средств местного бюджета | B102: 907 | C102: 7 | D102: 7 | E102: 4320302 | F102: 0 | G102: 126
A103: Выполнение функций казенными учреждениями | B103: 907 | C103: 7 | D103: 7 | E103: 4320302 | F103: 001 | G103: 126
A104: Другие вопросы в области образования | B104: 907 | C104: 7 | D104: 9 | E104: 0 | F104: 0 | G104: 7560.1
A105: Руководство и управление в сфере установленных функций органов государственной власти субъектов Российской Федерации и органов местного самоуправления | B105: 907 | C105: 7 | D105: 9 | E105: 20000 | F105: 0 | G105: 2560.1
A106: Центральный аппарат | B106: 907 | C106: 7 | D106: 9 | E106: 20400 | F106: 0 | G106: 2560.1
A107: Выполнение функций органами местного самоуправления | B107: 907 | C107: 7 | D107: 9 | E107: 20400 | F107: 500 | G107: 2560.1
A108: Учебно-методические кабинеты, централизованные бухгалтерии, группы хозяйственного обслуживания, учебные фильмотеки, межшкольные учебно-производственные комбинаты, логопедические пункты | B108: 907 | C108: 7 | D108: 9 | E108: 4520000 | F108: 0 | G108: 5000
A109: Субсидии бюджетным учреждениям на финансовое обеспечение муниципального задания на оказание муниципальных услуг (выполнение работ) | B109: 907 | C109: 7 | D109: 9 | E109: 4520000 | F109: 611 | G109: 5000
A110: Социальная политика | B110: 907 | C110: 10 | D110: 0 | E110: 0 | F110: 0 | G110: 6361.8
A111: Социальное обеспечение населения | B111: 907 | C111: 10 | D111: 3 | E111: 0 | F111: 0 | G111: 6361.8
A112: Руководство и управление в сфере установленных функций органов государственной власти субъектов Российской Федерации и органов местного самоуправления | B112: 907 | C112: 10 | D112: 3 | E112: 20000 | F112: 0 | G112: 6361.8
A113: Осуществление отдельных областных государственных полномочий по предоставлению мер социальной поддержки многодетным и малоимущим семьям | B113: 907 | C113: 10 | D113: 3 | E113: 24600 | F113: 0 | G113: 6361.8
A114: Социальные выплаты | B114: 907 | C114: 10 | D114: 3 | E114: 24600 | F114: 005 | G114: 6361.8
A115: Финансовое управление администрации ЧРМО | B115: 910 | C115: 0 | D115: 0 | E115: 0 | F115: 0 | G115: 26195
A116: ОБЩЕГОСУДАРСТВЕННЫЕ ВОПРОСЫ | B116: 910 | C116: 1 | D116: 0 | E116: 0 | F116: 0 | G116: 20760
A117: Обеспечение деятельности финансовых, налоговых и таможенных органов и органов финансового (финансово-бюджетного) надзора | B117: 910 | C117: 1 | D117: 6 | E117: 0 | F117: 0 | G117: 7135.5
A118: Руководство и управление в сфере установленных функций органов государственной власти субъектов Российской Федерации и органов местного самоуправления | B118: 910 | C118: 1 | D118: 6 | E118: 20000 | F118: 0 | G118: 6935.5
A119: Центральный аппарат | B119: 910 | C119: 1 | D119: 6 | E119: 20400 | F119: 0 | G119: 6935.5
A120: Выполнение функций органами местного самоуправления | B120: 910 | C120: 1 | D120: 6 | E120: 20400 | F120: 500 | G120: 6935.5
A121: Целевые программы муниципальных образований | B121: 910 | C121: 1 | D121: 6 | E121: 7950000 | F121: 0 | G121: 200
A122: Долгосрочная целевая программа Черемховского районного муниципального образования "Повышение эффективности бюджетных расходов Черемховского районного муниципального образования на 2012-2013 годы" | B122: 910 | C122: 1 | D122: 6 | E122: 7950200 | F122: 0 | G122: 200
A123: Выполнение функций органами местного самоуправления | B123: 910 | C123: 1 | D123: 6 | E123: 7950200 | F123: 500 | G123: 200
A124: Другие общегосударственные вопросы | B124: 910 | C124: 1 | D124: 13 | E124: 0 | F124: 0 | G124: 13624.5
A125: Руководство и управление в сфере установленных функций органов государственной власти субъектов Российской Федерации и органов местного самоуправления | B125: 910 | C125: 1 | D125: 13 | E125: 20000 | F125: 0 | G125: 13624.5
A126: Обеспечение деятельности подведомственных учреждений | B126: 910 | C126: 1 | D126: 13 | E126: 29900 | F126: 0 | G126: 13624.5
A127: Выполнение функций казенными учреждениями | B127: 910 | C127: 1 | D127: 13 | E127: 29900 | F127: 001 | G127: 13624.5
A128: ОБСЛУЖИВАНИЕ ГОСУДАРСТВЕННОГО И МУНИЦИПАЛЬНОГО ДОЛГА | B128: 910 | C128: 13 | D128: 0 | E128: 0 | F128: 0 | G128: 60
A129: Обслуживание внутреннего государственного и муниципального долга | B129: 910 | C129: 13 | D129: 1 | E129: 0 | F129: 0 | G129: 60
A130: Процентные платежи по долговым обязательствам | B130: 910 | C130: 13 | D130: 1 | E130: 650000 | F130: 0 | G130: 60
A131: Процентные платежи по муниципальному долгу | B131: 910 | C131: 13 | D131: 1 | E131: 650300 | F131: 0 | G131: 60
A132: Прочие расходы | B132: 910 | C132: 13 | D132: 1 | E132: 650300 | F132: 013 | G132: 60
A133: МЕЖБЮДЖЕТНЫЕ ТРАНСФЕРТЫ ОБЩЕГО ХАРАКТЕРА БЮДЖЕТАМ СУБЪЕКТОВ РОССИЙСКОЙ ФЕДЕРАЦИИ И МУНИЦИПАЛЬНЫХ ОБРАЗОВАНИЙ | B133: 910 | C133: 14 | D133: 0 | E133: 0 | F133: 0 | G133: 5375
A134: Дотации на выравнивание бюджетной обеспеченности субъектов Российской Федерации и муниципальных образований | B134: 910 | C134: 14 | D134: 1 | E134: 0 | F134: 0 | G134: 3500
A135: Выравнивание бюджетной обеспечености | B135: 910 | C135: 14 | D135: 1 | E135: 5160000 | F135: 0 | G135: 3500
A136: Выравнивание бюджетной обеспеченности | B136: 910 | C136: 14 | D136: 1 | E136: 5160100 | F136: 0 | G136: 3500
A137: Выравнивание бюджетной обеспеченности поселений из районного фонда финансовой поддержки | B137: 910 | C137: 14 | D137: 1 | E137: 5160130 | F137: 0 | G137: 3500
A138: Фонд финансовой поддержки | B138: 910 | C138: 14 | D138: 1 | E138: 5160130 | F138: 008 | G138: 3500
A139: Прочие межбюджетные трансферты общего характера бюджетам субъектов Российской Федерации и муниципальных образований | B139: 910 | C139: 14 | D139: 3 | E139: 0 | F139: 0 | G139: 1875
A140: Целевые программы муниципальных образований | B140: 910 | C140: 14 | D140: 3 | E140: 7950000 | F140: 0 | G140: 1875
A141: Долгосрочная целевая программа Черемховского районного муниципального образования "Повышение эффективности бюджетных расходов Черемховского районного муниципального образования на 2012-2013 годы" | B141: 910 | C141: 14 | D141: 3 | E141: 7950200 | F141: 0 | G141: 1875
A142: Иные межбюджетные трансферты | B142: 910 | C142: 14 | D142: 3 | E142: 7950200 | F142: 017 | G142: 1875
A143: Комитет по управлению муниципальным имуществом ЧРМО | B143: 913 | C143: 0 | D143: 0 | E143: 0 | F143: 0 | G143: 13755.3
A144: ОБЩЕГОСУДАРСТВЕННЫЕ ВОПРОСЫ | B144: 913 | C144: 1 | D144: 0 | E144: 0 | F144: 0 | G144: 10727.3
A145: Другие общегосударственные вопросы | B145: 913 | C145: 1 | D145: 13 | E145: 0 | F145: 0 | G145: 10727.3
A146: Руководство и управление в сфере установленных функций органов государственной власти субъектов Российской Федерации и органов местного самоуправления | B146: 913 | C146: 1 | D146: 13 | E146: 20000 | F146: 0 | G146: 3720
A147: Центральный аппарат | B147: 913 | C147: 1 | D147: 13 | E147: 20400 | F147: 0 | G147: 2820
A148: Выполнение функций органами местного самоуправления | B148: 913 | C148: 1 | D148: 13 | E148: 20400 | F148: 500 | G148: 2820
A149: Обеспечение деятельности подведомственных учреждений | B149: 913 | C149: 1 | D149: 13 | E149: 29900 | F149: 0 | G149: 900
A150: Субсидии бюджетным учреждениям на финансовое обеспечение муниципального задания на оказание муниципальных услуг (выполнение работ) | B150: 913 | C150: 1 | D150: 13 | E150: 29900 | F150: 611 | G150: 900
A151: Реализация государственных функций, связанных с общегосударственным управлением | B151: 913 | C151: 1 | D151: 13 | E151: 920000 | F151: 0 | G151: 7.3
A152: Выполнение других обязательств государства | B152: 913 | C152: 1 | D152: 13 | E152: 920300 | F152: 0 | G152: 7.3
A153: Выполнение функций органами местного самоуправления | B153: 913 | C153: 1 | D153: 13 | E153: 920300 | F153: 500 | G153: 7.3
A154: Учреждения по обеспечению хозяйственного обслуживания | B154: 913 | C154: 1 | D154: 13 | E154: 930000 | F154: 0 | G154: 6500
A155: Субсидии бюджетным учреждениям на финансовое обеспечение муниципального задания на оказание муниципальных услуг (выполнение работ) | B155: 913 | C155: 1 | D155: 13 | E155: 930000 | F155: 611 | G155: 6500
A156: Целевые программы муниципальных образований | B156: 913 | C156: 1 | D156: 13 | E156: 7950000 | F156: 0 | G156: 500
A157: Долгосрочная целевая программа "Инвентаризация муниципальных объектов недвижимости Черемховского районного муниципального образования на 2012-2014 годы" | B157: 913 | C157: 1 | D157: 13 | E157: 7951900 | F157: 0 | G157: 500
A158: Выполнение функций органами местного самоуправления | B158: 913 | C158: 1 | D158: 13 | E158: 7951900 | F158: 500 | G158: 500
A159: НАЦИОНАЛЬНАЯ ЭКОНОМИКА | B159: 913 | C159: 4 | D159: 0 | E159: 0 | F159: 0 | G159: 500
A160: Другие вопросы в области национальной экономики | B160: 913 | C160: 4 | D160: 12 | E160: 0 | F160: 0 | G160: 500
A161: Целевые программы муниципальных образований | B161: 913 | C161: 4 | D161: 12 | E161: 7950000 | F161: 0 | G161: 500
A162: Долгосрочная целевая программа "Инвентаризация муниципальных объектов недвижимости Черемховского районного муниципального образования на 2012-2014 годы" | B162: 913 | C162: 4 | D162: 12 | E162: 7951900 | F162: 0 | G162: 500
A163: Выполнение функций органами местного самоуправления | B163: 913 | C163: 4 | D163: 12 | E163: 7951900 | F163: 500 | G163: 500
A164: Социальная политика | B164: 913 | C164: 10 | D164: 0 | E164: 0 | F164: 0 | G164: 528
A165: Охрана семьи и детства | B165: 913 | C165: 10 | D165: 4 | E165: 0 | F165: 0 | G165: 528
A166: Исполнение судебных актов, вступивших в силу до 1 января 2013 года, по обеспечению жилыми помещениями детей-сирот и детей, оставшихся без попечения родителей, лиц из числа детей-сирот и детей, оставшихся без попечения родителей, не имеющих закрепленного жилого помещения | B166: 913 | C166: 10 | D166: 4 | E166: 6040000 | F166: 0 | G166: 528
A167: Бюджетные инвестиции | B167: 913 | C167: 10 | D167: 4 | E167: 6040000 | F167: 003 | G167: 528
A168: СРЕДСТВА МАССОВОЙ ИНФОРМАЦИИ | B168: 913 | C168: 12 | D168: 0 | E168: 0 | F168: 0 | G168: 2000
A169: Периодическая печать и издательства | B169: 913 | C169: 12 | D169: 2 | E169: 0 | F169: 0 | G169: 2000
A170: Периодические издания, учрежденные органами законодательной и исполнительной власти | B170: 913 | C170: 12 | D170: 2 | E170: 4570000 | F170: 0 | G170: 2000
A171: Государственная поддержка в сфере культуры, кинематографии и средств массовой информации | B171: 913 | C171: 12 | D171: 2 | E171: 4578500 | F171: 0 | G171: 2000
A172: Субсидии юридическим лицам | B172: 913 | C172: 12 | D172: 2 | E172: 4578500 | F172: 006 | G172: 2000
A173: Дума ЧРМО | B173: 916 | C173: 0 | D173: 0 | E173: 0 | F173: 0 | G173: 1180.4
A174: ОБЩЕГОСУДАРСТВЕННЫЕ ВОПРОСЫ | B174: 916 | C174: 1 | D174: 0 | E174: 0 | F174: 0 | G174: 1180.4
A175: Функционирование законодательных (представительных) органов государственной власти и представительных органов муниципальных образований | B175: 916 | C175: 1 | D175: 3 | E175: 0 | F175: 0 | G175: 1180.4
A176: Руководство и управление в сфере установленных функций органов государственной власти субъектов Российской Федерации и органов местного самоуправления | B176: 916 | C176: 1 | D176: 3 | E176: 20000 | F176: 0 | G176: 1180.4
A177: Центральный аппарат | B177: 916 | C177: 1 | D177: 3 | E177: 20400 | F177: 0 | G177: 363.6
A178: Выполнение функций органами местного самоуправления | B178: 916 | C178: 1 | D178: 3 | E178: 20400 | F178: 500 | G178: 363.6
A179: Председатель представительного органа муниципального образования | B179: 916 | C179: 1 | D179: 3 | E179: 21100 | F179: 0 | G179: 816.8
A180: Выполнение функций органами местного самоуправления | B180: 916 | C180: 1 | D180: 3 | E180: 21100 | F180: 500 | G180: 816.8
A181: Администрация ЧРМО | B181: 917 | C181: 0 | D181: 0 | E181: 0 | F181: 0 | G181: 36957.2
A182: ОБЩЕГОСУДАРСТВЕННЫЕ ВОПРОСЫ | B182: 917 | C182: 1 | D182: 0 | E182: 0 | F182: 0 | G182: 30584.9
A183: Функционирование высшего должностного лица субъекта Российской Федерации и муниципального образования | B183: 917 | C183: 1 | D183: 2 | E183: 0 | F183: 0 | G183: 1751.7
A184: Руководство и управление в сфере установленных функций органов государственной власти субъектов Российской Федерации и органов местного самоуправления | B184: 917 | C184: 1 | D184: 2 | E184: 20000 | F184: 0 | G184: 1751.7
A185: Глава муниципального образования | B185: 917 | C185: 1 | D185: 2 | E185: 20300 | F185: 0 | G185: 1751.7
A186: Выполнение функций органами местного самоуправления | B186: 917 | C186: 1 | D186: 2 | E186: 20300 | F186: 500 | G186: 1751.7
A187: Функционирование Правительства Российской Федерации, высших исполнительных органов государственной власти субъектов Российской Федерации, местных администраций | B187: 917 | C187: 1 | D187: 4 | E187: 0 | F187: 0 | G187: 25658.3
A188: Руководство и управление в сфере установленных функций органов государственной власти субъектов Российской Федерации и органов местного самоуправления | B188: 917 | C188: 1 | D188: 4 | E188: 20000 | F188: 0 | G188: 25658.3
A189: Центральный аппарат | B189: 917 | C189: 1 | D189: 4 | E189: 20400 | F189: 0 | G189: 25658.3
A190: Выполнение функций органами местного самоуправления | B190: 917 | C190: 1 | D190: 4 | E190: 20400 | F190: 500 | G190: 25658.3
A191: Обеспечение проведения выборов и референдумов | B191: 917 | C191: 1 | D191: 7 | E191: 0 | F191: 0 | G191: 0
A192: Проведение выборов и референдумов | B192: 917 | C192: 1 | D192: 7 | E192: 200000 | F192: 0 | G192: 0
A193: Проведение выборов и референдумов | B193: 917 | C193: 1 | D193: 7 | E193: 200000 | F193: 0 | G193: 0
A194: Проведение выборов в представительные органы муниципального образования | B194: 917 | C194: 1 | D194: 7 | E194: 200002 | F194: 0 | G194: 0
A195: Выполнение функций органами местного самоуправления | B195: 917 | C195: 1 | D195: 7 | E195: 200002 | F195: 500 | G195: 0
A196: Резервные фонды | B196: 917 | C196: 1 | D196: 11 | E196: 0 | F196: 0 | G196: 300
A197: Резервные фонды | B197: 917 | C197: 1 | D197: 11 | E197: 700000 | F197: 0 | G197: 300
A198: Резервные фонды местных администраций | B198: 917 | C198: 1 | D198: 11 | E198: 700500 | F198: 0 | G198: 300
A199: Выполнение функций органами местного самоуправления | B199: 917 | C199: 1 | D199: 11 | E199: 700500 | F199: 500 | G199: 300
A200: Другие общегосударственные вопросы | B200: 917 | C200: 1 | D200: 13 | E200: 0 | F200: 0 | G200: 2874.9
A201: Руководство и управление в сфере установленных функций органов государственной власти субъектов Российской Федерации и органов местного самоуправления | B201: 917 | C201: 1 | D201: 13 | E201: 20000 | F201: 0 | G201: 2588.9
A202: Осуществление областных государственных полномочий по хранению, комплектованию, учету и использованию архивных документов, относящихся к государственной собственности Иркутской области | B202: 917 | C202: 1 | D202: 13 | E202: 24000 | F202: 0 | G202: 1086
A203: Выполнение функций органами местного самоуправления | B203: 917 | C203: 1 | D203: 13 | E203: 24000 | F203: 500 | G203: 1086
A204: Осуществление областных государственных полномочий по определению персонального состава и обеспечению деятельности административных комиссий | B204: 917 | C204: 1 | D204: 13 | E204: 24300 | F204: 0 | G204: 563.6
A205: Выполнение функций органами местного самоуправления | B205: 917 | C205: 1 | D205: 13 | E205: 24300 | F205: 500 | G205: 563.6
A206: Осуществление отдельных государственных полномочий в области производства и оборота этилового спирта, алкогольной и спиртосодержащей продукции | B206: 917 | C206: 1 | D206: 13 | E206: 24400 | F206: 0 | G206: 375.7
A207: Выполнение функций органами местного самоуправления | B207: 917 | C207: 1 | D207: 13 | E207: 24400 | F207: 500 | G207: 375.7
A208: Осуществление отдельных областных государственных полномочий в области охраны труда | B208: 917 | C208: 1 | D208: 13 | E208: 24500 | F208: 0 | G208: 563.6
... 104 more rows

Sheet прил11
A7: Распределение бюджетных ассигнований по разделам, подразделам, целевым статьям и видам расходов классификации расходов бюджетов в ведомственной структуре расходов бюджета Черемховского районного муниципального образования на плановый период 2014 и 2015 годов
A9: Наименование показателя | B9: Код | G9: Сумма, тыс. руб.
B10: ГРБС | C10: раздела | D10: подраздела | E10: целевой статьи | F10: вида расходов | G10: 2014 | H10: 2015
A11: 1 | B11: 2 | C11: 3 | D11: 4 | E11: 5 | F11: 6 | G11: 7 | H11: 8
A12: Отдел по культуре и библиотечному обслуживанию АЧРМО | B12: 904 | C12: 0 | D12: 0 | E12: 0 | F12: 0 | G12: 16104.7 | H12: 16855.8
A13: ОБРАЗОВАНИЕ | B13: 904 | C13: 7 | D13: 0 | E13: 0 | F13: 0 | G13: 3985.3 | H13: 4112.7
A14: Общее образование | B14: 904 | C14: 7 | D14: 2 | E14: 0 | F14: 0 | G14: 3958.3 | H14: 4085.7
A15: Учреждения по внешкольной работе с детьми | B15: 904 | C15: 7 | D15: 2 | E15: 4230000 | F15: 0 | G15: 3851.3 | H15: 4011.9
A16: Обеспечение деятельности подведомственных учреждений | B16: 904 | C16: 7 | D16: 2 | E16: 4239900 | F16: 0 | G16: 3851.3 | H16: 4011.9
A17: Выполнение функций казенными учреждениями | B17: 904 | C17: 7 | D17: 2 | E17: 4239900 | F17: 001 | G17: 3851.3 | H17: 4011.9
A18: Целевые программы муниципальных образований | B18: 904 | C18: 7 | D18: 2 | E18: 7950000 | F18: 0 | G18: 107 | H18: 73.8
A19: Долгосрочная целевая программа Черемховского районного муниципального образования "Повышение эффективности бюджетных расходов Черемховского районного муниципального образования на 2012-2013 годы" | B19: 904 | C19: 7 | D19: 2 | E19: 7950200 | F19: 0 | G19: 0 | H19: 0
A20: Выполнение функций казенными учреждениями | B20: 904 | C20: 7 | D20: 2 | E20: 7950200 | F20: 001 | G20: 0 | H20: 0
A21: Долгосрочная целевая программа "Развитие культуры в Черемховском районном муниципальном образовании на период 2012-2016 гг." | B21: 904 | C21: 7 | D21: 2 | E21: 7952000 | F21: 0 | G21: 107 | H21: 73.8
A22: Мероприятия по поддержке и развитию культуры, искусства, кинематографии | B22: 904 | C22: 7 | D22: 2 | E22: 7952000 | F22: 023 | G22: 107 | H22: 73.8
A23: Профессиональная подготовка, переподготовка и повышение квалификации | B23: 904 | C23: 7 | D23: 5 | E23: 0 | F23: 0 | G23: 27 | H23: 27
A24: Мероприятия по переподготовке и повышению квалификации | B24: 904 | C24: 7 | D24: 5 | E24: 4340000 | F24: 0 | G24: 27 | H24: 27
A25: Выполнение функций казенными учреждениями | B25: 904 | C25: 7 | D25: 5 | E25: 4340000 | F25: 001 | G25: 27 | H25: 27
A26: КУЛЬТУРА И КИНЕМАТОГРАФИЯ | B26: 904 | C26: 8 | D26: 0 | E26: 0 | F26: 0 | G26: 12119.4 | H26: 12743.1
A27: Культура | B27: 904 | C27: 8 | D27: 1 | E27: 0 | F27: 0 | G27: 11183.5 | H27: 11762
A28: Учреждения культуры и мероприятия в сфере культуры и кинематографии | B28: 904 | C28: 8 | D28: 1 | E28: 4400000 | F28: 0 | G28: 3856.1 | H28: 4010.2
A29: Комплектование книжных фондов библиотек муниципальных образований и государственных библиотек городов Москвы и Санкт-Петербурга | B29: 904 | C29: 8 | D29: 1 | E29: 4400200 | F29: 0 | G29: 466.3 | H29: 466.3
A30: Комплектование книжных фондов библиотек муниципальных образований и государственных библиотек городов Москвы и Санкт-Петербурга за счет средств федерального бюджета | B30: 904 | C30: 8 | D30: 1 | E30: 4400201 | F30: 0 | G30: 303.6 | H30: 303.6
A31: Выполнение функций казенными учреждениями | B31: 904 | C31: 8 | D31: 1 | E31: 4400201 | F31: 001 | G31: 303.6 | H31: 303.6
A32: Комплектование книжных фондов библиотек муниципальных образований и государственных библиотек городов Москвы и Санкт-Петербурга за счет областного бюджета | B32: 904 | C32: 8 | D32: 1 | E32: 4400202 | F32: 0 | G32: 162.7 | H32: 162.7
A33: Выполнение функций казенными учреждениями | B33: 904 | C33: 8 | D33: 1 | E33: 4400202 | F33: 001 | G33: 162.7 | H33: 162.7
A34: Обеспечение деятельности подведомственных учреждений | B34: 904 | C34: 8 | D34: 1 | E34: 4409900 | F34: 0 | G34: 3389.8 | H34: 3543.9
A35: Выполнение функций казенными учреждениями | B35: 904 | C35: 8 | D35: 1 | E35: 4409900 | F35: 001 | G35: 3389.8 | H35: 3543.9
A36: Музеи и постоянные выставки | B36: 904 | C36: 8 | D36: 1 | E36: 4410000 | F36: 0 | G36: 899.1 | H36: 935.8
A37: Обеспечение деятельности подведомственных учреждений | B37: 904 | C37: 8 | D37: 1 | E37: 4419900 | F37: 0 | G37: 899.1 | H37: 935.8
A38: Выполнение функций казенными учреждениями | B38: 904 | C38: 8 | D38: 1 | E38: 4419900 | F38: 001 | G38: 899.1 | H38: 935.8
A39: Библиотеки | B39: 904 | C39: 8 | D39: 1 | E39: 4420000 | F39: 0 | G39: 5424.3 | H39: 5676.8
A40: Обеспечение деятельности подведомственных учреждений | B40: 904 | C40: 8 | D40: 1 | E40: 4429900 | F40: 0 | G40: 5424.3 | H40: 5676.8
A41: Выполнение функций казенными учреждениями | B41: 904 | C41: 8 | D41: 1 | E41: 4429900 | F41: 001 | G41: 5424.3 | H41: 5676.8
A42: Целевые программы муниципальных образований | B42: 904 | C42: 8 | D42: 1 | E42: 7950000 | F42: 0 | G42: 1004 | H42: 1139.2
A43: Долгосрочная целевая программа Черемховского районного муниципального образования "Повышение эффективности бюджетных расходов Черемховского районного муниципального образования на 2012-2013 годы" | B43: 904 | C43: 8 | D43: 1 | E43: 7950200 | F43: 0 | G43: 0 | H43: 0
A44: Выполнение функций казенными учреждениями | B44: 904 | C44: 8 | D44: 1 | E44: 7950200 | F44: 001 | G44: 0 | H44: 0
A45: Долгосрочная целевая программа энергосбережения и повышения энергетической эффективности Черемховского районного муниципального образования на 2010-2015 годы | B45: 904 | C45: 8 | D45: 1 | E45: 7951100 | F45: 0 | G45: 100 | H45: 200
A46: Мероприятия по повышению энергетической эффективности | B46: 904 | C46: 8 | D46: 1 | E46: 7951100 | F46: 451 | G46: 100 | H46: 200
A47: Долгосрочная целевая программа "Развитие культуры в Черемховском районном муниципальном образовании на период 2012-2016 гг." | B47: 904 | C47: 8 | D47: 1 | E47: 7952000 | F47: 0 | G47: 904 | H47: 939.2
A48: Мероприятия по поддержке и развитию культуры, искусства, кинематографии | B48: 904 | C48: 8 | D48: 1 | E48: 7952000 | F48: 023 | G48: 904 | H48: 939.2
A49: Другие вопросы в области культуры, кинематографии | B49: 904 | C49: 8 | D49: 4 | E49: 0 | F49: 0 | G49: 935.9 | H49: 981.1
A50: Руководство и управление в сфере установленных функций органов государственной власти субъектов Российской Федерации и органов местного самоуправления | B50: 904 | C50: 8 | D50: 4 | E50: 20000 | F50: 0 | G50: 935.9 | H50: 981.1
A51: Центральный аппарат | B51: 904 | C51: 8 | D51: 4 | E51: 20400 | F51: 0 | G51: 935.9 | H51: 981.1
A52: Выполнение функций органами местного самоуправления | B52: 904 | C52: 8 | D52: 4 | E52: 20400 | F52: 500 | G52: 935.9 | H52: 981.1
A53: Отдел образования АЧРМО | B53: 907 | C53: 0 | D53: 0 | E53: 0 | F53: 0 | G53: 351260.8 | H53: 348866.2
A54: ОБРАЗОВАНИЕ | B54: 907 | C54: 7 | D54: 0 | E54: 0 | F54: 0 | G54: 344899 | H54: 342504.4
A55: Дошкольное образование | B55: 907 | C55: 7 | D55: 1 | E55: 0 | F55: 0 | G55: 64603.4 | H55: 62906.1
A56: Детские дошкольные учреждения | B56: 907 | C56: 7 | D56: 1 | E56: 4200000 | F56: 0 | G56: 61308.4 | H56: 61441.1
A57: Обеспечение деятельности подведомственных учреждений | B57: 907 | C57: 7 | D57: 1 | E57: 4209900 | F57: 0 | G57: 61308.4 | H57: 61441.1
A58: Выполнение функций казенными учреждениями | B58: 907 | C58: 7 | D58: 1 | E58: 4209900 | F58: 001 | G58: 61308.4 | H58: 61441.1
A59: Выплата заработной платы с начислениями на нее педагогическим работникам муниципальных дошкольных образовательных учреждений и муниципальных учреждений дополнительного образования | B59: 907 | C59: 7 | D59: 1 | E59: 5890000 | F59: 0 | G59: 1465 | H59: 1465
A60: Выполнение функций казенными учреждениями | B60: 907 | C60: 7 | D60: 1 | E60: 5890000 | F60: 001 | G60: 1465 | H60: 1465
A61: Целевые программы муниципальных образований | B61: 907 | C61: 7 | D61: 1 | E61: 7950000 | F61: 0 | G61: 1830 | H61: 0
A62: Долгосрочная целевая программа Черемховского районного муниципального образования "Повышение эффективности бюджетных расходов Черемховского районного муниципального образования на 2012-2013 годы" | B62: 907 | C62: 7 | D62: 1 | E62: 7950200 | F62: 0 | G62: 0 | H62: 0
A63: Выполнение функций казенными учреждениями | B63: 907 | C63: 7 | D63: 1 | E63: 7950200 | F63: 001 | G63: 0 | H63: 0
A64: Долгосрочная целевая программа "Безопасность образовательных учреждений на 2010-2014 гг." | B64: 907 | C64: 7 | D64: 1 | E64: 7951000 | F64: 0 | G64: 830 | H64: 0
A65: Мероприятия по обеспечению пожарной безопасности | B65: 907 | C65: 7 | D65: 1 | E65: 7951000 | F65: 450 | G65: 830 | H65: 0
A66: Долгосрочная целевая программа энергосбережения и повышения энергетической эффективности Черемховского районного муниципального образования на 2010-2015 годы | B66: 907 | C66: 7 | D66: 1 | E66: 7951100 | F66: 0 | G66: 600 | H66: 0
A67: Мероприятия по повышению энергетической эффективности | B67: 907 | C67: 7 | D67: 1 | E67: 7951100 | F67: 451 | G67: 600 | H67: 0
A68: Долгосрочная целевая программа "Развитие дошкольного образования на 2011-2014 гг." | B68: 907 | C68: 7 | D68: 1 | E68: 7951700 | F68: 0 | G68: 0 | H68: 0
A69: Мероприятия в сфере образования | B69: 907 | C69: 7 | D69: 1 | E69: 7951700 | F69: 022 | G69: 0 | H69: 0
A70: Долгосрочная целевая программа "Совершенствование дошкольного образования Черемховского района на 2011-2014 гг." | B70: 907 | C70: 7 | D70: 1 | E70: 7951800 | F70: 0 | G70: 400 | H70: 0
A71: Мероприятия в сфере образования | B71: 907 | C71: 7 | D71: 1 | E71: 7951800 | F71: 022 | G71: 400 | H71: 0
A72: Общее образование | B72: 907 | C72: 7 | D72: 2 | E72: 0 | F72: 0 | G72: 272963 | H72: 272175.9
A73: Руководство и управление в сфере установленных функций органов государственной власти субъектов Российской Федерации и органов местного самоуправления | B73: 907 | C73: 7 | D73: 2 | E73: 20000 | F73: 0 | G73: 238581.5 | H73: 238581.5
A74: Обеспечение государственных гарантий прав граждан на получение общедоступного и бесплатного дошкольного, начального общего, основного общего, среднего (полного) общего образования, а также дополнительного образования в общеобразовательных учреждениях | B74: 907 | C74: 7 | D74: 2 | E74: 25000 | F74: 0 | G74: 238581.5 | H74: 238581.5
A75: Выполнение функций казенными учреждениями | B75: 907 | C75: 7 | D75: 2 | E75: 25000 | F75: 001 | G75: 238581.5 | H75: 238581.5
A76: Школы - детские сады, школы начальные, неполные средние и средние | B76: 907 | C76: 7 | D76: 2 | E76: 4210000 | F76: 0 | G76: 15782.6 | H76: 15808.4
A77: Обеспечение деятельности подведомственных учреждений | B77: 907 | C77: 7 | D77: 2 | E77: 4219900 | F77: 0 | G77: 15782.6 | H77: 15808.4
A78: Выполнение функций казенными учреждениями | B78: 907 | C78: 7 | D78: 2 | E78: 4219900 | F78: 001 | G78: 15782.6 | H78: 15808.4
A79: Учреждения по внешкольной работе с детьми | B79: 907 | C79: 7 | D79: 2 | E79: 4230000 | F79: 0 | G79: 16488.8 | H79: 17245.9
A80: Обеспечение деятельности подведомственных учреждений | B80: 907 | C80: 7 | D80: 2 | E80: 4239900 | F80: 0 | G80: 16488.8 | H80: 17245.9
A81: Выполнение функций казенными учреждениями | B81: 907 | C81: 7 | D81: 2 | E81: 4239900 | F81: 001 | G81: 16488.8 | H81: 17245.9
A82: Выплата заработной платы с начислениями на нее педагогическим работникам муниципальных дошкольных образовательных учреждений и муниципальных учреждений дополнительного образования | B82: 907 | C82: 7 | D82: 2 | E82: 5890000 | F82: 0 | G82: 540.1 | H82: 540.1
A83: Выполнение функций казенными учреждениями | B83: 907 | C83: 7 | D83: 2 | E83: 5890000 | F83: 001 | G83: 540.1 | H83: 540.1
A84: Целевые программы муниципальных образований | B84: 907 | C84: 7 | D84: 2 | E84: 7950000 | F84: 0 | G84: 1570 | H84: 0
A85: Долгосрочная целевая программа Черемховского районного муниципального образования "Повышение эффективности бюджетных расходов Черемховского районного муниципального образования на 2012-2013 годы" | B85: 907 | C85: 7 | D85: 2 | E85: 7950200 | F85: 0 | G85: 0 | H85: 0
A86: Выполнение функций казенными учреждениями | B86: 907 | C86: 7 | D86: 2 | E86: 7950200 | F86: 001 | G86: 0 | H86: 0
A87: Долгосрочная целевая программа "Безопасность образовательных учреждений на 2010-2014 гг." | B87: 907 | C87: 7 | D87: 2 | E87: 7951000 | F87: 0 | G87: 970 | H87: 0
A88: Мероприятия по обеспечению пожарной безопасности | B88: 907 | C88: 7 | D88: 2 | E88: 7951000 | F88: 450 | G88: 970 | H88: 0
A89: Долгосрочная целевая программа энергосбережения и повышения энергетической эффективности Черемховского районного муниципального образования на 2010-2015 годы | B89: 907 | C89: 7 | D89: 2 | E89: 7951100 | F89: 0 | G89: 0 | H89: 0
A90: Мероприятия по повышению энергетической эффективности | B90: 907 | C90: 7 | D90: 2 | E90: 7951100 | F90: 451 | G90: 0 | H90: 0
A91: Долгосрочная целевая программа "Ветхие школы Черемховского района" на 2011-2013 гг. | B91: 907 | C91: 7 | D91: 2 | E91: 7951500 | F91: 0 | G91: 0 | H91: 0
A92: Мероприятия в сфере образования | B92: 907 | C92: 7 | D92: 2 | E92: 7951500 | F92: 022 | G92: 0 | H92: 0
A93: Долгосрочная целевая программа "Совершенствование организации питания в образовательных учреждениях Черемховского района на 2011-2013гг." | B93: 907 | C93: 7 | D93: 2 | E93: 7951600 | F93: 0 | G93: 600 | H93: 0
A94: Мероприятия в сфере образования | B94: 907 | C94: 7 | D94: 2 | E94: 7951600 | F94: 022 | G94: 600 | H94: 0
A95: Профессиональная подготовка, переподготовка и повышение квалификации | B95: 907 | C95: 7 | D95: 5 | E95: 0 | F95: 0 | G95: 100 | H95: 100
A96: Мероприятия по переподготовке и повышению квалификации | B96: 907 | C96: 7 | D96: 5 | E96: 4340000 | F96: 0 | G96: 100 | H96: 100
A97: Выполнение функций казенными учреждениями | B97: 907 | C97: 7 | D97: 5 | E97: 4340000 | F97: 001 | G97: 100 | H97: 100
A98: Молодежная политика и оздоровление детей | B98: 907 | C98: 7 | D98: 7 | E98: 0 | F98: 0 | G98: 126 | H98: 126
A99: Мероприятия по проведению оздоровительной кампании детей | B99: 907 | C99: 7 | D99: 7 | E99: 4320000 | F99: 0 | G99: 126 | H99: 126
A100: Оплата стоимости набора продуктов питания для детей в организованных органами местного самоуправления оздоровительных лагерях с дневным пребыванием детей за счет средств областного бюджета | B100: 907 | C100: 7 | D100: 7 | E100: 4320300 | F100: 0 | G100: 126 | H100: 126
A101: Оплата стоимости набора продуктов питания для детей в организованных органами местного самоуправления оздоровительных лагерях с дневным пребыванием детей за счет средств местного бюджета | B101: 907 | C101: 7 | D101: 7 | E101: 4320302 | F101: 0 | G101: 126 | H101: 126
A102: Выполнение функций казенными учреждениями | B102: 907 | C102: 7 | D102: 7 | E102: 4320302 | F102: 001 | G102: 126 | H102: 126
A103: Другие вопросы в области образования | B103: 907 | C103: 7 | D103: 9 | E103: 0 | F103: 0 | G103: 7106.6 | H103: 7196.4
A104: Руководство и управление в сфере установленных функций органов государственной власти субъектов Российской Федерации и органов местного самоуправления | B104: 907 | C104: 7 | D104: 9 | E104: 20000 | F104: 0 | G104: 2106.6 | H104: 2196.4
A105: Центральный аппарат | B105: 907 | C105: 7 | D105: 9 | E105: 20400 | F105: 0 | G105: 2106.6 | H105: 2196.4
A106: Выполнение функций органами местного самоуправления | B106: 907 | C106: 7 | D106: 9 | E106: 20400 | F106: 500 | G106: 2106.6 | H106: 2196.4
A107: Учебно-методические кабинеты, централизованные бухгалтерии, группы хозяйственного обслуживания, учебные фильмотеки, межшкольные учебно-производственные комбинаты, логопедические пункты | B107: 907 | C107: 7 | D107: 9 | E107: 4520000 | F107: 0 | G107: 5000 | H107: 5000
A108: Субсидии бюджетным учреждениям на финансовое обеспечение муниципального задания на оказание муниципальных услуг (выполнение работ) | B108: 907 | C108: 7 | D108: 9 | E108: 4520000 | F108: 611 | G108: 5000 | H108: 5000
A109: Социальная политика | B109: 907 | C109: 10 | D109: 0 | E109: 0 | F109: 0 | G109: 6361.8 | H109: 6361.8
A110: Социальное обеспечение населения | B110: 907 | C110: 10 | D110: 3 | E110: 0 | F110: 0 | G110: 6361.8 | H110: 6361.8
A111: Руководство и управление в сфере установленных функций органов государственной власти субъектов Российской Федерации и органов местного самоуправления | B111: 907 | C111: 10 | D111: 3 | E111: 20000 | F111: 0 | G111: 6361.8 | H111: 6361.8
A112: Осуществление отдельных областных государственных полномочий по предоставлению мер социальной поддержки многодетным и малоимущим семьям | B112: 907 | C112: 10 | D112: 3 | E112: 24600 | F112: 0 | G112: 6361.8 | H112: 6361.8
A113: Социальные выплаты | B113: 907 | C113: 10 | D113: 3 | E113: 24600 | F113: 005 | G113: 6361.8 | H113: 6361.8
A114: Финансовое управление администрации ЧРМО | B114: 910 | C114: 0 | D114: 0 | E114: 0 | F114: 0 | G114: 20193.3 | H114: 21036.8
A115: ОБЩЕГОСУДАРСТВЕННЫЕ ВОПРОСЫ | B115: 910 | C115: 1 | D115: 0 | E115: 0 | F115: 0 | G115: 16732.1 | H115: 17473.3
A116: Обеспечение деятельности финансовых, налоговых и таможенных органов и органов финансового (финансово-бюджетного) надзора | B116: 910 | C116: 1 | D116: 6 | E116: 0 | F116: 0 | G116: 5642.7 | H116: 5882.2
A117: Руководство и управление в сфере установленных функций органов государственной власти субъектов Российской Федерации и органов местного самоуправления | B117: 910 | C117: 1 | D117: 6 | E117: 20000 | F117: 0 | G117: 5642.7 | H117: 5882.2
A118: Центральный аппарат | B118: 910 | C118: 1 | D118: 6 | E118: 20400 | F118: 0 | G118: 5642.7 | H118: 5882.2
A119: Выполнение функций органами местного самоуправления | B119: 910 | C119: 1 | D119: 6 | E119: 20400 | F119: 500 | G119: 5642.7 | H119: 5882.2
A120: Целевые программы муниципальных образований | B120: 910 | C120: 1 | D120: 6 | E120: 7950000 | F120: 0 | G120: 0 | H120: 0
A121: Долгосрочная целевая программа Черемховского районного муниципального образования "Повышение эффективности бюджетных расходов Черемховского районного муниципального образования на 2012-2013 годы" | B121: 910 | C121: 1 | D121: 6 | E121: 7950200 | F121: 0 | G121: 0 | H121: 0
A122: Выполнение функций органами местного самоуправления | B122: 910 | C122: 1 | D122: 6 | E122: 7950200 | F122: 500 | G122: 0 | H122: 0
A123: Другие общегосударственные вопросы | B123: 910 | C123: 1 | D123: 13 | E123: 0 | F123: 0 | G123: 11089.4 | H123: 11591.1
A124: Руководство и управление в сфере установленных функций органов государственной власти субъектов Российской Федерации и органов местного самоуправления | B124: 910 | C124: 1 | D124: 13 | E124: 20000 | F124: 0 | G124: 11089.4 | H124: 11591.1
A125: Обеспечение деятельности подведомственных учреждений | B125: 910 | C125: 1 | D125: 13 | E125: 29900 | F125: 0 | G125: 11089.4 | H125: 11591.1
A126: Выполнение функций казенными учреждениями | B126: 910 | C126: 1 | D126: 13 | E126: 29900 | F126: 001 | G126: 11089.4 | H126: 11591.1
A127: ОБСЛУЖИВАНИЕ ГОСУДАРСТВЕННОГО И МУНИЦИПАЛЬНОГО ДОЛГА | B127: 910 | C127: 13 | D127: 0 | E127: 0 | F127: 0 | G127: 61.2 | H127: 63.5
A128: Обслуживание внутреннего государственного и муниципального долга | B128: 910 | C128: 13 | D128: 1 | E128: 0 | F128: 0 | G128: 61.2 | H128: 63.5
A129: Процентные платежи по долговым обязательствам | B129: 910 | C129: 13 | D129: 1 | E129: 650000 | F129: 0 | G129: 61.2 | H129: 63.5
A130: Процентные платежи по муниципальному долгу | B130: 910 | C130: 13 | D130: 1 | E130: 650300 | F130: 0 | G130: 61.2 | H130: 63.5
A131: Прочие расходы | B131: 910 | C131: 13 | D131: 1 | E131: 650300 | F131: 013 | G131: 61.2 | H131: 63.5
A132: МЕЖБЮДЖЕТНЫЕ ТРАНСФЕРТЫ ОБЩЕГО ХАРАКТЕРА БЮДЖЕТАМ СУБЪЕКТОВ РОССИЙСКОЙ ФЕДЕРАЦИИ И МУНИЦИПАЛЬНЫХ ОБРАЗОВАНИЙ | B132: 910 | C132: 14 | D132: 0 | E132: 0 | F132: 0 | G132: 3400 | H132: 3500
A133: Дотации на выравнивание бюджетной обеспеченности субъектов Российской Федерации и муниципальных образований | B133: 910 | C133: 14 | D133: 1 | E133: 0 | F133: 0 | G133: 3400 | H133: 3500
A134: Выравнивание бюджетной обеспечености | B134: 910 | C134: 14 | D134: 1 | E134: 5160000 | F134: 0 | G134: 3400 | H134: 3500
A135: Выравнивание бюджетной обеспеченности | B135: 910 | C135: 14 | D135: 1 | E135: 5160100 | F135: 0 | G135: 3400 | H135: 3500
A136: Выравнивание бюджетной обеспеченности поселений из районного фонда финансовой поддержки | B136: 910 | C136: 14 | D136: 1 | E136: 5160130 | F136: 0 | G136: 3400 | H136: 3500
A137: Фонд финансовой поддержки | B137: 910 | C137: 14 | D137: 1 | E137: 5160130 | F137: 008 | G137: 3400 | H137: 3500
A138: Прочие межбюджетные трансферты общего характера бюджетам субъектов Российской Федерации и муниципальных образований | B138: 910 | C138: 14 | D138: 3 | E138: 0 | F138: 0 | G138: 0 | H138: 0
A139: Целевые программы муниципальных образований | B139: 910 | C139: 14 | D139: 3 | E139: 7950000 | F139: 0 | G139: 0 | H139: 0
A140: Долгосрочная целевая программа Черемховского районного муниципального образования "Повышение эффективности бюджетных расходов Черемховского районного муниципального образования на 2012-2013 годы" | B140: 910 | C140: 14 | D140: 3 | E140: 7950200 | F140: 0 | G140: 0 | H140: 0
A141: Иные межбюджетные трансферты | B141: 910 | C141: 14 | D141: 3 | E141: 7950200 | F141: 017 | G141: 0 | H141: 0
A142: Комитет по управлению муниципальным имуществом ЧРМО | B142: 913 | C142: 0 | D142: 0 | E142: 0 | F142: 0 | G142: 12669.7 | H142: 11759
A143: ОБЩЕГОСУДАРСТВЕННЫЕ ВОПРОСЫ | B143: 913 | C143: 1 | D143: 0 | E143: 0 | F143: 0 | G143: 10169.7 | H143: 9759
A144: Другие общегосударственные вопросы | B144: 913 | C144: 1 | D144: 13 | E144: 0 | F144: 0 | G144: 10169.7 | H144: 9759
A145: Руководство и управление в сфере установленных функций органов государственной власти субъектов Российской Федерации и органов местного самоуправления | B145: 913 | C145: 1 | D145: 13 | E145: 20000 | F145: 0 | G145: 3162.4 | H145: 3251.7
A146: Центральный аппарат | B146: 913 | C146: 1 | D146: 13 | E146: 20400 | F146: 0 | G146: 2262.4 | H146: 2351.7
A147: Выполнение функций органами местного самоуправления | B147: 913 | C147: 1 | D147: 13 | E147: 20400 | F147: 500 | G147: 2262.4 | H147: 2351.7
A148: Обеспечение деятельности подведомственных учреждений | B148: 913 | C148: 1 | D148: 13 | E148: 29900 | F148: 0 | G148: 900 | H148: 900
A149: Субсидии бюджетным учреждениям на финансовое обеспечение муниципального задания на оказание муниципальных услуг (выполнение работ) | B149: 913 | C149: 1 | D149: 13 | E149: 29900 | F149: 611 | G149: 900 | H149: 900
A150: Реализация государственных функций, связанных с общегосударственным управлением | B150: 913 | C150: 1 | D150: 13 | E150: 920000 | F150: 0 | G150: 7.3 | H150: 7.3
A151: Выполнение других обязательств государства | B151: 913 | C151: 1 | D151: 13 | E151: 920300 | F151: 0 | G151: 7.3 | H151: 7.3
A152: Выполнение функций органами местного самоуправления | B152: 913 | C152: 1 | D152: 13 | E152: 920300 | F152: 500 | G152: 7.3 | H152: 7.3
A153: Учреждения по обеспечению хозяйственного обслуживания | B153: 913 | C153: 1 | D153: 13 | E153: 930000 | F153: 0 | G153: 6500 | H153: 6500
A154: Субсидии бюджетным учреждениям на финансовое обеспечение муниципального задания на оказание муниципальных услуг (выполнение работ) | B154: 913 | C154: 1 | D154: 13 | E154: 930000 | F154: 611 | G154: 6500 | H154: 6500
A155: Целевые программы муниципальных образований | B155: 913 | C155: 1 | D155: 13 | E155: 7950000 | F155: 0 | G155: 500 | H155: 0
A156: Долгосрочная целевая программа "Инвентаризация муниципальных объектов недвижимости Черемховского районного муниципального образования на 2012-2014 годы" | B156: 913 | C156: 1 | D156: 13 | E156: 7951900 | F156: 0 | G156: 500 | H156: 0
A157: Выполнение функций органами местного самоуправления | B157: 913 | C157: 1 | D157: 13 | E157: 7951900 | F157: 500 | G157: 500 | H157: 0
A158: НАЦИОНАЛЬНАЯ ЭКОНОМИКА | B158: 913 | C158: 4 | D158: 0 | E158: 0 | F158: 0 | G158: 500 | H158: 0
A159: Другие вопросы в области национальной экономики | B159: 913 | C159: 4 | D159: 12 | E159: 0 | F159: 0 | G159: 500 | H159: 0
A160: Целевые программы муниципальных образований | B160: 913 | C160: 4 | D160: 12 | E160: 7950000 | F160: 0 | G160: 500 | H160: 0
A161: Долгосрочная целевая программа "Инвентаризация муниципальных объектов недвижимости Черемховского районного муниципального образования на 2012-2014 годы" | B161: 913 | C161: 4 | D161: 12 | E161: 7951900 | F161: 0 | G161: 500 | H161: 0
A162: Выполнение функций органами местного самоуправления | B162: 913 | C162: 4 | D162: 12 | E162: 7951900 | F162: 500 | G162: 500 | H162: 0
A163: Социальная политика | B163: 913 | C163: 10 | D163: 0 | E163: 0 | F163: 0 | G163: 0 | H163: 0
A164: Охрана семьи и детства | B164: 913 | C164: 10 | D164: 4 | E164: 0 | F164: 0 | G164: 0 | H164: 0
A165: Исполнение судебных актов, вступивших в силу до 1 января 2013 года, по обеспечению жилыми помещениями детей-сирот и детей, оставшихся без попечения родителей, лиц из числа детей-сирот и детей, оставшихся без попечения родителей, не имеющих закрепленного жилого помещения | B165: 913 | C165: 10 | D165: 4 | E165: 6040000 | F165: 0 | G165: 0 | H165: 0
A166: Бюджетные инвестиции | B166: 913 | C166: 10 | D166: 4 | E166: 6040000 | F166: 003 | G166: 0 | H166: 0
A167: СРЕДСТВА МАССОВОЙ ИНФОРМАЦИИ | B167: 913 | C167: 12 | D167: 0 | E167: 0 | F167: 0 | G167: 2000 | H167: 2000
A168: Периодическая печать и издательства | B168: 913 | C168: 12 | D168: 2 | E168: 0 | F168: 0 | G168: 2000 | H168: 2000
A169: Периодические издания, учрежденные органами законодательной и исполнительной власти | B169: 913 | C169: 12 | D169: 2 | E169: 4570000 | F169: 0 | G169: 2000 | H169: 2000
A170: Государственная поддержка в сфере культуры, кинематографии и средств массовой информации | B170: 913 | C170: 12 | D170: 2 | E170: 4578500 | F170: 0 | G170: 2000 | H170: 2000
A171: Субсидии юридическим лицам | B171: 913 | C171: 12 | D171: 2 | E171: 4578500 | F171: 006 | G171: 2000 | H171: 2000
A172: Дума ЧРМО | B172: 916 | C172: 0 | D172: 0 | E172: 0 | F172: 0 | G172: 940.5 | H172: 986.3
A173: ОБЩЕГОСУДАРСТВЕННЫЕ ВОПРОСЫ | B173: 916 | C173: 1 | D173: 0 | E173: 0 | F173: 0 | G173: 940.5 | H173: 986.3
A174: Функционирование законодательных (представительных) органов государственной власти и представительных органов муниципальных образований | B174: 916 | C174: 1 | D174: 3 | E174: 0 | F174: 0 | G174: 940.5 | H174: 986.3
A175: Руководство и управление в сфере установленных функций органов государственной власти субъектов Российской Федерации и органов местного самоуправления | B175: 916 | C175: 1 | D175: 3 | E175: 20000 | F175: 0 | G175: 940.5 | H175: 986.3
A176: Центральный аппарат | B176: 916 | C176: 1 | D176: 3 | E176: 20400 | F176: 0 | G176: 289 | H176: 302
A177: Выполнение функций органами местного самоуправления | B177: 916 | C177: 1 | D177: 3 | E177: 20400 | F177: 500 | G177: 289 | H177: 302
A178: Председатель представительного органа муниципального образования | B178: 916 | C178: 1 | D178: 3 | E178: 21100 | F178: 0 | G178: 651.5 | H178: 684.3
A179: Выполнение функций органами местного самоуправления | B179: 916 | C179: 1 | D179: 3 | E179: 21100 | F179: 500 | G179: 651.5 | H179: 684.3
A180: Администрация ЧРМО | B180: 917 | C180: 0 | D180: 0 | E180: 0 | F180: 0 | G180: 36189.1 | H180: 33915
A181: ОБЩЕГОСУДАРСТВЕННЫЕ ВОПРОСЫ | B181: 917 | C181: 1 | D181: 0 | E181: 0 | F181: 0 | G181: 27507 | H181: 25975.9
A182: Функционирование высшего должностного лица субъекта Российской Федерации и муниципального образования | B182: 917 | C182: 1 | D182: 2 | E182: 0 | F182: 0 | G182: 1403 | H182: 1472.1
A183: Руководство и управление в сфере установленных функций органов государственной власти субъектов Российской Федерации и органов местного самоуправления | B183: 917 | C183: 1 | D183: 2 | E183: 20000 | F183: 0 | G183: 1403 | H183: 1472.1
A184: Глава муниципального образования | B184: 917 | C184: 1 | D184: 2 | E184: 20300 | F184: 0 | G184: 1403 | H184: 1472.1
A185: Выполнение функций органами местного самоуправления | B185: 917 | C185: 1 | D185: 2 | E185: 20300 | F185: 500 | G185: 1403 | H185: 1472.1
A186: Функционирование Правительства Российской Федерации, высших исполнительных органов государственной власти субъектов Российской Федерации, местных администраций | B186: 917 | C186: 1 | D186: 4 | E186: 0 | F186: 0 | G186: 20515.5 | H186: 21389.4
A187: Руководство и управление в сфере установленных функций органов государственной власти субъектов Российской Федерации и органов местного самоуправления | B187: 917 | C187: 1 | D187: 4 | E187: 20000 | F187: 0 | G187: 20515.5 | H187: 21389.4
A188: Центральный аппарат | B188: 917 | C188: 1 | D188: 4 | E188: 20400 | F188: 0 | G188: 20515.5 | H188: 21389.4
A189: Выполнение функций органами местного самоуправления | B189: 917 | C189: 1 | D189: 4 | E189: 20400 | F189: 500 | G189: 20515.5 | H189: 21389.4
A190: Обеспечение проведения выборов и референдумов | B190: 917 | C190: 1 | D190: 7 | E190: 0 | F190: 0 | G190: 2500 | H190: 0
A191: Проведение выборов и референдумов | B191: 917 | C191: 1 | D191: 7 | E191: 200000 | F191: 0 | G191: 2500 | H191: 0
A192: Проведение выборов и референдумов | B192: 917 | C192: 1 | D192: 7 | E192: 200000 | F192: 0 | G192: 2500 | H192: 0
A193: Проведение выборов в представительные органы муниципального образования | B193: 917 | C193: 1 | D193: 7 | E193: 200002 | F193: 0 | G193: 2500 | H193: 0
A194: Выполнение функций органами местного самоуправления | B194: 917 | C194: 1 | D194: 7 | E194: 200002 | F194: 500 | G194: 2500 | H194: 0
A195: Резервные фонды | B195: 917 | C195: 1 | D195: 11 | E195: 0 | F195: 0 | G195: 300 | H195: 300
A196: Резервные фонды | B196: 917 | C196: 1 | D196: 11 | E196: 700000 | F196: 0 | G196: 300 | H196: 300
A197: Резервные фонды местных администраций | B197: 917 | C197: 1 | D197: 11 | E197: 700500 | F197: 0 | G197: 300 | H197: 300
A198: Выполнение функций органами местного самоуправления | B198: 917 | C198: 1 | D198: 11 | E198: 700500 | F198: 500 | G198: 300 | H198: 300
A199: Другие общегосударственные вопросы | B199: 917 | C199: 1 | D199: 13 | E199: 0 | F199: 0 | G199: 2788.5 | H199: 2814.4
A200: Руководство и управление в сфере установленных функций органов государственной власти субъектов Российской Федерации и органов местного самоуправления | B200: 917 | C200: 1 | D200: 13 | E200: 20000 | F200: 0 | G200: 2617.5 | H200: 2643.4
A201: Осуществление областных государственных полномочий по хранению, комплектованию, учету и использованию архивных документов, относящихся к государственной собственности Иркутской области | B201: 917 | C201: 1 | D201: 13 | E201: 24000 | F201: 0 | G201: 1086 | H201: 1086
A202: Выполнение функций органами местного самоуправления | B202: 917 | C202: 1 | D202: 13 | E202: 24000 | F202: 500 | G202: 1086 | H202: 1086
A203: Осуществление областных государственных полномочий по определению персонального состава и обеспечению деятельности административных комиссий | B203: 917 | C203: 1 | D203: 13 | E203: 24300 | F203: 0 | G203: 563.6 | H203: 563.6
A204: Выполнение функций органами местного самоуправления | B204: 917 | C204: 1 | D204: 13 | E204: 24300 | F204: 500 | G204: 563.6 | H204: 563.6
A205: Осуществление отдельных государственных полномочий в области производства и оборота этилового спирта, алкогольной и спиртосодержащей продукции | B205: 917 | C205: 1 | D205: 13 | E205: 24400 | F205: 0 | G205: 404.3 | H205: 430.2
A206: Выполнение функций органами местного самоуправления | B206: 917 | C206: 1 | D206: 13 | E206: 24400 | F206: 500 | G206: 404.3 | H206: 430.2
A207: Осуществление отдельных областных государственных полномочий в области охраны труда | B207: 917 | C207: 1 | D207: 13 | E207: 24500 | F207: 0 | G207: 563.6 | H207: 563.6
... 104 more rows

Sheet прил12
A7: Распределение бюджетных ассигнований на реализацию долгосрочных районных целевых программ Черемховского районного муниципального образования на 2013 год
G8: (тыс. рублей)
A9: № п/п | B9: Наименование программы | C9: Исполнители | D9: Бюджетная классификация | H9: сумма
D10: ГРБС | E10: РзПр | F10: ЦСР | G10: ВР
A11: 1 | B11: 2 | C11: 3 | D11: 4 | E11: 5 | F11: 6 | G11: 7 | H11: 8
A12: 1 | B12: Развитие культуры в Черемховском районном муниципальном образовании на период 2012-2016 гг. | C12: Отдел по культуре и библиотечному обслуживанию АЧРМО | D12: 904 | E12: 0801, 0702 | F12: 7952000 | G12: 023 | H12: 1023.8
A13: 2 | B13: Ветхие школы Черемховского района на 2011-2013 гг. | C13: Отдел образования АЧРМО | D13: 907 | E13: 0702 | F13: 7951500 | G13: 022 | H13: 450
A14: 3 | B14: Совершенствование дошкольного образования Черемховского района на 2011-2014 гг. | D14: 907 | E14: 0701 | F14: 7951800 | G14: 022 | H14: 350
A15: 4 | B15: Совершенствование организации питания в образовательных учреждениях Черемховского района на 2011-2013 гг. | D15: 907 | E15: 0702 | F15: 7951600 | G15: 022 | H15: 1000
A16: 5 | B16: Развитие дошкольного образования на 2011-2014 гг. | D16: 907 | E16: 0701 | F16: 7951700 | G16: 022 | H16: 702
A17: 6 | B17: "Безопасность образовательных учреждений" 2010-2014гг. | D17: 907 | E17: 0701, 0702 | F17: 7951000 | G17: 450 | H17: 1700
A18: 7 | B18: Инвентаризация муниципальных объектов недвижимости Черемховского районного муниципального образования на 2012-2014 годы | C18: КУМИ | D18: 913 | E18: 0113, 0412 | F18: 7951900 | G18: 500 | H18: 1000
A19: 8 | B19: Молодым семьям доступное жилье на 2012-2019гг. | C19: Администрация ЧРМО | D19: 917 | E19: 1003 | F19: 7952100 | G19: 005 | H19: 256.2
A20: 9 | B20: Комплексные меры профилактики злоупотребления наркотическими средствами, психотропними веществами в Черемховском районном муниципальном образовании на 2011-2013 гг. | D20: 917 | E20: 0707 | F20: 7951300 | G20: 500 | H20: 10
A21: 10 | B21: Молодежная политика в Черемховском районном муниципальном образовании на 2013-2015 | D21: 917 | E21: 0707 | F21: 7952500 | G21: 447 | H21: 40
A22: 11 | B22: Развитие физической культуры, спорта и туризма в Черемховском районном муниципальном образовании на 2011-2013гг. | D22: 917 | E22: 1101 | F22: 7951200 | G22: 500 | H22: 100
A23: 12 | B23: Поддержка и развитие малого и среднего предпринимательства в Черемховском районе на 2013-2014 гг. | D23: 917 | E23: 0412 | F23: 7952200 | G23: 500 | H23: 100
A24: 13 | B24: Поддержка, проводимых мероприятий, посвященных Дням воинской славы, памятным датам России и работе с ветеранами и инвалидами в Черемховском районе на 2013-2015 гг. | D24: 917 | E24: 1006 | F24: 7952400 | G24: 500 | H24: 100
A25: 14 | B25: Улучшение условий и охраны труда в Черемховском районе на 2011-2013 гг | D25: 917 | E25: 0113 | F25: 7951400 | G25: 500 | H25: 15
A26: 15 | B26: Развитие автомобильных дорог Черемховского районного муниципального образования на 2013-2015 гг. | D26: 917 | E26: 0409 | F26: 7952300 | G26: 500 | H26: 201.6
A27: 16 | B27: Поддержка молодых педагогов на территории Черемховского районного муниципального образования на 2012-2013 гг. | D27: 917 | E27: 0113 | F27: 7952700 | G27: 500 | H27: 100
A28: 17 | B28: Профилактика правонарушений в Черемховском районном муниципальном образовании на 2013-2016 гг. | D28: 917 | E28: 0113 | F28: 7952600 | G28: 500 | H28: 40
A29: 18 | B29: Программа повышения энергетической эффективности Черемховского районного муниципального образования на 2010-2015 гг | C29: Отдел образования АЧРМО | D29: 907 | E29: 0702 | F29: 7951100 | G29: 451 | H29: 600
C30: Отдел по культуре и библиотечному обслуживанию АЧРМО | D30: 904 | E30: 0801 | F30: 7951100 | G30: 451 | H30: 282
A31: 19 | B31: Повышение эффективности бюджетных расходов Черемховского районного муниципального образования на 2012-2013 годы | C31: Финансовое управление АЧРМО | D31: 910 | E31: 0106 | F31: 7950200 | G31: 500 | H31: 200
C32: Отдел образования АЧРМО | D32: 907 | E32: 0701, 0702 | F32: 7950200 | G32: 001 | H32: 7014
C33: Отдел по культуре и библиотечному обслуживанию АЧРМО | D33: 904 | E33: 0702, 0801 | F33: 7950200 | G33: 001 | H33: 483
C34: Муниципальные образования района, Всего, в том числе | H34: =SUM(H35:H52) -> 1875
C35: Алехинское сельское поселение | D35: 910 | E35: 1403 | F35: 7950200 | G35: 017 | H35: 187
C36: Бельское сельское поселение | D36: 910 | E36: 1403 | F36: 7950200 | G36: 017 | H36: 91
C37: Булайское сельское поселение | D37: 910 | E37: 1403 | F37: 7950200 | G37: 017 | H37: 143
C38: Голуметское сельское поселение | D38: 910 | E38: 1403 | F38: 7950200 | G38: 017 | H38: 97
C39: Зерновское сельское поселение | D39: 910 | E39: 1403 | F39: 7950200 | G39: 017 | H39: 116
C40: Каменно-Ангарское сельское поселение | D40: 910 | E40: 1403 | F40: 7950200 | G40: 017 | H40: 99
C41: Лоховское сельское поселение | D41: 910 | E41: 1403 | F41: 7950200 | G41: 017 | H41: 65
C42: Михайловское городское поселение | D42: 910 | E42: 1403 | F42: 7950200 | G42: 017 | H42: 142
C43: Нижнеиретское сельское поселение | D43: 910 | E43: 1403 | F43: 7950200 | G43: 017 | H43: 84
C44: Новогромовское сельское поселение | D44: 910 | E44: 1403 | F44: 7950200 | G44: 017 | H44: 78
C45: Новостроевское сельское поселение | D45: 910 | E45: 1403 | F45: 7950200 | G45: 017 | H45: 84
C46: Онотское сельское поселение | D46: 910 | E46: 1403 | F46: 7950200 | G46: 017 | H46: 104
C47: Парфеновское сельское поселение | D47: 910 | E47: 1403 | F47: 7950200 | G47: 017 | H47: 97
C48: Саянское сельское поселение | D48: 910 | E48: 1403 | F48: 7950200 | G48: 017 | H48: 107
C49: Тальниковское сельское поселение | D49: 910 | E49: 1403 | F49: 7950200 | G49: 017 | H49: 87
C50: Тунгусское сельское поселение | D50: 910 | E50: 1403 | F50: 7950200 | G50: 017 | H50: 102
C51: Узколугское сельское поселение | D51: 910 | E51: 1403 | F51: 7950200 | G51: 017 | H51: 93
C52: Черемховское сельское поселение | D52: 910 | E52: 1403 | F52: 7950200 | G52: 017 | H52: 99
A53: Всего | H53: =SUM(H12:H34) -> 17642.6
A56: Начальник финансового управления | H56: Ю.Н. Гайдук

Sheet прил13
A7: Распределение бюджетных ассигнований на реализацию долгосрочных районных целевых программ Черемховского районного муниципального образования на плановый период 2014 и 2015 годов
G8: (тыс. рублей)
A9: № п/п | B9: Наименование программы | C9: Исполнители | D9: Бюджетная классификация | H9: сумма
D10: ГРБС | E10: РзПр | F10: ЦСР | G10: ВР | H10: 2014 | I10: 2015
A11: 1 | B11: 2 | C11: 3 | D11: 4 | E11: 5 | F11: 6 | G11: 7 | H11: 8 | I11: 9
A12: 1 | B12: Развитие культуры в Черемховском районном муниципальном образовании на период 2012-2016 гг. | C12: Отдел по культуре и библиотечному обслуживанию АЧРМО | D12: 904 | E12: 0801, 0702 | F12: 7952000 | G12: 023 | H12: 1011 | I12: 1013.1
A13: 2 | B13: Совершенствование дошкольного образования Черемховского района на 2011-2014 гг. | C13: Отдел образования АЧРМО | D13: 907 | E13: 0701 | F13: 7951800 | G13: 022 | H13: 400 | I13: 0
A14: 3 | B14: Совершенствование организации питания в образовательных учреждениях Черемховского района на 2011-2013 гг. | D14: 907 | E14: 0702 | F14: 7951600 | G14: 022 | H14: 600 | I14: 0
A15: 4 | B15: "Безопасность образовательных учреждений" 2010-2014гг. | D15: 907 | E15: 0701, 0702 | F15: 7951000 | G15: 450 | H15: 1800
A16: 5 | B16: Инвентаризация муниципальных объектов недвижимости Черемховского районного муниципального образования на 2012-2014 годы | C16: КУМИ | D16: 913 | E16: 0113, 0412 | F16: 7951900 | G16: 500 | H16: 1000
A17: 6 | B17: Молодым семьям доступное жилье на 2012-2019гг. | C17: Администрация ЧРМО | D17: 917 | E17: 1003 | F17: 7952100 | G17: 005 | H17: 275.4 | I17: 296.1
A18: 7 | B18: Молодежная политика в Черемховском районном муниципальном образовании на 2013-2015 | D18: 917 | E18: 0707 | F18: 7952500 | G18: 447 | H18: 40 | I18: 40
A19: 8 | B19: Поддержка и развитие малого и среднего предпринимательства в Черемховском районе на 2013-2014 гг. | D19: 917 | E19: 0412 | F19: 7952200 | G19: 500 | H19: 150 | I19: 0
A20: 9 | B20: Поддержка, проводимых мероприятий, посвященных Дням воинской славы, памятным датам России и работе с ветеранами и инвалидами в Черемховском районе на 2013-2015 гг. | D20: 917 | E20: 1006 | F20: 7952400 | G20: 500 | H20: 100 | I20: 100
A21: 10 | B21: Развитие автомобильных дорог Черемховского районного муниципального образования на 2013-2015 гг. | D21: 917 | E21: 0409 | F21: 7952300 | G21: 500 | H21: 3048.1 | I21: 2406.4
A22: 11 | B22: Профилактика правонарушений в Черемховском районном муниципальном образовании на 2013-2016 гг. | D22: 917 | E22: 0113 | F22: 7952600 | G22: 500 | H22: 40 | I22: 40
A23: 12 | B23: Программа повышения энергетической эффективности Черемховского районного муниципального образования на 2010-2015 гг | C23: Отдел образования АЧРМО | D23: 907 | E23: 0702 | F23: 7951100 | G23: 451 | H23: 600
C24: Отдел по культуре и библиотечному обслуживанию АЧРМО | D24: 904 | E24: 0801 | F24: 7951100 | G24: 451 | H24: 100 | I24: 200
B25: Всего: | H25: =SUM(H12:H24) -> 9164.5 | I25: =SUM(I12:I24) -> 4095.6
A28: Начальник финансового управления | G28: Ю.Н. Гайдук

Sheet прил14
A7: Распределение фонда финансовой поддержки поселений Черемховского района
E9: (тыс. рублей)
A10: №п/п | B10: Наименование городских и сельских поселений | C10: Дотация на выравнивание бюджетной обеспеченности
C11: 2013 | D11: 2014 | E11: 2015
A12: 1 | B12: Булайское | C12: 686 | D12: 660 | E12: 669
A13: 2 | B13: Голуметское | C13: 301 | D13: 413 | E13: 475
A14: 3 | B14: Каменноангарское | C14: 89 | D14: 32 | E14: 0
A15: 4 | B15: Нижнеиретское | C15: 160 | D15: 100 | E15: 103
A16: 5 | B16: Новостроевское | C16: 461 | D16: 468 | E16: 457
A17: 6 | B17: Онотское | C17: 57 | D17: 46 | E17: 25
A18: 7 | B18: Парфеновское | C18: 0 | D18: 0 | E18: 97
A19: 8 | B19: Саянское | C19: 654 | D19: 647 | E19: 635
A20: 9 | B20: Тальниковское | C20: 634 | D20: 618 | E20: 628
A21: 10 | B21: Тунгусское | C21: 458 | D21: 416 | E21: 411
B22: Итого: | C22: =SUM(C12:C21) -> 3500 | D22: =SUM(D12:D21) -> 3400 | E22: =SUM(E12:E21) -> 3500
A26: Начальник финансового управления | E26: Ю.Н. Гайдук

Sheet прил 15весов коэф

Sheet прил 16заим 2013
A7: Программа муниципальных внутренних заимствований Черемховского районного муниципального образования на 2013 год
E8: (тыс.рублей)
A9: Виды долговых обязательств (привлечение/погашение) | B9: Объем муниципального долга на 1 января 2013 года | C9: Объем привлечения в 2013 году | D9: Объем погашения в 2013 году | E9: Верхний предел муниципального долга на 1 января 2014 года
A10: Объем заимствований, всего | B10: 0 | C10: =C12+C13 -> 4061.2 | D10: 0 | E10: =E12+E13 -> 4061.2
A11: в том числе:
A12: 2. Кредиты кредитных организаций в валюте Российской Федерации сроком до 3-х лет | B12: 0 | C12: 4061.2 | D12: 0 | E12: =B12+C12-D12 -> 4061.2
A13: 3. Бюджетные кредиты от других бюджетов бюджетной системы Российской Федерации | B13: 0 | C13: 0 | D13: 0 | E13: 0
A16: Начальник финансового управления | E16: Ю.Н. Гайдук

Sheet прил17заим2014-2015
A8: Программа муниципальных внутренних заимствований Черемховского районного муниципального образования на плановый период 2014 и 2015 годов
H9: (тыс.рублей)
A10: Виды долговых обязательств (привлечение/погашение) | B10: Объем муниципального долга на 1 января 2014 года | C10: Объем привлечения в 2014 году | D10: Объем погашения в 2014 году | E10: Верхний предел муниципального долга на 1 января 2015 года | F10: Объем привлечения в 2015 году | G10: Объем погашения в 2015 году | H10: Верхний предел муниципального долга на 1 января 2016 года
A11: Объем заимствований, всего | B11: =B13+B14 -> 4061.2 | C11: =C13+C14 -> 4153.9 | D11: 0 | E11: 8215.1 | F11: 4315.2 | G11: 0 | H11: 12530.3
A12: в том числе:
A13: 2. Кредиты кредитных организаций в валюте Российской Федерации сроком до 3-х лет | B13: 4061.2 | C13: 4153.9 | D13: 0 | E13: =B13+C13 -> 8215.1 | F13: 4315.2 | G13: 0 | H13: =E13+F13-G13 -> 12530.3
A14: 3. Бюджетные кредиты от других бюджетов бюджетной системы Российской Федерации | B14: 0 | C14: 0 | D14: 0 | E14: 0 | F14: 0 | G14: 0 | H14: 0
A17: Начальник финансового управления | H17: Ю.Н. Гайдук

Sheet прил18источн2013
A8: Источники внутреннего финансирования дефицита бюджета Черемховского районного муниципального образования на 2013 год
C10: (тыс.рублей)
A11: Наименование | B11: Код | C11: Сумма
A12: Источники внутреннего финансирования дефицита бюджета | B12: 000 01 00 00 00 00 0000 000 | C12: 4061.2
A13: Кредиты кредитных организаций в валюте Российской Федерации | B13: 810 01 02 00 00 00 0000 000 | C13: 4061.2
A14: Получение кредитов от кредитных организаций в валюте Российской Федерации | B14: 810 01 02 00 00 00 0000 700 | C14: 4061.2
A15: Кредиты, полученные в валюте Российской Федерации от кредитных организаций бюджетами муниципальных районнов | B15: 810 01 02 00 00 05 0000 710 | C15: 4061.2
A16: Бюджетные кредиты от других бюджетов бюджетной системы Российской Федерации | B16: 810 01 03 00 00 00 0000 000 | C16: 0
A17: Погашение бюджетных кредитов, полученных от других бюджетов бюджетной системы Российской Федерации в валюте Российской Федерации | B17: 810 01 03 00 00 00 0000 800 | C17: 0
A18: Погашение бюджетами муниципальных районнов кредитов от других бюджетов бюджетной системы Российской Федерации в валюте Российской Федерации | B18: 810 01 03 00 00 05 0000 810 | C18: 0
A19: Изменение остатков средств на счетах по учету средств бюджетов | B19: 000 01 05 00 00 00 0000 000 | C19: 0.01599998772
A20: Увеличение остатков средств бюджетов | B20: 000 01 05 00 00 00 0000 500 | C20: -478803
A21: Увеличение прочих остатков средств бюджетов | B21: 000 01 05 02 00 00 0000 500 | C21: -478803
A22: Уменьшение остатков средств бюджетов | B22: 000 01 05 00 00 00 0000 600 | C22: 478803
A23: Уменьшение прочих остатков средств бюджетов | B23: 000 01 05 02 00 00 0000 600 | C23: 478803
A25: Начальник финансового управления | C25: Ю.Н. Гайдук

Sheet прил19источ 2014-2015)
A8: Источники внутреннего финансирования дефицита бюджета Черемховского районного муниципального образования на плановый период 2014 и 2015 годов
D10: (тыс.рублей)
A11: Наименование | B11: Код | C11: 2014 год | D11: 2015 год
A12: Источники внутреннего финансирования дефицита бюджета | B12: 000 01 00 00 00 00 0000 000 | C12: =C13+C21 -> 4153.9 | D12: =D13+D21 -> 4315.2
A13: Кредиты кредитных организаций в валюте Российской Федерации | B13: 810 01 02 00 00 00 0000 000 | C13: =C14+C16 -> 4153.9 | D13: =D14+D16 -> 4315.2
A14: Получение кредитов от кредитных организаций в валюте Российской Федерации | B14: 810 01 02 00 00 00 0000 700 | C14: 4153.9 | D14: 4315.2
A15: Кредиты, полученные в валюте Российской Федерации от кредитных организаций бюджетами муниципальных районов | B15: 810 01 02 00 00 050000 710 | C15: 4153.9 | D15: 4315.2
A16: Погашение кредитов, предоставленных кредитными организациями в валюте Российской Федерации | B16: 810 01 02 00 00 00 0000 800 | C16: =C17 -> 0 | D16: =D17 -> 0
A17: Погашение бюджетами муниципальных районов кредитов от кредитных организаций в валюте Российской Федерации | B17: 810 01 02 00 00 05 0000 810 | C17: 0 | D17: 0
A18: Бюджетные кредиты от других бюджетов бюджетной системы Российской Федерации | B18: 810 01 03 00 00 00 0000 000 | C18: 0 | D18: 0
A19: Погашение бюджетных кредитов, полученных от других бюджетов бюджетной системы Российской Федерации в валюте Российской Федерации | B19: 810 01 03 00 00 00 0000 800 | C19: 0 | D19: 0
A20: Погашение бюджетами муниципальных районов кредитов от других бюджетов бюджетной системы Российской Федерации в валюте Российской Федерации | B20: 810 01 03 00 00 05 0000 810 | C20: 0 | D20: 0
A21: Изменение остатков средств на счетах по учету средств бюджетов | B21: 000 01 05 00 00 00 0000 000 | C21: =C22+C24 -> 0 | D21: =D22+D24 -> 0
A22: Увеличение остатков средств бюджетов | B22: 000 01 05 00 00 00 0000 500 | C22: =C23 -> -462925 | D22: =D23 -> -471640
A23: Увеличение прочих остатков средств бюджетов | B23: 000 01 05 02 00 00 0000 500 | C23: -462925 | D23: -471640
A24: Уменьшение остатков средств бюджетов | B24: 000 01 05 00 00 00 0000 600 | C24: =C25 -> 462925 | D24: 471640
A25: Уменьшение прочих остатков средств бюджетов | B25: 000 01 05 02 00 00 0000 600 | C25: 462925 | D25: 471640
A28: Начальник финансового управления | D28: Ю.Н. Гайдук
